Workbook

Sheet SERIES
A2: WALKER FRASER STEELE HPI (SCOTLAND) NATIONAL AND REGIONAL FORMATTED DATA FROM 2000
A3: A TRUE MEASURE OF HOUSE PRICE INFLATION | K3: AUGUST 2021
A5: The following table provides national smoothed, seasonally and mix adjusted current and back data for our e.surv Scotland HPI. The data are based upon the prices for all residential transactions in Scotland, including cash purchases, reported by Registers of Scotland (RoS).
A6: At national level, monthly transactions ranged from only 4,427 to 7,313 in the 12 months to January 2013, averaging something less than 6,500 p.m. Of these sales, RoS reports prices for some 99% for the current month of the index but does so after a delay of over a month from the end of the month in question. Since our e.surv Scotland HPI average prices are averaged over the month and the prior two months, the volume of data used is such that we describe our first updated results as the final e.surv Scotland HPI index since the averages will be very close, in normal circumstances, to those of the ultimate e.surv Scotland HPI, calculated when every transaction has been reported.
A7: Note that e.surv Scotland HPI results are reported, every month, for the month preceding the month reported for LSL Acadata E&W HPI. That said, LSL Acadata E&W HPI reports the average price for the month only at national level. Regional (including Wales), county and London borough prices are reported for the preceding month and are averaged over three months, centre month smoothed. By end month smoothing the e.surv Scotland HPI average prices, the averages for Scotland are synchronised and comparable with those of e.g. Greater London or Wales.
A8: Our Acadata House Prices series is calibrated to provide portfolio revaluations with standard errors.
A9: e.surv Scotland HPI is prepared from Registers of Scotland data that we believe to be correct using a methodology designed to provide the best possible guide to house price movements in Scotland, and applied with care. We do not guarantee the accuracy of the results and Acadata shall not be liable for any loss or damage, whatsoever, consequential upon any error, misdescription or other inadequacy in the data. Persons using the data do so entirely at their own risk. No part of the house price index may be reproduced in any form or for any purpose without the prior permission of Acadata. Please email information@Acadata.co.uk.
L11: © Acadata Limited
M12: Walker Fraser Steele HPI (Scotland) clb/cms
M13: www.acadata.co.uk
A14: SCOTLAND
B16: 2000-01-01 | C16: 2000-02-01 | D16: 2000-03-01 | E16: 2000-04-01 | F16: 2000-05-01 | G16: 2000-06-01 | H16: 2000-07-01 | I16: 2000-08-01 | J16: 2000-09-01 | K16: 2000-10-01 | L16: 2000-11-01 | M16: 2000-12-01
A17: HP | B17: 76353.59484 | C17: 76365.32758 | D17: 76377.06033 | E17: 76251.79602 | F17: 76126.53172 | G17: 76001.26742 | H17: 76162.42012 | I17: 76323.57281 | J17: 76484.72551 | K17: 76455.73873 | L17: 76426.75195 | M17: 76397.76517
A18: Index | B18: 100 | C18: =+B18*C17/B17 -> 100.0153663 | D18: 100.0307327 | E18: 99.8666745 | F18: 99.70261634 | G18: 99.53855819 | H18: 99.74961923 | I18: 99.96068028 | J18: 100.1717413 | K18: 100.1337775 | L18: 100.0958136 | M18: 100.0578497
A19: Monthly% | C19: =(+C17-B17)/B17*100 -> 0.01536632876 | D19: =(+D17-C17)/C17*100 -> 0.01536396788 | E19: -0.1640077531 | F19: -0.1642771804 | G19: -0.1645474944 | H19: 0.2120394838 | I19: 0.2115908277 | J19: 0.2111440663 | K19: -0.03789878318 | L19: -0.0379131518 | M19: -0.03792753132
A20: Annual%
B22: 2001-01-01 | C22: 2001-02-01 | D22: 2001-03-01 | E22: 2001-04-01 | F22: 2001-05-01 | G22: 2001-06-01 | H22: 2001-07-01 | I22: 2001-08-01 | J22: 2001-09-01 | K22: 2001-10-01 | L22: 2001-11-01 | M22: 2001-12-01
A23: HP | B23: 74839 | C23: 75881 | D23: 76923 | E23: 76091.02786 | F23: 75259.05572 | G23: 74427.08358 | H23: 73998.74498 | I23: 73513.82021 | J23: 72996.15624 | K23: 73611.67995 | L23: 74698.38209 | M23: 75445.81804
A24: Index | B24: =+M18/M17*B23 -> 98.01634116 | C24: =+B24*C23/B23 -> 99.38104442 | D24: 100.7457477 | E24: 99.65611707 | F24: 98.56648646 | G24: 97.47685585 | H24: 96.91586249 | I24: 96.28075845 | J24: 95.60277601 | K24: 96.40892496 | L24: 97.83217443 | M24: 98.81108834
A25: Monthly% | B25: =(B23-M17)/M17*100 -> -2.040328228 | C25: =(+C23-B23)/B23*100 -> 1.392322185 | D25: =(+D23-C23)/C23*100 -> 1.373202778 | E25: -1.081564864 | F25: -1.093390593 | G25: -1.105477783 | H25: -0.5755144217 | I25: -0.6553148496 | J25: -0.7041723156 | K25: 0.8432275545 | L25: 1.476263196 | M25: 1.000605284
A26: Annual% | B26: =(B23-B17)/B17*100 -> -1.983658844 | C26: =(C23-C17)/C17*100 -> -0.6342244529 | D26: 0.7147953485 | E26: -0.2108385295 | F26: -1.139518622 | G26: -2.071259992 | H26: -2.840869732 | I26: -3.681369328 | J26: -4.561131967 | K26: -3.719876139 | L26: -2.261472349 | M26: -1.246040537
B28: 2002-01-01 | C28: 2002-02-01 | D28: 2002-03-01 | E28: 2002-04-01 | F28: 2002-05-01 | G28: 2002-06-01 | H28: 2002-07-01 | I28: 2002-08-01 | J28: 2002-09-01 | K28: 2002-10-01 | L28: 2002-11-01 | M28: 2002-12-01
A29: HP | B29: 77116.65019 | C29: 78149.2938 | D29: 80084.87904 | E29: 80518.38514 | F29: 81107.81008 | G29: 80809.37894 | H29: 81206.39994 | I29: 81888.48991 | J29: 83050.00653 | K29: 83727.68947 | L29: 84588.5895 | M29: 84479.58182
A30: Index | B30: =+M24/M23*B29 -> 100.9993706 | C30: =+B30*C29/B29 -> 102.3518198 | D30: 104.8868481 | E30: 105.4546093 | F30: 106.2265768 | G30: 105.8357227 | H30: 106.3556996 | I30: 107.2490301 | J30: 108.7702638 | K30: 109.6578225 | L30: 110.7853398 | M30: 110.6425729
A31: Monthly% | B31: =(B29-M23)/M23*100 -> 2.214612013 | C31: =(+C29-B29)/B29*100 -> 1.339066989 | D31: =(+D29-C29)/C29*100 -> 2.476778927 | E31: 0.5413082984 | F31: 0.7320377065 | G31: -0.3679437759 | H31: 0.4913056003 | I31: 0.8399460775 | J31: 1.418412546 | K31: 0.8159938501 | L31: 1.028214244 | M31: -0.1288680733
A32: Annual% | B32: =(B29-B23)/B23*100 -> 3.043400091 | C32: =(C29-C23)/C23*100 -> 2.989277685 | D32: 4.110446864 | E32: 5.81850108 | F32: 7.771495805 | G32: 8.575232366 | H32: 9.740239467 | I32: 11.3919664 | J32: 13.77312286 | K32: 13.74239731 | L32: 13.2401896 | M32: 11.97384296
B34: 2003-01-01 | C34: 2003-02-01 | D34: 2003-03-01 | E34: 2003-04-01 | F34: 2003-05-01 | G34: 2003-06-01 | H34: 2003-07-01 | I34: 2003-08-01 | J34: 2003-09-01 | K34: 2003-10-01 | L34: 2003-11-01 | M34: 2003-12-01
A35: HP | B35: 84460.21514 | C35: 84163.5531 | D35: 84348.38153 | E35: 87384.55979 | F35: 88493.94647 | G35: 91771.5104 | H35: 94041.12009 | I35: 94651.33136 | J35: 95149.49564 | K35: 96010.19454 | L35: 96919.56191 | M35: 98381.0204
A36: Index | B36: =+M30/M29*B35 -> 110.6172084 | C36: =+B36*C35/B35 -> 110.2286713 | D36: 110.4707404 | E36: 114.447211 | F36: 115.9001703 | G36: 120.1927828 | H36: 123.1652816 | I36: 123.9644729 | J36: 124.6169167 | K36: 125.7441706 | L36: 126.9351654 | M36: 128.8492318
A37: Monthly% | B37: =(B35-M29)/M29*100 -> -0.02292468651 | C37: =(+C35-B35)/B35*100 -> -0.3512447055 | D37: =(+D35-C35)/C35*100 -> 0.2196062488 | E37: 3.599569087 | F37: 1.26954542 | G37: 3.703715404 | H37: 2.473109234 | I37: 0.648877074 | J37: 0.5263151345 | K37: 0.9045753632 | L37: 0.9471570936 | M37: 1.50790869
A38: Annual% | B38: =(B35-B29)/B29*100 -> 9.522671077 | C38: =(C35-C29)/C29*100 -> 7.695858799 | D38: 5.323729692 | E38: 8.52746195 | F38: 9.106566168 | G38: 13.56541976 | H38: 15.8050599 | I38: 15.58563537 | J38: 14.56892013 | K38: 14.66958559 | L38: 14.57758366 | M38: 16.45538281
B40: 2004-01-01 | C40: 2004-02-01 | D40: 2004-03-01 | E40: 2004-04-01 | F40: 2004-05-01 | G40: 2004-06-01 | H40: 2004-07-01 | I40: 2004-08-01 | J40: 2004-09-01 | K40: 2004-10-01 | L40: 2004-11-01 | M40: 2004-12-01
A41: HP | B41: 101914.056 | C41: 104354.5972 | D41: 105878.7496 | E41: 105425.5929 | F41: 106179.9803 | G41: 107132.0946 | H41: 108981.6522 | I41: 111383.3967 | J41: 112308.5858 | K41: 112987.5215 | L41: 114379.1453 | M41: 117830.5747
A42: Index | B42: =+M36/M35*B41 -> 133.4764345 | C42: =+B42*C41/B41 -> 136.6728016 | D42: =+C42*D41/C41 -> 138.668978 | E42: 138.0754804 | F42: 139.0634986 | G42: 140.310479 | H42: 142.7328372 | I42: 145.8783925 | J42: 147.0901089 | K42: 147.9793082 | L42: 149.8019124 | M42: =+L42*M41/L41 -> 154.3222359
A43: Monthly% | B43: =(B41-M35)/M35*100 -> 3.591176024 | C43: =(+C41-B41)/B41*100 -> 2.394705192 | D43: =(+D41-C41)/C41*100 -> 1.460551254 | E43: -0.4279958806 | F43: 0.7155638155 | G43: 0.8966985486 | H43: 1.726427176 | I43: 2.203806283 | J43: 0.8306345977 | K43: 0.6045269684 | L43: 1.231661518 | M43: 3.017533871
A44: Annual% | B44: =(B41-B35)/B35*100 -> 20.66516271 | C44: =(C41-C35)/C35*100 -> 23.9902468 | D44: 25.52552601 | E44: 20.64556159 | F44: 19.98558606 | G44: 16.73785707 | H44: 15.8872333 | I44: 17.67758058 | J44: 18.03382141 | K44: 17.68283774 | L44: 18.01450917 | M44: 19.76962044
B46: 2005-01-01 | C46: 2005-02-01 | D46: 2005-03-01 | E46: 2005-04-01 | F46: 2005-05-01 | G46: 2005-06-01 | H46: 2005-07-01 | I46: 2005-08-01 | J46: 2005-09-01 | K46: 2005-10-01 | L46: 2005-11-01 | M46: 2005-12-01
A47: HP | B47: 119546.5527 | C47: 120158.1564 | D47: 118996.1155 | E47: 121340.4191 | F47: 122449.7652 | G47: 123610.0308 | H47: 122286.4456 | I47: 123637.8889 | J47: 125122.3729 | K47: 127686.5451 | L47: 128215.1473 | M47: 128597.2169
A48: Index | B48: =+M42/M41*B47 -> 156.5696454 | C48: =+B48*C47/B47 -> 157.3706604 | D48: 155.84874 | E48: 158.9190651 | F48: 160.3719713 | G48: 161.8915665 | H48: 160.1580723 | I48: 161.9280521 | J48: 163.872275 | K48: 167.2305611 | L48: 167.9228693 | M48: 168.4232644
A49: Monthly% | B49: =(B47-M41)/M41*100 -> 1.456309619 | C49: =(+C47-B47)/B47*100 -> 0.5116029565 | D49: =(+D47-C47)/C47*100 -> -0.9670928351 | E49: 1.970067319 | F49: 0.914242882 | G49: 0.9475441049 | H49: -1.070774858 | I49: 1.105145566 | J49: 1.200670803 | K49: 2.049331509 | L49: 0.4139842568 | M49: 0.2979910283
A50: Annual% | B50: =(B47-B41)/B41*100 -> 17.30133937 | C50: =(C47-C41)/C41*100 -> 15.14409487 | D50: 12.38904498 | E50: 15.09579006 | F50: 15.32283664 | G50: 15.38095206 | H50: 12.20828746 | I50: 11.00208153 | J50: 11.40944571 | K50: 13.00942215 | L50: 12.09661253 | M50: 9.137392592
B52: 2006-01-01 | C52: 2006-02-01 | D52: 2006-03-01 | E52: 2006-04-01 | F52: 2006-05-01 | G52: 2006-06-01 | H52: 2006-07-01 | I52: 2006-08-01 | J52: 2006-09-01 | K52: 2006-10-01 | L52: 2006-11-01 | M52: 2006-12-01
A53: HP | B53: 128685.4167 | C53: 130134.7299 | D53: 132546.6158 | E53: 134272.3314 | F53: 136123.782 | G53: 137043.661 | H53: 137973.8671 | I53: 138573.1619 | J53: 140564.496 | K53: 142837.4719 | L53: 144202.4887 | M53: 146238.4342
A54: Index | B54: =+M48/M47*B53 -> 168.5387794 | C54: =+B54*C53/B53 -> 170.4369391 | D54: 173.5957765 | E54: 175.8559394 | F54: 178.2807769 | G54: 179.4855386 | H54: 180.703826 | I54: 181.48872 | J54: 184.0967623 | K54: 187.0736698 | L54: 188.8614269 | M54: 191.5278966
A55: Monthly% | B55: =(B53-M47)/M47*100 -> 0.06858609395 | C55: =(+C53-B53)/B53*100 -> 1.126245105 | D55: =(+D53-C53)/C53*100 -> 1.853376004 | E55: 1.30196883 | F55: 1.37887723 | G55: 0.675766505 | H55: 0.6787662917 | I55: 0.4343538484 | J55: 1.437027199 | K55: 1.617034145 | L55: 0.9556433957 | M55: 1.411865689
A56: Annual% | B56: =(B53-B47)/B47*100 -> 7.644606902 | C56: =(C53-C47)/C47*100 -> 8.302868342 | D56: 11.38734676 | E56: 10.65754713 | F56: 11.16704208 | G56: 10.86775088 | H56: 12.82842218 | I56: 12.07985126 | J56: 12.34161622 | K56: 11.86571909 | L56: 12.46915186 | M56: 13.71819521
B58: 2007-01-01 | C58: 2007-02-01 | D58: 2007-03-01 | E58: 2007-04-01 | F58: 2007-05-01 | G58: 2007-06-01 | H58: 2007-07-01 | I58: 2007-08-01 | J58: 2007-09-01 | K58: 2007-10-01 | L58: 2007-11-01 | M58: 2007-12-01
A59: HP | B59: 148878.8945 | C59: 151318.3444 | D59: 150822.7922 | E59: 152152.6842 | F59: 153597.9959 | G59: 157093.9446 | H59: 158430.4032 | I59: 159678.5749 | J59: 160238.671 | K59: 160731.1106 | L59: 161264.1185 | M59: 161525.9204
A60: Index | B60: =+M54/M53*B59 -> 194.986097 | C60: =+B60*C59/B59 -> 198.1810349 | D60: 197.5320121 | E60: 199.2737664 | F60: 201.1666853 | G60: 205.7453155 | H60: 207.4956701 | I60: 209.1303956 | J60: 209.8639512 | K60: 210.5088973 | L60: 211.2069758 | M60: 211.5498566
A61: Monthly% | B61: =(B59-M53)/M53*100 -> 1.805585755 | C61: =(+C59-B59)/B59*100 -> 1.638546488 | D61: =(+D59-C59)/C59*100 -> -0.327489877 | E61: 0.881757998 | F61: 0.9499087568 | G61: 2.276038 | H61: 0.8507384681 | I61: 0.7878359485 | J61: 0.3507647303 | K61: 0.3073162913 | L61: 0.3316146854 | M61: 0.1623435437
A62: Annual% | B62: =(B59-B53)/B53*100 -> 15.69212603 | C62: =(C59-C53)/C53*100 -> 16.27821757 | D62: 13.78848961 | E62: 13.31648343 | F62: 12.83700289 | G62: 14.63058088 | H62: 14.82638454 | I62: 15.23051988 | J62: 13.99654652 | K62: 12.52727206 | L62: 11.83171661 | M62: 10.45380875
B64: 2008-01-01 | C64: 2008-02-01 | D64: 2008-03-01 | E64: 2008-04-01 | F64: 2008-05-01 | G64: 2008-06-01 | H64: 2008-07-01 | I64: 2008-08-01 | J64: 2008-09-01 | K64: 2008-10-01 | L64: 2008-11-01 | M64: 2008-12-01
A65: HP | B65: 161217.1976 | C65: 161512.6364 | D65: 162262.5529 | E65: 162634.8099 | F65: 162418.5012 | G65: 162080.3183 | H65: 161531.0338 | I65: 160166.6716 | J65: 158281.509 | K65: 156156.4534 | L65: 155346.0428 | M65: 154593.9372
A66: Index | B66: =+M60/M59*B65 -> 211.1455236 | C66: =+B66*C65/B65 -> 211.5324586 | D66: 212.5146213 | E66: 213.0021647 | F66: 212.7188662 | G66: 212.2759493 | H66: 211.5565537 | I66: 209.7696539 | J66: 207.3006639 | K66: 204.517487 | L66: 203.4560955 | M66: 202.4710658
A67: Monthly% | B67: =(B65-M59)/M59*100 -> -0.1911289526 | C67: =(+C65-B65)/B65*100 -> 0.1832551354 | D67: =(+D65-C65)/C65*100 -> 0.4643082744 | E67: 0.2294164023 | F67: -0.1330026756 | G67: -0.2082170018 | H67: -0.3388964449 | I67: -0.8446440341 | J67: -1.177000559 | K67: -1.342579832 | L67: -0.5189734466 | M67: -0.4841485438
A68: Annual% | B68: =(B65-B59)/B59*100 -> 8.287476299 | C68: =(C65-C59)/C59*100 -> 6.736983565 | D68: 7.584901874 | E68: 6.889215082 | F68: 5.742591431 | G68: 3.174134861 | H68: 1.957093174 | I68: 0.3056745068 | J68: -1.221404318 | K68: -2.846155414 | L68: -3.669803149 | M68: -4.291560866
B70: 2009-01-01 | C70: 2009-02-01 | D70: 2009-03-01 | E70: 2009-04-01 | F70: 2009-05-01 | G70: 2009-06-01 | H70: 2009-07-01 | I70: 2009-08-01 | J70: 2009-09-01 | K70: 2009-10-01 | L70: 2009-11-01 | M70: 2009-12-01
A71: HP | B71: 152045.0459 | C71: 149724.5893 | D71: 146013.184 | E71: 147751.222 | F71: 147992.9816 | G71: 149251.4853 | H71: 147902.2906 | I71: 147486.002 | J71: 147842.6705 | K71: 148972.5521 | L71: 150460.6283 | M71: 151730.383
A72: Index | B72: =+M66/M65*B71 -> 199.1327929 | C72: =+B72*C71/B71 -> 196.0937002 | D72: 191.2328873 | E72: 193.5091889 | F72: 193.8258205 | G72: 195.4740778 | H72: 193.7070428 | I72: 193.1618312 | J72: 193.6289585 | K72: 195.1087599 | L72: 197.0576875 | M72: 198.7206801
A73: Monthly% | B73: =(B71-M65)/M65*100 -> -1.648765389 | C73: =(+C71-B71)/B71*100 -> -1.526163874 | D73: =(+D71-C71)/C71*100 -> -2.478821544 | E73: 1.190329556 | F73: 0.1636261261 | G73: 0.8503806664 | H73: -0.9039740538 | I73: -0.2814619632 | J73: 0.241832107 | K73: 0.7642459329 | L73: 0.9988928809 | M73: 0.8439115892
A74: Annual% | B74: =(B71-B65)/B65*100 -> -5.689313457 | C74: =(C71-C65)/C65*100 -> -7.298529291 | D74: -10.01424463 | E74: -9.151538855 | F74: -8.881697257 | G74: -7.915108426 | H74: -8.437228978 | I74: -7.917171231 | J74: -6.5951093 | K74: -4.600451119 | L74: -3.144859355 | M74: -1.852306971
B76: 2010-01-01 | C76: 2010-02-01 | D76: 2010-03-01 | E76: 2010-04-01 | F76: 2010-05-01 | G76: 2010-06-01 | H76: 2010-07-01 | I76: 2010-08-01 | J76: 2010-09-01 | K76: 2010-10-01 | L76: 2010-11-01 | M76: 2010-12-01
A77: HP | B77: 152661.7477 | C77: 154068.6614 | D77: 154577.4637 | E77: 155317.8321 | F77: 154852.568 | G77: 154683.0882 | H77: 154827.4026 | I77: 155802.0126 | J77: 156601.7032 | K77: 156641.3644 | L77: 155575.4445 | M77: 156068.1909
A78: Index | B78: =+M72/M71*B77 -> 199.9404848 | C78: =+B78*C77/B77 -> 201.7831141 | D78: 202.4494905 | E78: 203.419148 | F78: 202.8097935 | G78: 202.5878264 | H78: 202.7768344 | I78: 204.0532772 | J78: 205.1006289 | K78: 205.152573 | L78: 203.756542 | M78: 204.40189
A79: Monthly% | B79: =(B77-M71)/M71*100 -> 0.6138287729 | C79: =(+C77-B77)/B77*100 -> 0.9215888903 | D79: =(+D77-C77)/C77*100 -> 0.3302438685 | E79: 0.4789627045 | F79: -0.2995561171 | G79: -0.1094459447 | H79: 0.09329680389 | I79: 0.629481583 | J79: 0.5132736322 | K79: 0.0253261389 | L79: -0.6804842564 | M79: 0.3167250285
A80: Annual% | B80: =(B77-B71)/B71*100 -> 0.4056046666 | C80: =(C77-C71)/C71*100 -> 2.901375179 | D80: 5.865415385 | E80: 5.121182734 | F80: 4.63507548 | G80: 3.63922867 | H80: 4.682220873 | I80: 5.638508394 | J80: 5.924563399 | K80: 5.1478022 | L80: 3.399438331 | M80: 2.858892121
B82: 2011-01-01 | C82: 2011-02-01 | D82: 2011-03-01 | E82: 2011-04-01 | F82: 2011-05-01 | G82: 2011-06-01 | H82: 2011-07-01 | I82: 2011-08-01 | J82: 2011-09-01 | K82: 2011-10-01 | L82: 2011-11-01 | M82: 2011-12-01
A83: HP | B83: 155922.8539 | C83: 155414.299 | D83: 154256.8621 | E83: 153356.6005 | F83: 153312.4542 | G83: 152381.6377 | H83: 152858.8046 | I83: 153867.7273 | J83: 155173.7851 | K83: 155421.5177 | L83: 155251.0114 | M83: 154502.3813
A84: Index | B84: =+M78/M77*B83 -> 204.2115427 | C84: =+B84*C83/B83 -> 203.5454903 | D84: 202.0295998 | E84: 200.8505308 | F84: 200.7927126 | G84: 199.5736259 | H84: 200.1985694 | I84: 201.5199516 | J84: 203.2304902 | K84: 203.5549446 | L84: 203.3316333 | M84: 202.3511553
A85: Monthly% | B85: =B83/M77*100-100 -> -0.09312405573 | C85: =(+C83-B83)/B83*100 -> -0.326158024 | D85: -0.744742878 | E85: -0.5836120169 | F85: -0.02878667422 | G85: -0.6071369291 | H85: 0.3131393479 | I85: 0.6600357662 | J85: 0.8488185053 | K85: 0.1596485007 | L85: -0.1097056983 | M85: -0.4822063132
A86: Annual% | B86: =B83/B77*100-100 -> 2.136164583 | C86: =(C83-C77)/C77*100 -> 0.8734012277 | D86: =(D83-D77)/D77*100 -> -0.2074051694 | E86: =(E83-E77)/E77*100 -> -1.262721484 | F86: =(F83-F77)/F77*100 -> -0.9945678347 | G86: =(G83-G77)/G77*100 -> -1.487848821 | H86: =(H83-H77)/H77*100 -> -1.271479067 | I86: -1.241502074 | J86: -0.9118151932 | K86: -0.778751303 | L86: -0.208537475 | M86: -1.003285579
B88: 2012-01-01 | C88: 2012-02-01 | D88: 2012-03-01 | E88: 2012-04-01 | F88: 2012-05-01 | G88: 2012-06-01 | H88: 2012-07-01 | I88: 2012-08-01 | J88: 2012-09-01 | K88: 2012-10-01 | L88: 2012-11-01 | M88: 2012-12-01
A89: HP | B89: 153010.4828 | C89: 152741.8307 | D89: 153018.2535 | E89: 153941.0672 | F89: 153717.4092 | G89: 154287.9908 | H89: 153637.8253 | I89: 152549.3917 | J89: 152202.0363 | K89: 151244.5304 | L89: 150696.9102 | M89: 149196.7319
A90: Index | B90: =+M84/M83*B89 -> 200.3972219 | C90: =+B90*C89/B89 -> 200.0453692 | D90: 200.4073991 | E90: 201.6160046 | F90: 201.3230805 | G90: 202.070369 | H90: 201.2188498 | I90: 199.7933326 | J90: 199.3384026 | K90: 198.084361 | L90: 197.367145 | M90: 195.4023674
A91: Monthly% | B91: =B89/M83*100-100 -> -0.9656151605 | C91: =(+C89-B89)/B89*100 -> -0.175577616 | D91: 0.1809738855 | E91: 0.6030742822 | F91: -0.1452880852 | G91: 0.3711886713 | H91: -0.4213973495 | I91: -0.708441204 | J91: -0.2277002661 | K91: -0.629101872 | L91: -0.3620760262 | M91: -0.9954937516
A92: Annual% | B92: =B89/B83*100-100 -> -1.867828204 | C92: =(C89-C83)/C83*100 -> -1.719576845 | D92: =(D89-D83)/D83*100 -> -0.8029519947 | E92: =(E89-E83)/E83*100 -> 0.381116147 | F92: =(F89-F83)/F83*100 -> 0.2641370559 | G92: =(G89-G83)/G83*100 -> 1.251038621 | H92: =(H89-H83)/H83*100 -> 0.5096342144 | I92: -0.856798041 | J92: -1.915110072 | K92: -2.687521863 | L92: -2.933379403 | M92: -3.434024315
B94: 2013-01-01 | C94: 2013-02-01 | D94: 2013-03-01 | E94: 2013-04-01 | F94: 2013-05-01 | G94: 2013-06-01 | H94: 2013-07-01 | I94: 2013-08-01 | J94: 2013-09-01 | K94: 2013-10-01 | L94: 2013-11-01 | M94: 2013-12-01
A95: HP | B95: 149418.4006 | C95: 150675.2693 | D95: 151088.7522 | E95: 151322.8702 | F95: 151030.3519 | G95: 151099.1496 | H95: 151770.8162 | I95: 151774.5707 | J95: 152175.5071 | K95: 152261.7221 | L95: 153563.4147 | M95: 154452.2577
A96: Index | B96: =+M90/M89*B95 -> 195.692686 | C96: =+B96*C95/B95 -> 197.3388019 | D96: 197.8803389 | E96: 198.1869623 | F96: 197.8038522 | G96: 197.8939562 | H96: 198.7736354 | I96: 198.7785526 | J96: 199.3036574 | K96: 199.4165729 | L96: 201.1213946 | M96: 202.2855086
A97: Monthly% | B97: =B95/M89*100-100 -> 0.1485747606 | C97: =(+C95-B95)/B95*100 -> 0.8411739525 | D97: 0.2744199315 | E97: 0.1549539241 | F97: -0.1933074028 | G97: 0.04555221444 | H97: 0.4445204851 | I97: 0.00247376701 | J97: 0.264165711 | K97: 0.05665502616 | L97: 0.8549046943 | M97: 0.5788116388
A98: Annual% | B98: =B95/B89*100-100 -> -2.34760532 | C98: =(C95-C89)/C89*100 -> -1.35297672 | D98: -1.260961501 | E98: -1.700778809 | F98: -1.748050104 | G98: -2.066811068 | H98: -1.215201458 | I98: =(I95-I89)/I89*100 -> -0.5079148265 | J98: =(J95-J89)/J89*100 -> -0.01743027503 | K98: =(K95-K89)/K89*100 -> 0.6725477586 | L98: =(L95-L89)/L89*100 -> 1.902165406 | M98: =(M95-M89)/M89*100 -> 3.522547492
B100: 2014-01-01 | C100: 2014-02-01 | D100: 2014-03-01 | E100: 2014-04-01 | F100: 2014-05-01 | G100: 2014-06-01 | H100: 2014-07-01 | I100: 2014-08-01 | J100: 2014-09-01 | K100: 2014-10-01 | L100: 2014-11-01 | M100: 2014-12-01
A101: HP | B101: 156560.491 | C101: 155650.7538 | D101: 156646.4733 | E101: 156644.8925 | F101: 158997.5656 | G101: 159974.5717 | H101: 160403.811 | I101: 160691.799 | J101: 160616.9963 | K101: 161012.7436 | L101: 160013.9614 | M101: 160670.138
A102: Index | B102: =+M96/M95*B101 -> 205.0466535 | C102: =+B102*C101/B101 -> 203.8551743 | D102: 205.1592641 | E102: 205.1571938 | F102: 208.2384804 | G102: 209.5180614 | H102: 210.0802344 | I102: 210.4574111 | J102: 210.3594424 | K102: 210.877751 | L102: 209.56965 | M102: 210.4290418
A103: Monthly% | B103: =B101/M95*100-100 -> 1.364974146 | C103: =(+C101-B101)/B101*100 -> -0.5810771223 | D103: 0.6397138725 | E103: -0.001009133686 | F103: 1.501914945 | G103: 0.6144786535 | H103: 0.2683172301 | I103: 0.1795393228 | J103: -0.04655037264 | K103: 0.2463918873 | L103: -0.6203124698 | M103: 0.4100745738
A104: Annual% | B104: =B101/B95*100-100 -> 4.779926975 | C104: =(C101-C95)/C95*100 -> 3.302124229 | D104: 3.678447923 | E104: 3.516998018 | F104: 5.275240114 | G104: 5.873906084 | H104: 5.688178412 | I104: =(I101-I95)/I95*100 -> 5.875311144 | J104: =(J101-J95)/J95*100 -> 5.547206264 | K104: =(K101-K95)/K95*100 -> 5.747354826 | L104: =(L101-L95)/L95*100 -> 4.200575189 | M104: =(M101-M95)/M95*100 -> 4.025762035
B106: 2015-01-01 | C106: 2015-02-01 | D106: 2015-03-01 | E106: 2015-04-01 | F106: 2015-05-01 | G106: 2015-06-01 | H106: 2015-07-01 | I106: 2015-08-01 | J106: 2015-09-01 | K106: 2015-10-01 | L106: 2015-11-01 | M106: 2015-12-01
A107: HP | B107: 162051.6969 | C107: 166851.8479 | D107: 182167.4015 | E107: 179173.1127 | F107: 175125.6645 | G107: 159334.7553 | H107: 160616.0544 | I107: 161352.3273 | J107: 162150.3142 | K107: 162814.7734 | L107: 163645.6985 | M107: 163983.8199
A108: Index | B108: =+M102/M101*B107 -> 212.238464 | C108: =+B108*C107/B107 -> 218.5252027 | D108: 238.5839225 | E108: 234.6623143 | F108: 229.3613874 | G108: 208.6800963 | H108: 210.3582087 | I108: 211.3225025 | J108: 212.3676227 | K108: 213.2378623 | L108: 214.3261216 | M108: 214.7689578
A109: Monthly% | B109: =B107/M101*100-100 -> 0.8598728186 | C109: =(+C107-B107)/B107*100 -> 2.962110954 | D109: 9.179133345 | E109: -1.643701772 | F109: -2.258959605 | G109: -9.016901815 | H109: 0.8041554646 | I109: 0.4584055601 | J109: 0.4945617213 | K109: 0.4097797901 | L109: 0.5103499582 | M109: 0.2066179491
A110: Annual% | B110: =B107/B101*100-100 -> 3.50740201 | C110: =(C107-C101)/C101*100 -> 7.196299275 | D110: 16.29205412 | E110: 14.38171383 | F110: 10.14361373 | G110: -0.3999488324 | H110: 0.1323181593 | I110: =(I107-I101)/I101*100 -> 0.4110529487 | J110: =(J107-J101)/J101*100 -> 0.9546423428 | K110: =(K107-K101)/K101*100 -> 1.119184597 | L110: =(L107-L101)/L101*100 -> 2.269637628 | M110: =(M107-M101)/M101*100 -> 2.062413051
B112: 2016-01-01 | C112: 2016-02-01 | D112: 2016-03-01 | E112: 2016-04-01 | F112: 2016-05-01 | G112: 2016-06-01 | H112: 2016-07-01 | I112: 2016-08-01 | J112: 2016-09-01 | K112: 2016-10-01 | L112: 2016-11-01 | M112: 2016-12-01
A113: HP | B113: 164315.7779 | C113: 163553.0296 | D113: 165321.8544 | E113: 165515.3487 | F113: 166030.1595 | G113: 164788.1699 | H113: 165216.9741 | I113: 165978.0211 | J113: 166175.4529 | K113: 167230.4971 | L113: 167172.5955 | M113: 167025.0379
A114: Index | B114: =+M108/M107*B113 -> 215.2037218 | C114: =+B114*C113/B113 -> 214.2047535 | D114: 216.5213764 | E114: 216.774795 | F114: 217.4490407 | G114: 215.8224118 | H114: 216.384015 | I114: 217.3807552 | J114: 217.6393308 | K114: 219.0211181 | L114: 218.9452846 | M114: 218.752029
A115: Monthly% | B115: =B113/M107*100-100 -> 0.2024333525 | C115: =(+C113-B113)/B113*100 -> -0.4641965938 | D115: 1.081499276 | E115: 0.1170409193 | F115: 0.311035133 | G115: -0.7480506217 | H115: 0.2602153854 | I115: 0.4606348743 | J115: 0.1189505709 | K115: 0.6348977785 | L115: -0.03462385248 | M115: -0.08826661111
A116: Annual% | B116: =B113/B107*100-100 -> 1.397135012 | C116: =(C113-C107)/C107*100 -> -1.977094263 | D116: -9.247289554 | E116: -7.622663835 | F116: -5.193701888 | G116: 3.422614625 | H116: 2.864545318 | I116: =(I113-I107)/I107*100 -> 2.866828028 | J116: =(J113-J107)/J107*100 -> 2.482350232 | K116: =(K113-K107)/K107*100 -> 2.712114908 | L116: =(L113-L107)/L107*100 -> 2.155202981 | M116: =(M113-M107)/M107*100 -> 1.854584193
B118: 2017-01-01 | C118: 2017-02-01 | D118: 2017-03-01 | E118: 2017-04-01 | F118: 2017-05-01 | G118: 2017-06-01 | H118: 2017-07-01 | I118: 2017-08-01 | J118: 2017-09-01 | K118: 2017-10-01 | L118: 2017-11-01 | M118: 2017-12-01
A119: HP | B119: 166837.1811 | C119: 167940.7225 | D119: 168330.2114 | E119: 170237.6976 | F119: 170830.3285 | G119: 172030.4937 | H119: 172337.4272 | I119: 172970.7649 | J119: 173295.6792 | K119: 172662.6374 | L119: 172868.9905 | M119: 174314.363
A120: Index | B120: =+M114/M113*B119 -> 218.5059937 | C120: =+B120*C119/B119 -> 219.9512975 | D120: 220.4614095 | E120: 222.9596366 | F120: 223.7358029 | G120: 225.3076546 | H120: 225.7096442 | I120: 226.539124 | J120: 226.964663 | K120: 226.1355707 | L120: 226.4058305 | M120: 228.2988292
A121: Monthly% | B121: =B119/M113*100-100 -> -0.1124722507 | C121: =(+C119-B119)/B119*100 -> 0.6614481482 | D121: 0.2319204475 | E121: 1.133181133 | F121: 0.3481196359 | G121: 0.7025481119 | H121: 0.1784180791 | I121: 0.3674986425 | J121: 0.187843471 | K121: -0.3652957575 | L121: 0.1195122919 | M121: 0.8361086204
A122: Annual% | B122: =B119/B113*100-100 -> 1.534486385 | C122: =(C119-C113)/C113*100 -> 2.682734119 | D122: 1.819697089 | E122: 2.853118451 | F122: 2.891142749 | G122: 4.394929449 | H122: 4.309758836 | I122: =(I119-I113)/I113*100 -> 4.213054113 | J122: =(J119-J113)/J113*100 -> 4.284764208 | K122: =(K119-K113)/K113*100 -> 3.248295256 | L122: =(L119-L113)/L113*100 -> 3.407493318 | M122: =(M119-M113)/M113*100 -> 4.364211036
B124: 2018-01-01 | C124: 2018-02-01 | D124: 2018-03-01 | E124: 2018-04-01 | F124: 2018-05-01 | G124: 2018-06-01 | H124: 2018-07-01 | I124: 2018-08-01 | J124: 2018-09-01 | K124: 2018-10-01 | L124: 2018-11-01 | M124: 2018-12-01
A125: HP | B125: 176082.6999 | C125: 179744.3938 | D125: 180752.3661 | E125: 181041.0209 | F125: 179716.3074 | G125: 179000.0714 | H125: 178906.4998 | I125: 179092.6766 | J125: 180566.274 | K125: 181617.7065 | L125: 181696.6361 | M125: 180625.1043
A126: Index | B126: =+M120/M119*B125 -> 230.614813 | C126: =+B126*C125/B125 -> 235.4105188 | D126: 236.7306562 | E126: 237.1087063 | F126: 235.3737343 | G126: 234.4356828 | H126: 234.3131325 | I126: 234.5569675 | J126: 236.4869322 | K126: 237.8639891 | L126: 237.9673629 | M126: 236.563982
A127: Monthly% | B127: =B125/M119*100-100 -> 1.014452764 | C127: =(+C125-B125)/B125*100 -> 2.079530724 | D127: 0.5607809593 | E127: 0.1596962953 | F127: -0.7317200944 | G127: -0.398537034 | H127: -0.0522745772 | I127: 0.1040637428 | J127: 0.8228127549 | K127: 0.5822972515 | L127: 0.04345923951 | M127: -0.5897367379
A128: Annual% | B128: =B125/B119*100-100 -> 5.54164172 | C128: =(C125-C119)/C119*100 -> 7.028474721 | D128: 7.379634699 | E128: =(E125-E119)/E119*100 -> 6.34602293 | F128: 5.201640144 | G128: =(G125-G119)/G119*100 -> 4.05136177 | H128: 3.81175043 | I128: =(I125-I119)/I119*100 -> 3.539275391 | J128: 4.195485339 | K128: =(K125-K119)/K119*100 -> 5.186454442 | L128: 5.106552426 | M128: =(M125-M119)/M119*100 -> 3.620322027
B130: 2019-01-01 | C130: 2019-02-01 | D130: 2019-03-01 | E130: 2019-04-01 | F130: 2019-05-01 | G130: 2019-06-01 | H130: 2019-07-01 | I130: 2019-08-01 | J130: 2019-09-01 | K130: 2019-10-01 | L130: 2019-11-01 | M130: 2019-12-01
A131: HP | B131: 180385.5162 | C131: 179999.0682 | D131: 181415.636 | E131: 182408.6776 | F131: 183262.056 | G131: 183743.0421 | H131: 183840.6051 | I131: 183447.4615 | J131: 183787.9292 | K131: 183696.1456 | L131: 184351.6825 | M131: 184551.5959
A132: Index | B132: =+M126/M125*B131 -> 236.2501943 | C132: =+B132*C131/B131 -> 235.7440649 | D132: 237.5993382 | E132: 238.8999208 | F132: 240.0175871 | G132: 240.6475327 | H132: 240.7753106 | I132: 240.2604119 | J132: 240.7063212 | K132: 240.5861126 | L132: 241.4446666 | M132: 241.7064924
A133: Monthly% | B133: =B131/M125*100-100 -> -0.1326438854 | C133: =(+C131-B131)/B131*100 -> -0.2142345062 | D133: 0.786986205 | E133: 0.5473847765 | F133: 0.4678387299 | G133: 0.2624581036 | H133: 0.05309751061 | I133: -0.2138502619 | J133: 0.1855941517 | K133: -0.04993995118 | L133: 0.3568593449 | M133: 0.1084413
A134: Annual% | B134: =B131/B125*100-100 -> 2.443633732 | C134: =(C131-C125)/C125*100 -> 0.141686971 | D134: 0.3669494908 | E134: =(E131-E125)/E125*100 -> 0.7554401876 | F134: 1.972969871 | G134: =(G131-G125)/G125*100 -> 2.649703276 | H134: 2.757923984 | I134: =(I131-I125)/I125*100 -> 2.431581756 | J134: 1.784195439 | K134: =(K131-K125)/K125*100 -> 1.144403381 | L134: 1.461252347 | M134: =(M131-M125)/M125*100 -> 2.173834889
B136: 2020-01-01 | C136: 2020-02-01 | D136: 2020-03-01 | E136: 2020-04-01 | F136: 2020-05-01 | G136: 2020-06-01 | H136: 2020-07-01 | I136: 2020-08-01 | J136: 2020-09-01 | K136: 2020-10-01 | L136: 2020-11-01 | M136: 2020-12-01
A137: HP | B137: 185346.9667 | C137: 185855.0766 | D137: 185212.0561 | E137: 184395.7508 | F137: 183489.6241 | G137: 186083.4169 | H137: 187299.0037 | I137: 188173.3119 | J137: 188004.4822 | K137: 190756.8781 | L137: 195080.8007 | M137: 198424.6561
A138: Index | B138: =+M132/M131*B137 -> 242.7481864 | C138: =+B138*C137/B137 -> 243.4136559 | D138: =+C138*D137/C137 -> 242.5714944 | E138: =+D138*E137/D137 -> 241.5023827 | F138: =+E138*F137/E137 -> 240.3156322 | G138: =+F138*G137/F137 -> 243.7127123 | H138: =+G138*H137/G137 -> 245.3047615 | I138: 246.4498394 | J138: 246.2287239 | K138: 249.8335258 | L138: 255.4965501 | M138: 259.8759842
A139: Monthly% | B139: =B137/M131*100-100 -> 0.4309747762 | C139: =(+C137-B137)/B137*100 -> 0.2741398373 | D139: =(+D137-C137)/C137*100 -> -0.3459795254 | E139: =(+E137-D137)/D137*100 -> -0.4407408726 | F139: =(+F137-E137)/E137*100 -> -0.4914032423 | G139: =(+G137-F137)/F137*100 -> 1.413590982 | H139: =(+H137-G137)/G137*100 -> 0.6532483287 | I139: 0.4667980719 | J139: -0.08972030134 | K139: 1.46400547 | L139: 2.266719085 | M139: 1.714087397
A140: Annual% | B140: =B137/B131*100-100 -> 2.750470562 | C140: =(C137-C131)/C131*100 -> 3.25335485 | D140: 2.092664199 | E140: 1.089352374 | F140: 0.1241763443 | G140: 1.273721583 | H140: 1.881194099 | I140: =(I137-I131)/I131*100 -> 2.576132877 | J140: 2.294249118 | K140: =(K137-K131)/K131*100 -> 3.843702014 | L140: 5.819918757 | M140: =(M137-M131)/M131*100 -> 7.51717163
B142: 2021-01-01 | C142: 2021-02-01 | D142: 2021-03-01 | E142: 2021-04-01 | F142: 2021-05-01 | G142: 2021-06-01 | H142: 2021-07-01 | I142: 2021-08-01 | J142: 2021-09-01 | K142: 2021-10-01 | L142: 2021-11-01 | M142: 2021-12-01
A143: HP | B143: 200218.6008 | C143: 202208.7714 | D143: 206402.2086 | E143: 204086.8227 | F143: 204011.0626 | G143: 201813.8834 | H143: 207343.7635 | I143: 211028.9919
A144: Index | B144: =+M138/M137*B143 -> 262.2255065 | C144: =+B144*C143/B143 -> 264.8320251 | D144: 270.3241531 | E144: 267.2917013 | F144: 267.1924786 | G144: 264.3148418 | H144: 271.5573038 | I144: 276.3838328
A145: Monthly% | B145: =B143/M137*100-100 -> 0.9040936412 | C145: =(+C143-B143)/B143*100 -> 0.9939988898 | D145: 2.073815643 | E145: -1.121783488 | F145: -0.03712150639 | G145: -1.076990207 | H145: 2.740089049 | I145: 1.777351906
A146: Annual% | B146: =B143/B137*100-100 -> 8.02367276 | C146: =(C143-C137)/C137*100 -> 8.799165014 | D146: 11.44102224 | E146: =(E143-E137)/E137*100 -> 10.67870153 | F146: 11.1839776 | G146: =(G143-G137)/G137*100 -> 8.453448872 | H146: 10.70201091 | I146: =(I143-I137)/I137*100 -> 12.14607948

Sheet SERIES CHARTS
B2: WALKER FRASER STEELE HPI (SCOTLAND) NATIONAL AND REGIONAL FORMATTED DATA FROM 2000
B3: A TRUE MEASURE OF HOUSE PRICE INFLATION | M3: =SERIES!$K$3 -> AUGUST 2021
O5: © Acadata Limited
O6: Walker Fraser Steele HPI (Scotland) clb/cms
C7: SCOTLAND | O7: www.acadata.co.uk

Sheet DATA
B2: WALKER FRASER STEELE HPI (SCOTLAND) NATIONAL AND REGIONAL FORMATTED DATA FROM 2000
B3: A TRUE MEASURE OF HOUSE PRICE INFLATION
H4: =SERIES!$K$3 -> AUGUST 2021
H5: © Acadata Limited
D6: SCOTLAND | H6: Walker Fraser Steele HPI (Scotland) clb/cms
D9: Month | E9: Average House Price | F9: Index | G9: Monthly% | H9: Annual%
D10: 2000-01-01 | E10: 76353.59484 | F10: 100
D11: 2000-02-01 | E11: 76365.32758 | F11: 100.0153663 | G11: =(E11-E10)/E10*100 -> 0.01536632876
D12: 2000-03-01 | E12: 76377.06033 | F12: 100.0307327 | G12: =(E12-E11)/E11*100 -> 0.01536396788
D13: 2000-04-01 | E13: 76251.79602 | F13: 99.8666745 | G13: -0.1640077531
D14: 2000-05-01 | E14: 76126.53172 | F14: 99.70261634 | G14: -0.1642771804
D15: 2000-06-01 | E15: 76001.26742 | F15: 99.53855819 | G15: -0.1645474944
D16: 2000-07-01 | E16: 76162.42012 | F16: 99.74961923 | G16: 0.2120394838
D17: 2000-08-01 | E17: 76323.57281 | F17: 99.96068028 | G17: 0.2115908277
D18: 2000-09-01 | E18: 76484.72551 | F18: 100.1717413 | G18: 0.2111440663
D19: 2000-10-01 | E19: 76455.73873 | F19: 100.1337775 | G19: -0.03789878318
D20: 2000-11-01 | E20: 76426.75195 | F20: 100.0958136 | G20: -0.0379131518
D21: 2000-12-01 | E21: 76397.76517 | F21: 100.0578497 | G21: -0.03792753132
D22: 2001-01-01 | E22: 74839 | F22: =+F21*E22/E21 -> 98.01634116 | G22: -2.040328228 | H22: =(E22-E10)/E10*100 -> -1.983658844
D23: 2001-02-01 | E23: 75881 | F23: 99.38104442 | G23: 1.392322185 | H23: =(E23-E11)/E11*100 -> -0.6342244529
D24: 2001-03-01 | E24: 76923 | F24: =+F23*E24/E23 -> 100.7457477 | G24: 1.373202778 | H24: 0.7147953485
D25: 2001-04-01 | E25: 76091.02786 | F25: 99.65611707 | G25: -1.081564864 | H25: -0.2108385295
D26: 2001-05-01 | E26: 75259.05572 | F26: 98.56648646 | G26: -1.093390593 | H26: -1.139518622
D27: 2001-06-01 | E27: 74427.08358 | F27: 97.47685585 | G27: -1.105477783 | H27: -2.071259992
D28: 2001-07-01 | E28: 73998.74498 | F28: 96.91586249 | G28: -0.5755144217 | H28: -2.840869732
D29: 2001-08-01 | E29: 73513.82021 | F29: 96.28075845 | G29: -0.6553148496 | H29: -3.681369328
D30: 2001-09-01 | E30: 72996.15624 | F30: 95.60277601 | G30: -0.7041723156 | H30: -4.561131967
D31: 2001-10-01 | E31: 73611.67995 | F31: 96.40892496 | G31: 0.8432275545 | H31: -3.719876139
D32: 2001-11-01 | E32: 74698.38209 | F32: 97.83217443 | G32: 1.476263196 | H32: -2.261472349
D33: 2001-12-01 | E33: 75445.81804 | F33: 98.81108834 | G33: 1.000605284 | H33: -1.246040537
D34: 2002-01-01 | E34: 77116.65019 | F34: 100.9993706 | G34: 2.214612013 | H34: 3.043400091
D35: 2002-02-01 | E35: 78149.2938 | F35: 102.3518198 | G35: 1.339066989 | H35: 2.989277685
D36: 2002-03-01 | E36: 80084.87904 | F36: 104.8868481 | G36: 2.476778927 | H36: 4.110446864
D37: 2002-04-01 | E37: 80518.38514 | F37: =+F36*E37/E36 -> 105.4546093 | G37: 0.5413082984 | H37: 5.81850108
D38: 2002-05-01 | E38: 81107.81008 | F38: =+F37*E38/E37 -> 106.2265768 | G38: 0.7320377065 | H38: 7.771495805
D39: 2002-06-01 | E39: 80809.37894 | F39: 105.8357227 | G39: -0.3679437759 | H39: 8.575232366
D40: 2002-07-01 | E40: 81206.39994 | F40: 106.3556996 | G40: 0.4913056003 | H40: 9.740239467
D41: 2002-08-01 | E41: 81888.48991 | F41: 107.2490301 | G41: 0.8399460775 | H41: 11.3919664
D42: 2002-09-01 | E42: 83050.00653 | F42: 108.7702638 | G42: 1.418412546 | H42: 13.77312286
D43: 2002-10-01 | E43: 83727.68947 | F43: 109.6578225 | G43: 0.8159938501 | H43: 13.74239731
D44: 2002-11-01 | E44: 84588.5895 | F44: 110.7853398 | G44: 1.028214244 | H44: 13.2401896
D45: 2002-12-01 | E45: 84479.58182 | F45: 110.6425729 | G45: -0.1288680733 | H45: 11.97384296
D46: 2003-01-01 | E46: 84460.21514 | F46: 110.6172084 | G46: -0.02292468651 | H46: 9.522671077
D47: 2003-02-01 | E47: 84163.5531 | F47: 110.2286713 | G47: -0.3512447055 | H47: 7.695858799
D48: 2003-03-01 | E48: 84348.38153 | F48: 110.4707404 | G48: 0.2196062488 | H48: 5.323729692
D49: 2003-04-01 | E49: 87384.55979 | F49: =+F48*E49/E48 -> 114.447211 | G49: 3.599569087 | H49: 8.52746195
D50: 2003-05-01 | E50: 88493.94647 | F50: =+F49*E50/E49 -> 115.9001703 | G50: 1.26954542 | H50: 9.106566168
D51: 2003-06-01 | E51: 91771.5104 | F51: 120.1927828 | G51: 3.703715404 | H51: 13.56541976
D52: 2003-07-01 | E52: 94041.12009 | F52: 123.1652816 | G52: 2.473109234 | H52: 15.8050599
D53: 2003-08-01 | E53: 94651.33136 | F53: 123.9644729 | G53: 0.648877074 | H53: 15.58563537
D54: 2003-09-01 | E54: 95149.49564 | F54: 124.6169167 | G54: 0.5263151345 | H54: 14.56892013
D55: 2003-10-01 | E55: 96010.19454 | F55: 125.7441706 | G55: 0.9045753632 | H55: 14.66958559
D56: 2003-11-01 | E56: 96919.56191 | F56: 126.9351654 | G56: 0.9471570936 | H56: 14.57758366
D57: 2003-12-01 | E57: 98381.0204 | F57: 128.8492318 | G57: 1.50790869 | H57: 16.45538281
D58: 2004-01-01 | E58: 101914.056 | F58: 133.4764345 | G58: 3.591176024 | H58: 20.66516271
D59: 2004-02-01 | E59: 104354.5972 | F59: 136.6728016 | G59: 2.394705192 | H59: 23.9902468
D60: 2004-03-01 | E60: 105878.7496 | F60: 138.668978 | G60: 1.460551254 | H60: 25.52552601
D61: 2004-04-01 | E61: 105425.5929 | F61: 138.0754804 | G61: -0.4279958806 | H61: 20.64556159
D62: 2004-05-01 | E62: 106179.9803 | F62: 139.0634986 | G62: 0.7155638155 | H62: 19.98558606
D63: 2004-06-01 | E63: 107132.0946 | F63: 140.310479 | G63: 0.8966985486 | H63: 16.73785707
D64: 2004-07-01 | E64: 108981.6522 | F64: 142.7328372 | G64: 1.726427176 | H64: 15.8872333
D65: 2004-08-01 | E65: 111383.3967 | F65: 145.8783925 | G65: 2.203806283 | H65: 17.67758058
D66: 2004-09-01 | E66: 112308.5858 | F66: 147.0901089 | G66: 0.8306345977 | H66: 18.03382141
D67: 2004-10-01 | E67: 112987.5215 | F67: 147.9793082 | G67: 0.6045269684 | H67: 17.68283774
D68: 2004-11-01 | E68: 114379.1453 | F68: 149.8019124 | G68: 1.231661518 | H68: 18.01450917
D69: 2004-12-01 | E69: 117830.5747 | F69: 154.3222359 | G69: 3.017533871 | H69: 19.76962044
D70: 2005-01-01 | E70: 119546.5527 | F70: 156.5696454 | G70: 1.456309619 | H70: 17.30133937
D71: 2005-02-01 | E71: 120158.1564 | F71: 157.3706604 | G71: 0.5116029565 | H71: 15.14409487
D72: 2005-03-01 | E72: 118996.1155 | F72: 155.84874 | G72: -0.9670928351 | H72: 12.38904498
D73: 2005-04-01 | E73: 121340.4191 | F73: 158.9190651 | G73: 1.970067319 | H73: 15.09579006
D74: 2005-05-01 | E74: 122449.7652 | F74: 160.3719713 | G74: 0.914242882 | H74: 15.32283664
D75: 2005-06-01 | E75: 123610.0308 | F75: 161.8915665 | G75: 0.9475441049 | H75: 15.38095206
D76: 2005-07-01 | E76: 122286.4456 | F76: 160.1580723 | G76: =(E76-E75)/E75*100 -> -1.070774858 | H76: 12.20828746
D77: 2005-08-01 | E77: 123637.8889 | F77: 161.9280521 | G77: 1.105145566 | H77: 11.00208153
D78: 2005-09-01 | E78: 125122.3729 | F78: 163.872275 | G78: 1.200670803 | H78: 11.40944571
D79: 2005-10-01 | E79: 127686.5451 | F79: 167.2305611 | G79: 2.049331509 | H79: 13.00942215
D80: 2005-11-01 | E80: 128215.1473 | F80: 167.9228693 | G80: 0.4139842568 | H80: 12.09661253
D81: 2005-12-01 | E81: 128597.2169 | F81: 168.4232644 | G81: 0.2979910283 | H81: 9.137392592
D82: 2006-01-01 | E82: 128685.4167 | F82: 168.5387794 | G82: 0.06858609395 | H82: 7.644606902
D83: 2006-02-01 | E83: 130134.7299 | F83: 170.4369391 | G83: 1.126245105 | H83: 8.302868342
D84: 2006-03-01 | E84: 132546.6158 | F84: 173.5957765 | G84: 1.853376004 | H84: 11.38734676
D85: 2006-04-01 | E85: 134272.3314 | F85: 175.8559394 | G85: 1.30196883 | H85: 10.65754713
D86: 2006-05-01 | E86: 136123.782 | F86: 178.2807769 | G86: 1.37887723 | H86: 11.16704208
D87: 2006-06-01 | E87: 137043.661 | F87: 179.4855386 | G87: 0.675766505 | H87: =(E87-E75)/E75*100 -> 10.86775088
D88: 2006-07-01 | E88: 137973.8671 | F88: 180.703826 | G88: 0.6787662917 | H88: 12.82842218
D89: 2006-08-01 | E89: 138573.1619 | F89: 181.48872 | G89: 0.4343538484 | H89: 12.07985126
D90: 2006-09-01 | E90: 140564.496 | F90: 184.0967623 | G90: 1.437027199 | H90: 12.34161622
D91: 2006-10-01 | E91: 142837.4719 | F91: 187.0736698 | G91: 1.617034145 | H91: 11.86571909
D92: 2006-11-01 | E92: 144202.4887 | F92: 188.8614269 | G92: 0.9556433957 | H92: 12.46915186
D93: 2006-12-01 | E93: 146238.4342 | F93: 191.5278966 | G93: 1.411865689 | H93: 13.71819521
D94: 2007-01-01 | E94: 148878.8945 | F94: 194.986097 | G94: 1.805585755 | H94: 15.69212603
D95: 2007-02-01 | E95: 151318.3444 | F95: 198.1810349 | G95: 1.638546488 | H95: 16.27821757
D96: 2007-03-01 | E96: 150822.7922 | F96: 197.5320121 | G96: -0.327489877 | H96: 13.78848961
D97: 2007-04-01 | E97: 152152.6842 | F97: 199.2737664 | G97: 0.881757998 | H97: 13.31648343
D98: 2007-05-01 | E98: 153597.9959 | F98: 201.1666853 | G98: 0.9499087568 | H98: 12.83700289
D99: 2007-06-01 | E99: 157093.9446 | F99: 205.7453155 | G99: 2.276038 | H99: 14.63058088
D100: 2007-07-01 | E100: 158430.4032 | F100: 207.4956701 | G100: 0.8507384681 | H100: 14.82638454
D101: 2007-08-01 | E101: 159678.5749 | F101: 209.1303956 | G101: 0.7878359485 | H101: 15.23051988
D102: 2007-09-01 | E102: 160238.671 | F102: 209.8639512 | G102: 0.3507647303 | H102: 13.99654652
D103: 2007-10-01 | E103: 160731.1106 | F103: 210.5088973 | G103: 0.3073162913 | H103: 12.52727206
D104: 2007-11-01 | E104: 161264.1185 | F104: 211.2069758 | G104: 0.3316146854 | H104: 11.83171661
D105: 2007-12-01 | E105: 161525.9204 | F105: 211.5498566 | G105: 0.1623435437 | H105: 10.45380875
D106: 2008-01-01 | E106: 161217.1976 | F106: 211.1455236 | G106: -0.1911289526 | H106: 8.287476299
D107: 2008-02-01 | E107: 161512.6364 | F107: 211.5324586 | G107: 0.1832551354 | H107: 6.736983565
D108: 2008-03-01 | E108: 162262.5529 | F108: 212.5146213 | G108: 0.4643082744 | H108: 7.584901874
D109: 2008-04-01 | E109: 162634.8099 | F109: 213.0021647 | G109: 0.2294164023 | H109: 6.889215082
D110: 2008-05-01 | E110: 162418.5012 | F110: 212.7188662 | G110: -0.1330026756 | H110: 5.742591431
D111: 2008-06-01 | E111: 162080.3183 | F111: 212.2759493 | G111: -0.2082170018 | H111: 3.174134861
D112: 2008-07-01 | E112: 161531.0338 | F112: 211.5565537 | G112: -0.3388964449 | H112: 1.957093174
D113: 2008-08-01 | E113: 160166.6716 | F113: 209.7696539 | G113: -0.8446440341 | H113: 0.3056745068
D114: 2008-09-01 | E114: 158281.509 | F114: =+F113*E114/E113 -> 207.3006639 | G114: -1.177000559 | H114: -1.221404318
D115: 2008-10-01 | E115: 156156.4534 | F115: 204.517487 | G115: -1.342579832 | H115: -2.846155414
D116: 2008-11-01 | E116: 155346.0428 | F116: 203.4560955 | G116: -0.5189734466 | H116: -3.669803149
D117: 2008-12-01 | E117: 154593.9372 | F117: 202.4710658 | G117: -0.4841485438 | H117: -4.291560866
D118: 2009-01-01 | E118: 152045.0459 | F118: 199.1327929 | G118: -1.648765389 | H118: -5.689313457
D119: 2009-02-01 | E119: 149724.5893 | F119: 196.0937002 | G119: -1.526163874 | H119: -7.298529291
D120: 2009-03-01 | E120: 146013.184 | F120: 191.2328873 | G120: -2.478821544 | H120: -10.01424463
D121: 2009-04-01 | E121: 147751.222 | F121: 193.5091889 | G121: 1.190329556 | H121: -9.151538855
D122: 2009-05-01 | E122: 147992.9816 | F122: 193.8258205 | G122: 0.1636261261 | H122: -8.881697257
D123: 2009-06-01 | E123: 149251.4853 | F123: 195.4740778 | G123: 0.8503806664 | H123: -7.915108426
D124: 2009-07-01 | E124: 147902.2906 | F124: 193.7070428 | G124: -0.9039740538 | H124: -8.437228978
D125: 2009-08-01 | E125: 147486.002 | F125: 193.1618312 | G125: -0.2814619632 | H125: -7.917171231
D126: 2009-09-01 | E126: 147842.6705 | F126: 193.6289585 | G126: 0.241832107 | H126: -6.5951093
D127: 2009-10-01 | E127: 148972.5521 | F127: 195.1087599 | G127: 0.7642459329 | H127: -4.600451119
D128: 2009-11-01 | E128: 150460.6283 | F128: 197.0576875 | G128: 0.9988928809 | H128: -3.144859355
D129: 2009-12-01 | E129: 151730.383 | F129: 198.7206801 | G129: 0.8439115892 | H129: -1.852306971
D130: 2010-01-01 | E130: 152661.7477 | F130: 199.9404848 | G130: 0.6138287729 | H130: 0.4056046666
D131: 2010-02-01 | E131: 154068.6614 | F131: 201.7831141 | G131: 0.9215888903 | H131: 2.901375179
D132: 2010-03-01 | E132: 154577.4637 | F132: 202.4494905 | G132: 0.3302438685 | H132: 5.865415385
D133: 2010-04-01 | E133: 155317.8321 | F133: 203.419148 | G133: 0.4789627045 | H133: 5.121182734
D134: 2010-05-01 | E134: 154852.568 | F134: 202.8097935 | G134: -0.2995561171 | H134: 4.63507548
D135: 2010-06-01 | E135: 154683.0882 | F135: 202.5878264 | G135: -0.1094459447 | H135: 3.63922867
D136: 2010-07-01 | E136: 154827.4026 | F136: 202.7768344 | G136: 0.09329680389 | H136: 4.682220873
D137: 2010-08-01 | E137: 155802.0126 | F137: 204.0532772 | G137: 0.629481583 | H137: 5.638508394
D138: 2010-09-01 | E138: 156601.7032 | F138: 205.1006289 | G138: 0.5132736322 | H138: 5.924563399
D139: 2010-10-01 | E139: 156641.3644 | F139: 205.152573 | G139: 0.0253261389 | H139: 5.1478022
D140: 2010-11-01 | E140: 155575.4445 | F140: 203.756542 | G140: =(E140-E139)/E139*100 -> -0.6804842564 | H140: 3.399438331
D141: 2010-12-01 | E141: 156068.1909 | F141: 204.40189 | G141: 0.3167250285 | H141: 2.858892121
D142: 2011-01-01 | E142: 155922.8539 | F142: 204.2115427 | G142: -0.09312405573 | H142: 2.136164583
D143: 2011-02-01 | E143: 155414.299 | F143: 203.5454903 | G143: -0.326158024 | H143: 0.8734012277
D144: 2011-03-01 | E144: 154256.8621 | F144: 202.0295998 | G144: -0.744742878 | H144: -0.2074051694
D145: 2011-04-01 | E145: 153356.6005 | F145: 200.8505308 | G145: -0.5836120169 | H145: -1.262721484
D146: 2011-05-01 | E146: 153312.4542 | F146: 200.7927126 | G146: -0.02878667422 | H146: -0.9945678347
D147: 2011-06-01 | E147: 152381.6377 | F147: 199.5736259 | G147: -0.6071369291 | H147: -1.487848821
D148: 2011-07-01 | E148: 152858.8046 | F148: 200.1985694 | G148: =(E148-E147)/E147*100 -> 0.3131393479 | H148: =(E148-E136)/E136*100 -> -1.271479067
D149: 2011-08-01 | E149: 153867.7273 | F149: 201.5199516 | G149: 0.6600357662 | H149: -1.241502074
D150: 2011-09-01 | E150: 155173.7851 | F150: 203.2304902 | G150: 0.8488185053 | H150: -0.9118151932
D151: 2011-10-01 | E151: 155421.5177 | F151: 203.5549446 | G151: 0.1596485007 | H151: -0.778751303
D152: 2011-11-01 | E152: 155251.0114 | F152: 203.3316333 | G152: -0.1097056983 | H152: -0.208537475
D153: 2011-12-01 | E153: 154502.3813 | F153: 202.3511553 | G153: -0.4822063132 | H153: -1.003285579
D154: 2012-01-01 | E154: 153010.4828 | F154: 200.3972219 | G154: =(E154-E153)/E153*100 -> -0.9656151605 | H154: =(E154-E142)/E142*100 -> -1.867828204
D155: 2012-02-01 | E155: 152741.8307 | F155: 200.0453692 | G155: -0.175577616 | H155: -1.719576845
D156: 2012-03-01 | E156: 153018.2535 | F156: 200.4073991 | G156: 0.1809738855 | H156: -0.8029519947
D157: 2012-04-01 | E157: 153941.0672 | F157: 201.6160046 | G157: 0.6030742822 | H157: 0.381116147
D158: 2012-05-01 | E158: 153717.4092 | F158: 201.3230805 | G158: -0.1452880852 | H158: 0.2641370559
D159: 2012-06-01 | E159: 154287.9908 | F159: 202.070369 | G159: 0.3711886713 | H159: 1.251038621
D160: 2012-07-01 | E160: 153637.8253 | F160: 201.2188498 | G160: =(E160-E159)/E159*100 -> -0.4213973495 | H160: =(E160-E148)/E148*100 -> 0.5096342144
D161: 2012-08-01 | E161: 152549.3917 | F161: 199.7933326 | G161: -0.708441204 | H161: -0.856798041
D162: 2012-09-01 | E162: 152202.0363 | F162: 199.3384026 | G162: -0.2277002661 | H162: -1.915110072
D163: 2012-10-01 | E163: 151244.5304 | F163: 198.084361 | G163: -0.629101872 | H163: -2.687521863
D164: 2012-11-01 | E164: 150696.9102 | F164: 197.367145 | G164: -0.3620760262 | H164: -2.933379403
D165: 2012-12-01 | E165: 149196.7319 | F165: 195.4023674 | G165: -0.9954937516 | H165: -3.434024315
D166: 2013-01-01 | E166: 149418.4006 | F166: 195.692686 | G166: =(E166-E165)/E165*100 -> 0.1485747606 | H166: =(E166-E154)/E154*100 -> -2.34760532
D167: 2013-02-01 | E167: 150675.2693 | F167: 197.3388019 | G167: 0.8411739525 | H167: -1.35297672
D168: 2013-03-01 | E168: 151088.7522 | F168: 197.8803389 | G168: 0.2744199315 | H168: -1.260961501
D169: 2013-04-01 | E169: 151322.8702 | F169: 198.1869623 | G169: 0.1549539241 | H169: -1.700778809
D170: 2013-05-01 | E170: 151030.3519 | F170: 197.8038522 | G170: -0.1933074028 | H170: -1.748050104
D171: 2013-06-01 | E171: 151099.1496 | F171: 197.8939562 | G171: 0.04555221444 | H171: -2.066811068
D172: 2013-07-01 | E172: 151770.8162 | F172: 198.7736354 | G172: =(E172-E171)/E171*100 -> 0.4445204851 | H172: =(E172-E160)/E160*100 -> -1.215201458
D173: 2013-08-01 | E173: 151774.5707 | F173: 198.7785526 | G173: 0.00247376701 | H173: -0.5079148265
D174: 2013-09-01 | E174: 152175.5071 | F174: 199.3036574 | G174: 0.264165711 | H174: -0.01743027503
D175: 2013-10-01 | E175: 152261.7221 | F175: 199.4165729 | G175: 0.05665502616 | H175: 0.6725477586
D176: 2013-11-01 | E176: 153563.4147 | F176: 201.1213946 | G176: 0.8549046943 | H176: 1.902165406
D177: 2013-12-01 | E177: 154452.2577 | F177: 202.2855086 | G177: 0.5788116388 | H177: 3.522547492
D178: 2014-01-01 | E178: 156560.491 | F178: =+F177*E178/E177 -> 205.0466535 | G178: =(E178-E177)/E177*100 -> 1.364974146 | H178: =(E178-E166)/E166*100 -> 4.779926975
D179: 2014-02-01 | E179: 155650.7538 | F179: 203.8551743 | G179: -0.5810771223 | H179: 3.302124229
D180: 2014-03-01 | E180: 156646.4733 | F180: 205.1592641 | G180: 0.6397138725 | H180: 3.678447923
D181: 2014-04-01 | E181: 156644.8925 | F181: 205.1571938 | G181: -0.001009133686 | H181: 3.516998018
D182: 2014-05-01 | E182: 158997.5656 | F182: 208.2384804 | G182: 1.501914945 | H182: 5.275240114
D183: 2014-06-01 | E183: 159974.5717 | F183: 209.5180614 | G183: 0.6144786535 | H183: 5.873906084
D184: 2014-07-01 | E184: 160403.811 | F184: =+F183*E184/E183 -> 210.0802344 | G184: =(E184-E183)/E183*100 -> 0.2683172301 | H184: =(E184-E172)/E172*100 -> 5.688178412
D185: 2014-08-01 | E185: 160691.799 | F185: 210.4574111 | G185: 0.1795393228 | H185: 5.875311144
D186: 2014-09-01 | E186: 160616.9963 | F186: 210.3594424 | G186: -0.04655037264 | H186: 5.547206264
D187: 2014-10-01 | E187: 161012.7436 | F187: 210.877751 | G187: 0.2463918873 | H187: 5.747354826
D188: 2014-11-01 | E188: 160013.9614 | F188: 209.56965 | G188: -0.6203124698 | H188: 4.200575189
D189: 2014-12-01 | E189: 160670.138 | F189: 210.4290418 | G189: 0.4100745738 | H189: 4.025762035
D190: 2015-01-01 | E190: 162051.6969 | F190: =+F189*E190/E189 -> 212.238464 | G190: =(E190-E189)/E189*100 -> 0.8598728186 | H190: =(E190-E178)/E178*100 -> 3.50740201
D191: 2015-02-01 | E191: 166851.8479 | F191: 218.5252027 | G191: 2.962110954 | H191: 7.196299275
D192: 2015-03-01 | E192: 182167.4015 | F192: 238.5839225 | G192: 9.179133345 | H192: 16.29205412
D193: 2015-04-01 | E193: 179173.1127 | F193: 234.6623143 | G193: -1.643701772 | H193: 14.38171383
D194: 2015-05-01 | E194: 175125.6645 | F194: 229.3613874 | G194: -2.258959605 | H194: 10.14361373
D195: 2015-06-01 | E195: 159334.7553 | F195: 208.6800963 | G195: -9.016901815 | H195: -0.3999488324
D196: 2015-07-01 | E196: 160616.0544 | F196: =+F195*E196/E195 -> 210.3582087 | G196: =(E196-E195)/E195*100 -> 0.8041554646 | H196: =(E196-E184)/E184*100 -> 0.1323181593
D197: 2015-08-01 | E197: 161352.3273 | F197: 211.3225025 | G197: 0.4584055601 | H197: 0.4110529487
D198: 2015-09-01 | E198: 162150.3142 | F198: 212.3676227 | G198: 0.4945617213 | H198: 0.9546423428
D199: 2015-10-01 | E199: 162814.7734 | F199: 213.2378623 | G199: 0.4097797901 | H199: 1.119184597
D200: 2015-11-01 | E200: 163645.6985 | F200: 214.3261216 | G200: 0.5103499582 | H200: 2.269637628
D201: 2015-12-01 | E201: 163983.8199 | F201: 214.7689578 | G201: 0.2066179491 | H201: 2.062413051
D202: 2016-01-01 | E202: 164315.7779 | F202: =+F201*E202/E201 -> 215.2037218 | G202: =(E202-E201)/E201*100 -> 0.2024333525 | H202: =(E202-E190)/E190*100 -> 1.397135012
D203: 2016-02-01 | E203: 163553.0296 | F203: 214.2047535 | G203: -0.4641965938 | H203: -1.977094263
... 66 more rows

Sheet REGIONS
B2: WALKER FRASER STEELE HPI (SCOTLAND) NATIONAL AND REGIONAL FORMATTED DATA FROM 2000
B3: A TRUE MEASURE OF HOUSE PRICE INFLATION
J4: =SERIES!$K$3 -> AUGUST 2021
J5: © Acadata Limited
I6: Walker Fraser Steele HPI (Scotland) clb/cms
B8: SCOTLAND
A10: Region | B10: North East | E10: North West | H10: Yorks & Humber | K10: East Midlands | N10: West Midlands | Q10: East of England | T10: Greater London | W10: South East | Z10: South West | AC10: Wales | AF10: Scotland | AI10: England & Wales
A11: Month | B11: Ave HP | C11: monthly % | D11: annual % | E11: Ave HP | F11: monthly % | G11: annual % | H11: Ave HP | I11: monthly % | J11: annual % | K11: Ave HP | L11: monthly % | M11: annual % | N11: Ave HP | O11: monthly % | P11: annual % | Q11: Ave HP | R11: monthly % | S11: annual % | T11: Ave HP | U11: monthly % | V11: annual % | W11: Ave HP | X11: monthly % | Y11: annual % | Z11: Ave HP | AA11: monthly % | AB11: annual % | AC11: Ave HP | AD11: monthly % | AE11: annual % | AF11: Ave HP | AG11: monthly % | AH11: annual % | AI11: Ave HP | AJ11: monthly % | AK11: annual %
A12: 2005-01-01 | B12: 134756.7201 | C12: 1.787195459 | D12: 18.41357745 | E12: 147565.1128 | F12: 0.6202324158 | G12: 17.72122221 | H12: 146570.9413 | I12: 1.224523287 | J12: 19.16050612 | K12: 160711.0954 | L12: 0.8558501427 | M12: 14.94844457 | N12: 166193.5832 | O12: -0.03406736774 | P12: 12.65906114 | Q12: 200762.357 | R12: 0.4202068529 | S12: 11.47132059 | T12: 271279.5386 | U12: 0.2331679206 | V12: 7.43113517 | W12: 232324.3428 | X12: 0.3789957423 | Y12: 9.252925948 | Z12: 203708.7319 | AA12: -0.1182368343 | AB12: 12.78372579 | AC12: 144041.1815 | AD12: 0.05234257765 | AE12: 19.84661039 | AF12: 119546.5527 | AG12: 1.456309619 | AH12: 17.30133937 | AI12: 190271.8492 | AJ12: 0.4115428069 | AK12: 12.42897829
A13: 2005-02-01 | B13: 136369.4652 | C13: =B13/B12*100-100 -> 1.196782715 | D13: 18.24666448 | E13: 150284.2167 | F13: =E13/E12*100-100 -> 1.842646818 | G13: 17.97209576 | H13: 147649.4286 | I13: =H13/H12*100-100 -> 0.7358124963 | J13: 17.68656358 | K13: 161002.8294 | L13: =K13/K12*100-100 -> 0.1815269812 | M13: 13.3993613 | N13: 167724.0077 | O13: =N13/N12*100-100 -> 0.9208685961 | P13: 12.31091077 | Q13: 202187.3601 | R13: =Q13/Q12*100-100 -> 0.7097959475 | S13: 10.52030493 | T13: 271851.2781 | U13: =T13/T12*100-100 -> 0.2107565817 | V13: 7.075987743 | W13: 232609.8808 | X13: =W13/W12*100-100 -> 0.1229049159 | Y13: 7.815380763 | Z13: 204971.6459 | AA13: 0.591030347 | AB13: 11.77166275 | AC13: 145049.9126 | AD13: =AC13/AC12*100-100 -> 0.7003074231 | AE13: 18.64948655 | AF13: 120158.1564 | AG13: 0.5116029565 | AH13: 15.14409487 | AI13: 191414.9615 | AJ13: 0.6007784313 | AK13: 11.56690303
A14: 2005-03-01 | B14: 137418.2599 | C14: 0.7690832532 | D14: 16.83165055 | E14: 149960.0229 | F14: -0.215720437 | G14: 16.18234169 | H14: 147812.1173 | I14: 0.1101857819 | J14: 15.0557187 | K14: 159651.8881 | L14: -0.8390792568 | M14: 11.50532094 | N14: 166719.6859 | O14: -0.5987943228 | P14: 10.19038133 | Q14: 201804.8859 | R14: -0.1891682023 | S14: 9.296533057 | T14: 273117.9143 | U14: 0.4659298156 | V14: 5.968935225 | W14: 233167.614 | X14: 0.2397719271 | Y14: 7.057199689 | Z14: 204303.4667 | AA14: -0.3364909269 | AB14: 9.848721283 | AC14: 144564.3788 | AD14: -0.3347356333 | AE14: 15.97348662 | AF14: 118996.1155 | AG14: -0.9670928351 | AH14: 12.38904498 | AI14: 191307.3842 | AJ14: -0.05620105788 | AK14: 10.05668617
A15: 2005-04-01 | B15: 136755.4199 | C15: -0.4823521965 | D15: 13.40575041 | E15: 150247.0447 | F15: 0.1913988827 | G15: 14.38827488 | H15: 147433.8456 | I15: -0.2559138504 | J15: 12.24617642 | K15: 158613.9968 | L15: -0.6500964638 | M15: 9.655213959 | N15: 168010.1 | O15: 0.7740022248 | P15: 10.03688952 | Q15: 202938.0664 | R15: 0.5615228469 | S15: 8.712671604 | T15: 272685.4489 | U15: -0.1583438497 | V15: 4.735857107 | W15: 232903.8483 | X15: -0.1131227746 | Y15: 6.155496492 | Z15: 204221.0557 | AA15: -0.05655692176 | AB15: 8.490142017 | AC15: 145502.1926 | AD15: 0.6487170412 | AE15: 15.58511553 | AF15: 121340.4191 | AG15: 1.970067319 | AH15: 15.09579006 | AI15: 191385.9312 | AJ15: 0.04105799294 | AK15: 8.82201599
A16: 2005-05-01 | B16: 136830.9781 | C16: 0.05525059807 | D16: 10.30568043 | E16: 150079.9527 | F16: -0.1112115339 | G16: 11.92815771 | H16: 147059.2583 | I16: -0.2540714383 | J16: 10.26235581 | K16: 159119.5035 | L16: 0.3187024574 | M16: 8.302856087 | N16: 168082.1956 | O16: 0.04291151182 | P16: 8.648587367 | Q16: 202701.4886 | R16: -0.1165763381 | S16: 7.453208946 | T16: 272466.8494 | U16: -0.08016541851 | V16: 3.968342559 | W16: 231185.5067 | X16: -0.7377901326 | Y16: 4.652096527 | Z16: 202019.9447 | AA16: -1.033944516 | AB16: 5.581022937 | AC16: 145543.4449 | AD16: 0.02835171683 | AE16: 13.24568753 | AF16: 122449.7652 | AG16: 0.914242882 | AH16: 15.32283664 | AI16: 190789.1467 | AJ16: -0.3118225755 | AK16: 7.129963685
A17: 2005-06-01 | B17: 137267.2078 | C17: 0.3188091411 | D17: 8.823877427 | E17: 151246.271 | F17: 0.7771313432 | G17: 9.853750842 | H17: 147911.0494 | I17: 0.579216268 | J17: 9.705641834 | K17: 159729.6622 | L17: 0.3834594114 | M17: 6.827296657 | N17: 170435.9761 | O17: 1.400374671 | P17: 8.230426393 | Q17: 202341.4581 | R17: -0.1776161117 | S17: 6.033237118 | T17: 272114.8076 | U17: -0.1292053903 | V17: 3.710913042 | W17: 231915.0026 | X17: 0.3155456714 | Y17: 4.054822644 | Z17: 201199.6244 | AA17: -0.3836203743 | AB17: 4.226790689 | AC17: 146687.1131 | AD17: 0.7857916166 | AE17: 11.7652174 | AF17: 123610.0308 | AG17: 0.9475441049 | AH17: 15.38095206 | AI17: 191309.8439 | AJ17: 0.2729176478 | AK17: 6.16485479
A18: 2005-07-01 | B18: 137783.3119 | C18: 0.37598501 | D18: 8.507884767 | E18: 152422.3895 | F18: 0.7776181813 | G18: 8.476201778 | H18: 148362.1275 | I18: 0.3049657574 | J18: 8.126861166 | K18: 160546.5663 | L18: 0.5114291742 | M18: 5.762912311 | N18: 169165.413 | O18: -0.7454782517 | P18: 5.369797916 | Q18: 201714.5675 | R18: -0.3098181956 | S18: 4.710491161 | T18: 272470.6472 | U18: 0.1307682049 | V18: 3.388822858 | W18: 231204.3329 | X18: -0.3064353871 | Y18: 3.251044008 | Z18: 200719.3118 | AA18: -0.2113758757 | AB18: 2.855771828 | AC18: 147834.205 | AD18: 0.7819990876 | AE18: 9.595791398 | AF18: 122286.4456 | AG18: -1.070774858 | AH18: 12.20828746 | AI18: 191319.5554 | AJ18: 0.005076298903 | AK18: 4.98517799
A19: 2005-08-01 | B19: 138373.0962 | C19: 0.4280520792 | D19: 7.798155125 | E19: 152601.7762 | F19: 0.1176904953 | G19: 6.231226793 | H19: 149248.5921 | I19: 0.5975006317 | J19: 6.628566233 | K19: 160597.3848 | L19: 0.03165338877 | M19: 4.484991258 | N19: 168624.2616 | O19: -0.3198948056 | P19: 3.208393163 | Q19: 201854.4364 | R19: 0.06934003558 | S19: 3.975736904 | T19: 272303.1161 | U19: -0.06148594779 | V19: 2.838833148 | W19: 231947.9494 | X19: 0.3216273706 | Y19: 2.737498646 | Z19: 200403.4238 | AA19: -0.184068822 | AB19: 1.727466646 | AC19: 149406.9149 | AD19: 1.063833545 | AE19: 9.15972177 | AF19: 123637.8889 | AG19: 1.105145566 | AH19: 11.00208153 | AI19: 191569.0711 | AJ19: 0.1304183049 | AK19: 3.942171669
A20: 2005-09-01 | B20: 140091.4578 | C20: 1.241832106 | D20: 7.755709402 | E20: 153316.6574 | F20: 0.4684618985 | G20: 5.765045898 | H20: 151066.6283 | I20: 1.21812615 | J20: 6.025177759 | K20: 161756.4117 | L20: 0.7216972714 | M20: 3.849085736 | N20: 167999.3481 | O20: -0.3705952823 | P20: 2.051784181 | Q20: 202349.8623 | R20: 0.2454372087 | S20: 3.304281584 | T20: 273124.8608 | U20: 0.3017757214 | V20: 2.476307471 | W20: 231748.2423 | X20: -0.08609992901 | Y20: 2.340989947 | Z20: 200775.8003 | AA20: 0.1709808307 | AB20: 0.7942042194 | AC20: 150412.0334 | AD20: 0.6727389668 | AE20: 8.126770472 | AF20: 125122.3729 | AG20: 1.200670803 | AH20: 11.40944571 | AI20: 192146.5893 | AJ20: 0.3014673324 | AK20: 3.340515889
A21: 2005-10-01 | B21: 142331.074 | C21: 1.598681524 | D21: 8.382161243 | E21: 154102.8241 | F21: 0.5127731793 | G21: 5.612575743 | H21: 152050.8554 | I21: 0.6515185695 | J21: 5.807471291 | K21: 162057.058 | L21: 0.1858636198 | M21: 2.916924074 | N21: 169443.0818 | O21: 0.8593686622 | P21: 2.012019564 | Q21: 203034.9542 | R21: 0.3385679842 | S21: 2.983965851 | T21: 275347.2539 | U21: 0.8136912651 | V21: 2.647194158 | W21: 232702.6849 | X21: 0.4118445926 | Y21: 1.731065963 | Z21: 201807.4069 | AA21: 0.5251594947 | AB21: 0.1786358031 | AC21: 152037.569 | AD21: 1.080721777 | AE21: 7.68163212 | AF21: 127686.5451 | AG21: 2.049331509 | AH21: 13.00942215 | AI21: 193274.487 | AJ21: 0.5869985931 | AK21: 3.02393651
A22: 2005-11-01 | B22: 143448.0991 | C22: 0.7848076212 | D22: 8.664535669 | E22: 154640.8796 | F22: 0.3491536175 | G22: 6.409206823 | H22: 152890.7004 | I22: 0.5523448259 | J22: 5.83861088 | K22: 162408.2043 | L22: 0.2166806392 | M22: 2.705013968 | N22: 170593.674 | O22: 0.6790434864 | P22: 3.138188826 | Q22: 202812.2305 | R22: -0.1096972324 | S22: 2.295450423 | T22: 277410.5781 | U22: 0.7493534671 | V22: 2.745116572 | W22: 233899.7532 | X22: 0.5144196075 | Y22: 1.30681912 | Z22: 203437.5009 | AA22: 0.7998031783 | AB22: 0.416977965 | AC22: 152232.1095 | AD22: 0.1279555041 | AE22: 6.835017084 | AF22: 128215.1473 | AG22: 0.4139842568 | AH22: 12.09661253 | AI22: 194204.6291 | AJ22: 0.4812544204 | AK22: 3.024629596
A23: 2005-12-01 | B23: 144714.2682 | C23: 0.8826670329 | D23: 9.308533908 | E23: 155653.9518 | F23: 0.65511276 | G23: 6.135769532 | H23: 153823.7467 | I23: 0.6102701172 | J23: 6.233440905 | K23: 161668.1958 | L23: -0.4556472195 | M23: 1.45648803 | N23: 171550.1353 | O23: 0.5606663129 | P23: 3.18791458 | Q23: 204679.599 | R23: 0.9207376562 | S23: 2.379589391 | T23: 281287.7725 | U23: 1.397637553 | V23: 3.931039828 | W23: 236091.7499 | X23: 0.9371522265 | Y23: 2.006756924 | Z23: 205363.7195 | AA23: 0.9778553549 | AB23: 0.693230985 | AC23: 153413.6882 | AD23: 0.7761691713 | AE23: 6.562572781 | AF23: 128597.2169 | AG23: 0.2979910283 | AH23: 9.137392592 | AI23: 195787.1787 | AJ23: 0.8148876801 | AK23: 3.322129622
A24: 2006-01-01 | B24: 145185.3195 | C24: 0.3255043724 | D24: =B24/B12*100-100 -> 7.738834409 | E24: 156980.9633 | F24: 0.8525395792 | G24: =E24/E12*100-100 -> 6.380810703 | H24: 155479.1184 | I24: 1.076148346 | J24: =H24/H12*100-100 -> 6.07772389 | K24: 161815.0214 | L24: 0.090819089 | M24: =K24/K12*100-100 -> 0.6869009028 | N24: 172980.5632 | O24: 0.8338249986 | P24: =N24/N12*100-100 -> 4.083779811 | Q24: 204967.8255 | R24: 0.140818365 | S24: =Q24/Q12*100-100 -> 2.094749521 | T24: 282806.8828 | U24: 0.540055589 | V24: =T24/T12*100-100 -> 4.24924941 | W24: 237798.044 | X24: 0.7227250102 | Y24: =W24/W12*100-100 -> 2.356060158 | Z24: 205770.5872 | AA24: =Z24/Z23*100-100 -> 0.1981205388 | AB24: =Z24/Z12*100-100 -> 1.012158535 | AC24: 153099.2772 | AD24: -0.204943243 | AE24: =AC24/AC12*100-100 -> 6.288545824 | AF24: 128685.4167 | AG24: 0.06858609395 | AH24: 7.644606902 | AI24: 196789.4469 | AJ24: 0.5119172083 | AK24: 3.425413534
A25: 2006-02-01 | B25: 147062.731 | C25: 1.29311388 | D25: 7.84139308 | E25: 157887.508 | F25: 0.5774870254 | G25: 5.0592747 | H25: 156901.1041 | I25: 0.9145830563 | J25: 6.26597446 | K25: 162725.5436 | L25: 0.5626932478 | M25: 1.069989994 | N25: 174298.4201 | O25: 0.7618525877 | P25: 3.919780161 | Q25: 207001.8403 | R25: 0.992358072 | S25: 2.381197418 | T25: 285611.8582 | U25: 0.9918341769 | V25: 5.061804427 | W25: 239637.6635 | X25: 0.773605805 | Y25: 3.021274371 | Z25: 207251.6225 | AA25: 0.7197507499 | AB25: 1.112337577 | AC25: 155100.7868 | AD25: 1.307327921 | AE25: 6.92925217 | AF25: 130134.7299 | AG25: 1.126245105 | AH25: 8.302868342 | AI25: 198441.0226 | AJ25: 0.839260313 | AK25: 3.67059143
A26: 2006-03-01 | B26: 146707.0472 | C26: -0.2418585482 | D26: 6.759500016 | E26: 159775.3148 | F26: 1.195665708 | G26: 6.545272348 | H26: 157757.1835 | I26: 0.5456172065 | J26: 6.728180621 | K26: 164337.7959 | L26: 0.9907801033 | M26: 2.935078235 | N26: 174982.5191 | O26: 0.3924871822 | P26: 4.956123285 | Q26: 208165.7974 | R26: 0.5622931203 | S26: 3.152010652 | T26: 286051.7421 | U26: 0.1540145919 | V26: 4.735620454 | W26: 241203.9387 | X26: 0.6536014056 | Y26: 3.446586993 | Z26: 208724.8904 | AA26: 0.7108594845 | AB26: 2.164145214 | AC26: 156057.5157 | AD26: 0.6168433631 | AE26: 7.950185904 | AF26: 132546.6158 | AG26: 1.853376004 | AH26: 11.38734676 | AI26: 199612.6451 | AJ26: 0.5904134536 | AK26: 4.341317474
A27: 2006-04-01 | B27: 147096.2691 | C27: 0.2653055036 | D27: 7.561564414 | E27: 160009.0037 | F27: 0.1462609613 | G27: 6.497271899 | H27: 157853.9582 | I27: 0.06134410019 | J27: 7.067653017 | K27: 164816.3207 | L27: 0.2911836639 | M27: 3.91032572 | N27: 175694.3859 | O27: 0.4068216865 | P27: 4.573704755 | Q27: 210826.7384 | R27: 1.278279675 | S27: 3.887231299 | T27: 288716.1596 | U27: 0.9314459944 | V27: 5.878828808 | W27: 242949.0287 | X27: 0.7234915348 | Y27: 4.313016071 | Z27: 210338.7428 | AA27: 0.7731959734 | AB27: 2.995620169 | AC27: 155512.585 | AD27: -0.3491857672 | AE27: 6.879891152 | AF27: 134272.3314 | AG27: 1.30196883 | AH27: 10.65754713 | AI27: 200830.6494 | AJ27: 0.6101839004 | AK27: 4.934907228
A28: 2006-05-01 | B28: 146662.8742 | C28: -0.2946334962 | D28: 7.185431424 | E28: 160936.1747 | F28: 0.5794492256 | G28: 7.233625676 | H28: 157968.8274 | I28: 0.07276926663 | J28: 7.418485052 | K28: 165340.7665 | L28: 0.3182001589 | M28: 3.909805438 | N28: 176042.0662 | O28: 0.1978892643 | P28: 4.735701217 | Q28: 211477.8905 | R28: 0.3088564936 | S28: 4.329717523 | T28: 290403.4901 | U28: 0.5844253892 | V28: 6.583054317 | W28: 244519.3947 | X28: 0.6463767189 | Y28: 5.767614142 | Z28: 211077.1892 | AA28: 0.3510748216 | AB28: 4.483341714 | AC28: 155217.2147 | AD28: -0.1899334149 | AE28: 6.646654367 | AF28: 136123.782 | AG28: 1.37887723 | AH28: 11.16704208 | AI28: 201614.1391 | AJ28: 0.3901245919 | AK28: 5.673798867
A29: 2006-06-01 | B29: 147363.4772 | C29: 0.4776962232 | D29: 7.35519401 | E29: 160692.1233 | F29: -0.1516448134 | G29: 6.245345563 | H29: 157544.5861 | I29: -0.2685601086 | J29: 6.513060876 | K29: 165910.6493 | L29: 0.3446716675 | M29: 3.869655129 | N29: 177079.723 | O29: 0.5894368079 | P29: 3.898089463 | Q29: 212485.2755 | R29: 0.4763547735 | S29: 5.013217507 | T29: 292294.7845 | U29: 0.6512643327 | V29: 7.41597897 | W29: 245023.1616 | X29: 0.2060232924 | Y29: 5.652139311 | Z29: 211568.7187 | AA29: 0.2328672142 | AB29: 5.153635059 | AC29: 155609.0095 | AD29: 0.2524171221 | AE29: 6.082263252 | AF29: 137043.661 | AG29: 0.675766505 | AH29: 10.86775088 | AI29: 202207.3475 | AJ29: 0.2942295532 | AK29: 5.696258671
A30: 2006-07-01 | B30: 146794.8571 | C30: -0.3858623325 | D30: 6.540374915 | E30: 161553.7065 | F30: 0.536170163 | G30: 5.990797692 | H30: 158060.376 | I30: 0.3273929355 | J30: 6.536876122 | K30: 166800.8591 | L30: 0.5365597458 | M30: 3.895625348 | N30: 177214.3682 | O30: 0.07603653717 | P30: 4.758038365 | Q30: 212969.8036 | R30: 0.2280289895 | S30: 5.579783466 | T30: 294074.2549 | U30: 0.6087930773 | V30: 7.928783481 | W30: 246523.2035 | X30: 0.6122041033 | Y30: 6.625684873 | Z30: 212271.8632 | AA30: 0.3323480353 | AB30: 5.755575454 | AC30: 156791.3268 | AD30: 0.7598000364 | AE30: 6.058896722 | AF30: 137973.8671 | AG30: 0.6787662917 | AH30: 12.82842218 | AI30: 203075.9693 | AJ30: 0.4295698557 | AK30: 6.144909704
A31: 2006-08-01 | B31: 146244.7751 | C31: -0.3747283849 | D31: 5.688735061 | E31: 163059.2881 | F31: 0.9319387548 | G31: 6.85281141 | H31: 158967.226 | I31: 0.5737364556 | J31: 6.511708885 | K31: 167049.4185 | L31: 0.149015666 | M31: 4.017521035 | N31: 178405.3381 | O31: 0.6720503777 | P31: 5.800515511 | Q31: 215462.7598 | R31: 1.170567918 | S31: 6.741651839 | T31: 295989.9384 | U31: 0.6514284841 | V31: 8.698696743 | W31: 247310.681 | X31: 0.3194334595 | Y31: 6.6233531 | Z31: 213199.2425 | AA31: 0.4368827965 | AB31: 6.38502999 | AC31: 157582.2781 | AD31: 0.5044611139 | AE31: 5.471877401 | AF31: 138573.1619 | AG31: 0.4343538484 | AH31: 12.07985126 | AI31: 204234.2105 | AJ31: 0.5703487119 | AK31: 6.611265224
A32: 2006-09-01 | B32: 147803.3978 | C32: 1.065763008 | D32: 5.504932379 | E32: 164106.0976 | F32: 0.6419808803 | G32: 7.037356795 | H32: 161003.7178 | I32: 1.281076543 | J32: 6.577951506 | K32: 168811.4513 | L32: 1.054797364 | M32: 4.361520857 | N32: 179455.7839 | O32: 0.5887972993 | P32: 6.8193335 | Q32: 216616.0984 | R32: 0.5352844531 | S32: 7.050282082 | T32: 299179.7671 | U32: 1.077681469 | V32: 9.539558662 | W32: 249460.8899 | X32: 0.8694362982 | Y32: 7.643055829 | Z32: 214773.758 | AA32: 0.7385183522 | AB32: 6.971934714 | AC32: 158504.982 | AD32: 0.5855378597 | AE32: 5.380519357 | AF32: 140564.496 | AG32: 1.437027199 | AH32: 12.34161622 | AI32: 205945.7348 | AJ32: 0.8380204011 | AK32: 7.18157195
A33: 2006-10-01 | B33: 149301.359 | C33: 1.013482276 | D33: 4.897233478 | E33: 165948.197 | F33: 1.122505146 | G33: 7.686668281 | H33: 163319.6318 | I33: 1.438422673 | J33: 7.411189082 | K33: 169442.0636 | L33: 0.3735601023 | M33: 4.557040362 | N33: 180480.2562 | O33: 0.5708772865 | P33: 6.51379464 | Q33: 218704.9148 | R33: 0.9642941521 | S33: 7.717863493 | T33: 301615.583 | U33: 0.814164675 | V33: 9.540073047 | W33: 251643.5957 | X33: 0.8749691664 | Y33: 8.13953256 | Z33: 217855.8411 | AA33: 1.435037094 | AB33: 7.952351412 | AC33: 161565.7722 | AD33: 1.931037238 | AE33: 6.267005754 | AF33: 142837.4719 | AG33: 1.617034145 | AH33: 11.86571909 | AI33: 207990.0112 | AJ33: 0.992628671 | AK33: 7.613795498
A34: 2006-11-01 | B34: 151307.6128 | C34: 1.343761242 | D34: 5.478994657 | E34: 166068.9228 | F34: 0.07274909534 | G34: 7.390053103 | H34: 164531.032 | I34: 0.7417357896 | J34: 7.613498722 | K34: 171043.3372 | L34: 0.9450272186 | M34: 5.316931452 | N34: 181016.372 | O34: 0.2970495567 | P34: 6.109662642 | Q34: 218983.5686 | R34: 0.127410869 | S34: 7.973551757 | T34: 306031.3548 | U34: 1.464039644 | V34: 10.31711799 | W34: 253747.5727 | X34: 0.8360939913 | Y34: 8.485609447 | Z34: 220246.575 | AA34: 1.097392596 | AB34: 8.262524861 | AC34: 163071.1817 | AD34: 0.9317626402 | AE34: 7.120095953 | AF34: 144202.4887 | AG34: 0.9556433957 | AH34: 12.46915186 | AI34: 209617.0904 | AJ34: 0.7822871833 | AK34: 7.93619671
A35: 2006-12-01 | B35: 152127.7564 | C35: 0.5420372235 | D35: 5.122845371 | E35: 167934.4247 | F35: 1.123329929 | G35: 7.889599179 | H35: 165628.0524 | I35: 0.6667559384 | J35: 7.673916379 | K35: 171236.8477 | L35: 0.113135376 | M35: 5.918697759 | N35: 182240.4284 | O35: 0.6762130912 | P35: 6.231585359 | Q35: 221115.7909 | R35: 0.9736905499 | S35: 8.030205247 | T35: 311355.9354 | U35: 1.739880767 | V35: 10.68946676 | W35: 256167.0252 | X35: 0.9534879407 | Y35: 8.503166807 | Z35: 223479.4032 | AA35: 1.467822233 | AB35: 8.821267808 | AC35: 163821.6724 | AD35: 0.4602227682 | AE35: 6.784260514 | AF35: 146238.4342 | AG35: 1.411865689 | AH35: 13.71819521 | AI35: 211765.8368 | AJ35: 1.025081664 | AK35: 8.161238266
A36: 2007-01-01 | B36: 154181.9483 | C36: 1.350307077 | D36: 6.196651846 | E36: 168318.0969 | F36: 0.2284654957 | G36: 7.22197987 | H36: 165818.038 | I36: 0.1147061449 | J36: 6.649715825 | K36: 173150.8639 | L36: 1.117759512 | M36: 7.005432719 | N36: 183993.2417 | O36: 0.9618136517 | P36: 6.366425404 | Q36: 222821.4742 | R36: 0.7713982315 | S36: 8.710464042 | T36: 316638.3023 | U36: 1.696568553 | V36: 11.96272847 | W36: 258632.6867 | X36: 0.9625210221 | Y36: 8.761486136 | Z36: 224060.0451 | AA36: 0.2598190091 | AB36: 8.888276109 | AC36: 164360.0025 | AD36: 0.32860738 | AE36: 7.35517866 | AF36: 148878.8945 | AG36: 1.805585755 | AH36: 15.69212603 | AI36: 213538.0291 | AJ36: 0.8368641391 | AK36: 8.510914835
A37: 2007-02-01 | B37: 155107.846 | C37: 0.6005228164 | D37: 5.47053287 | E37: 170920.399 | F37: 1.546061991 | G37: 8.254542211 | H37: 166821.7449 | I37: 0.6053062407 | J37: 6.322862327 | K37: 175005.6434 | L37: 1.071192747 | M37: 7.546510202 | N37: 184407.999 | O37: 0.2254198567 | P37: 5.800155228 | Q37: 225828.2229 | R37: 1.34939805 | S37: 9.094789969 | T37: 322206.513 | U37: 1.758539836 | V37: 12.81272252 | W37: 262174.6171 | X37: 1.369482897 | Y37: 9.404595783 | Z37: 226714.9485 | AA37: 1.184907084 | AB37: 9.391157331 | AC37: 165315.5701 | AD37: 0.5813869423 | AE37: 6.585900414 | AF37: 151318.3444 | AG37: 1.638546488 | AH37: 16.27821757 | AI37: 216107.8405 | AJ37: 1.203444358 | AK37: 8.902805294
A38: 2007-03-01 | B38: 154763.8204 | C38: -0.221797716 | D38: 5.491742434 | E38: 171597.0249 | F38: 0.3958719504 | G38: 7.398959055 | H38: 166769.3036 | I38: -0.03143551903 | J38: 5.71265276 | K38: 175752.1425 | L38: 0.42655719 | M38: 6.945661241 | N38: 184896.7031 | O38: 0.2650124253 | P38: 5.665814009 | Q38: 227943.2372 | R38: 0.9365588927 | S38: 9.500811397 | T38: 325658.1323 | U38: 1.071244431 | V38: 13.84588325 | W38: 264698.9051 | X38: 0.9628269902 | Y38: 9.740705963 | Z38: 227716.4081 | AA38: 0.4417263349 | AB38: 9.098827518 | AC38: 165859.9537 | AD38: 0.3292996482 | AE38: 6.281298275 | AF38: 150822.7922 | AG38: -0.327489877 | AH38: 13.78848961 | AI38: 217479.2895 | AJ38: 0.6346132533 | AK38: 8.950657589
A39: 2007-04-01 | B39: 154269.8414 | C39: -0.3191824649 | D39: 4.876787402 | E39: 172440.6384 | F39: 0.4916247677 | G39: 7.769334473 | H39: 168385.6108 | I39: 0.9691875008 | J39: 6.67176974 | K39: 176186.4844 | L39: 0.2471331923 | M39: 6.898687951 | N39: 185429.5957 | O39: 0.2882109689 | P39: 5.540990837 | Q39: 229374.2857 | R39: 0.6278091755 | S39: 8.797530815 | T39: 329623.3876 | U39: 1.217612846 | V39: 14.16866588 | W39: 267282.7032 | X39: 0.9761272514 | Y39: 10.01595875 | Z39: 231716.3136 | AA39: 1.756529342 | AB39: 10.16340145 | AC39: 165295.6827 | AD39: -0.3402093189 | AE39: 6.290871991 | AF39: 152152.6842 | AG39: 0.881757998 | AH39: 13.31648343 | AI39: 219272.0417 | AJ39: 0.8243323956 | AK39: 9.182558759
A40: 2007-05-01 | B40: 154246.6969 | C40: -0.01500257495 | D40: 5.170921947 | E40: 172266.2699 | F40: -0.1011180095 | G40: 7.040117138 | H40: 168905.8782 | I40: 0.308973759 | J40: 6.923550034 | K40: 177179.6219 | L40: 0.5636854112 | M40: 7.160276091 | N40: 186084.7447 | O40: 0.3533141349 | P40: 5.704703815 | Q40: 230562.9897 | R40: 0.5182376818 | S40: 9.024630964 | T40: 333134.2186 | U40: 1.065103723 | V40: 14.71426133 | W40: 268213.0932 | X40: 0.3480920869 | Y40: 9.689905585 | Z40: 233435.7349 | AA40: 0.7420372186 | AB40: 10.59259215 | AC40: 165104.0668 | AD40: -0.1159231334 | AE40: 6.369687862 | AF40: 153597.9959 | AG40: 0.9499087568 | AH40: 12.83700289 | AI40: 220315.0785 | AJ40: 0.4756815852 | AK40: 9.275609062
A41: 2007-06-01 | B41: 155327.4888 | C41: 0.7006904047 | D41: 5.404331993 | E41: 172401.6791 | F41: 0.07860462975 | G41: 7.286950722 | H41: 169370.494 | I41: 0.2750737761 | J41: 7.506387953 | K41: 177632.7986 | L41: 0.2557724619 | M41: 7.06533868 | N41: 186752.0334 | O41: 0.3585939911 | P41: 5.462121966 | Q41: 231472.1091 | R41: 0.3943041273 | S41: 8.935599655 | T41: 339200.716 | U41: 1.821037018 | V41: 16.04747468 | W41: 271265.3695 | X41: 1.138004215 | Y41: 10.71009276 | Z41: 234724.8684 | AA41: 0.5522434107 | AB41: 10.94497797 | AC41: 166096.5885 | AD41: 0.6011491883 | AE41: 6.7396991 | AF41: 157093.9446 | AG41: 2.276038 | AH41: 14.63058088 | AI41: 222009.115 | AJ41: 0.7689153846 | AK41: 9.792803157
A42: 2007-07-01 | B42: 154888.6718 | C42: -0.282510784 | D42: 5.513690977 | E42: 172964.4695 | F42: 0.3264413587 | G42: 7.063139094 | H42: 168435.8675 | I42: -0.5518236661 | J42: 6.564258408 | K42: 177962.4062 | L42: 0.1855556307 | M42: 6.691540585 | N42: 186111.3491 | O42: -0.3430668606 | P42: 5.020462452 | Q42: 232329.6321 | R42: 0.37046492 | S42: 9.090410077 | T42: 343654.074 | U42: 1.312897576 | V42: 16.85962585 | W42: 271814.2874 | X42: 0.2023545823 | Y42: 10.25910891 | Z42: 234740.2488 | AA42: 0.006552546062 | AB42: 10.58472154 | AC42: 167311.9334 | AD42: 0.7317097092 | AE42: 6.709941667 | AF42: 158430.4032 | AG42: 0.8507384681 | AH42: 14.82638454 | AI42: 222687.1228 | AJ42: 0.3053963965 | AK42: 9.657052778
A43: 2007-08-01 | B43: 154578.2151 | C43: -0.2004386347 | D43: 5.698282242 | E43: 173684.4215 | F43: 0.4162426786 | G43: 6.516116601 | H43: 169911.4553 | I43: 0.876053187 | J43: 6.884582176 | K43: 177938.8897 | L43: -0.01321432458 | M43: 6.51871245 | N43: 187870.4851 | O43: 0.945206189 | P43: 5.30541691 | Q43: 233929.9595 | R43: 0.688817629 | S43: 8.570947375 | T43: 348402.096 | U43: 1.381628336 | V43: 17.70741194 | W43: 274860.9771 | X43: 1.120871818 | Y43: 11.13995399 | Z43: 235506.8184 | AA43: 0.32656076 | AB43: 10.4632529 | AC43: 169069.7336 | AD43: 1.050612572 | AE43: 7.289814337 | AF43: 159678.5749 | AG43: 0.7878359485 | AH43: 15.23051988 | AI43: 224460.722 | AJ43: 0.796453422 | AK43: 9.903586438
A44: 2007-09-01 | B44: 154333.9138 | C44: -0.158043825 | D44: 4.418380164 | E44: 175620.4716 | F44: 1.114694163 | G44: 7.016420577 | H44: 172012.7754 | I44: 1.236714791 | J44: 6.837766054 | K44: 179995.3524 | L44: 1.155712879 | M44: 6.625084349 | N44: 189229.2149 | O44: 0.7232268577 | P44: 5.446149886 | Q44: 235305.4544 | R44: 0.5879943223 | S44: 8.62787028 | T44: 351123.101 | U44: 0.7809955757 | V44: 17.36191402 | W44: 276942.5256 | X44: 0.7573095801 | Y44: 11.01641054 | Z44: 236998.7125 | AA44: 0.6334823646 | AB44: 10.34807732 | AC44: 170126.778 | AD44: 0.625212074 | AE44: 7.332132936 | AF44: 160238.671 | AG44: 0.3507647303 | AH44: 13.99654652 | AI44: 226227.8076 | AJ44: 0.7872582635 | AK44: 9.848260669
A45: 2007-10-01 | B45: 155321.6464 | C45: 0.6399970967 | D45: 4.032305785 | E45: 175959.6077 | F45: 0.1931073954 | G45: 6.032852968 | H45: 174316.4422 | I45: 1.339241679 | J45: 6.733305874 | K45: 180280.4891 | L45: 0.1584133689 | M45: 6.396537722 | N45: 190059.6507 | O45: 0.4388518014 | P45: 5.307724335 | Q45: 236813.0471 | R45: 0.6406960364 | S45: 8.27970983 | T45: 352516.8345 | U45: 0.3969358609 | V45: 16.87620081 | W45: 278946.4034 | X45: 0.7235717193 | Y45: 10.84979239 | Z45: 238536.9692 | AA45: 0.6490569722 | AB45: 9.493033566 | AC45: 171517.1064 | AD45: 0.8172307833 | AE45: 6.159308391 | AF45: 160731.1106 | AG45: 0.3073162913 | AH45: 12.52727206 | AI45: 227540.6092 | AJ45: 0.5803007295 | AK45: 9.399777371
A46: 2007-11-01 | B46: 156792.8035 | C46: 0.9471681105 | D46: 3.62519145 | E46: 175797.4718 | F46: -0.09214380664 | G46: 5.858139422 | H46: 174526.1779 | I46: 0.1203189867 | J46: 6.074930582 | K46: 179704.4357 | L46: -0.3195317292 | M46: 5.06368659 | N46: 189528.4636 | O46: -0.2794843864 | P46: 4.702387709 | Q46: 235496.9934 | R46: -0.5557353047 | S46: 7.540942405 | T46: 351552.267 | U46: -0.2736231 | V46: 14.87459097 | W46: 279748.6963 | X46: 0.2876154175 | Y46: 10.24684622 | Z46: 237993.8771 | AA46: -0.2276762829 | AB46: 8.057924237 | AC46: 170891.1927 | AD46: -0.3649278283 | AE46: 4.7954586 | AF46: 161264.1185 | AG46: 0.3316146854 | AH46: 11.83171661 | AI46: 227284.8394 | AJ46: -0.1124062294 | AK46: 8.428582304
A47: 2007-12-01 | B47: 156782.8911 | C47: -0.006321916423 | D47: 3.060016699 | E47: 175284.6543 | F47: -0.2917092616 | G47: 4.376845086 | H47: 174687.5328 | I47: 0.09245310704 | J47: 5.469774169 | K47: 178527.2918 | L47: -0.6550444245 | M47: 4.257520631 | N47: 188238.8433 | O47: -0.6804362021 | P47: 3.29148422 | Q47: 237184.4558 | R47: 0.7165536697 | S47: 7.267081538 | T47: 352342.4451 | U47: 0.2247683017 | V47: 13.16387612 | W47: 280465.1458 | X47: 0.2561046819 | Y47: 9.485264761 | Z47: 238418.4591 | AA47: 0.1784003725 | AB47: 6.684757388 | AC47: 170285.7436 | AD47: -0.3542892695 | AE47: 3.945797309 | AF47: 161525.9204 | AG47: 0.1623435437 | AH47: 10.45380875 | AI47: 227433.4126 | AJ47: 0.06536869079 | AK47: 7.398537929
A48: 2008-01-01 | B48: 160331.0653 | C48: 2.26311313 | D48: 3.98822116 | E48: 175498.8306 | F48: 0.1221877275 | G48: 4.266168562 | H48: 174365.1658 | I48: -0.1845392037 | J48: 5.154522389 | K48: 178365.9639 | L48: -0.0903659817 | M48: 3.011882187 | N48: 188335.2855 | O48: 0.05123392125 | P48: 2.359893072 | Q48: 237154.6791 | R48: -0.01255420284 | S48: 6.432595849 | T48: 355034.3265 | U48: 0.7639957756 | V48: 12.12614641 | W48: 282506.6678 | X48: 0.7279057801 | Y48: 9.230844491 | Z48: 235866.55 | AA48: -1.070348802 | AB48: 5.269348587 | AC48: 168535.8442 | AD48: -1.027625291 | AE48: 2.540667805 | AF48: 161217.1976 | AG48: -0.1911289526 | AH48: 8.287476299 | AI48: 227827.1295 | AJ48: 0.1731130416 | AK48: 6.691595106
A49: 2008-02-01 | B49: 162507.0159 | C49: 1.357160937 | D49: 4.770338887 | E49: 176167.2406 | F49: 0.3808628937 | G49: 3.069757366 | H49: 173898.0921 | I49: -0.2678709881 | J49: 4.241861438 | K49: 179437.3264 | L49: 0.6006541147 | M49: 2.532308643 | N49: 188968.6104 | O49: 0.3362752425 | P49: 2.473109315 | Q49: 240972.4606 | R49: 1.609827614 | S49: 6.706087307 | T49: 357879.9552 | U49: 0.8015080438 | V49: 11.07160802 | W49: 282782.5262 | X49: 0.09764669164 | Y49: 7.860375403 | Z49: 234603.0091 | AA49: -0.5357015878 | AB49: 3.479285629 | AC49: 168074.7865 | AD49: -0.2735665821 | AE49: 1.669060165 | AF49: 161512.6364 | AG49: 0.1832551354 | AH49: 6.736983565 | AI49: 228741.4316 | AJ49: 0.4013139785 | AK49: 5.845966083
A50: 2008-03-01 | B50: 163712.8406 | C50: 0.7420139299 | D50: 5.782372281 | E50: 174828.1629 | F50: -0.7601173028 | G50: 1.882980166 | H50: 173938.495 | I50: 0.02323364014 | J50: 4.298867507 | K50: 178037.2134 | L50: -0.7802796693 | M50: 1.300166739 | N50: 189795.5355 | O50: 0.4375991974 | P50: 2.649496897 | Q50: 239739.3592 | R50: -0.5117188305 | S50: 5.175026105 | T50: 356568.0524 | U50: -0.3665761931 | V50: 9.491524096 | W50: 282470.6298 | X50: -0.1102955024 | Y50: 6.713939647 | Z50: 233645.6276 | AA50: -0.4080857702 | AB50: 2.603773501 | AC50: 167794.5554 | AD50: -0.1667300029 | AE50: 1.166406717 | AF50: 162262.5529 | AG50: 0.4643082744 | AH50: 7.584901874 | AI50: 228118.9019 | AJ50: -0.2721543151 | AK50: 4.892241652
A51: 2008-04-01 | B51: 161236.4782 | C51: -1.512625641 | D51: 4.515877348 | E51: 174085.3507 | F51: -0.4248813138 | G51: 0.953784612 | H51: 173514.8086 | I51: -0.2435840255 | J51: 3.046102185 | K51: 177190.4389 | L51: -0.4756166024 | M51: 0.5698249091 | N51: 189692.4773 | O51: -0.05429962768 | P51: 2.298921889 | Q51: 239682.3326 | R51: -0.0237869216 | S51: 4.493985376 | T51: 356106.2769 | U51: -0.1295055729 | V51: 8.034287112 | W51: 281427.303 | X51: -0.3693576249 | Y51: 5.291999672 | Z51: 234889.0734 | AA51: 0.5321930358 | AB51: 1.369243138 | AC51: 167095.1182 | AD51: -0.4168414179 | AE51: 1.088616125 | AF51: 162634.8099 | AG51: 0.2294164023 | AH51: 6.889215082 | AI51: 227674.4814 | AJ51: -0.194819688 | AK51: 3.831970346
A52: 2008-05-01 | B52: 159888.8208 | C52: -0.8358266498 | D52: 3.657857139 | E52: 172096.598 | F52: -1.142400919 | G52: -0.09849393661 | H52: 171825.1777 | I52: -0.973767538 | J52: 1.728358758 | K52: 174704.8841 | L52: -1.402758947 | M52: -1.396739502 | N52: 187901.9114 | O52: -0.9439308647 | P52: 0.97652645 | Q52: 237575.0732 | R52: -0.8791884445 | S52: 3.041287551 | T52: 354255.4696 | U52: -0.5197345385 | V52: 6.340162579 | W52: 281098.414 | X52: -0.1168646377 | Y52: 4.804135655 | Z52: 234849.295 | AA52: -0.01693493932 | AB52: 0.6055457252 | AC52: 164646.4737 | AD52: -1.465419494 | AE52: -0.2771543144 | AF52: 162418.5012 | AG52: -0.1330026756 | AH52: 5.742591431 | AI52: 226200.5064 | AJ52: -0.6474045501 | AK52: 2.671368651
A53: 2008-06-01 | B53: 157717.4918 | C53: -1.35802426 | D53: 1.538686459 | E53: 171449.6079 | F53: -0.3759459349 | G53: -0.552240131 | H53: 169149.0959 | I53: -1.557444531 | J53: -0.1307182064 | K53: 175083.6751 | L53: 0.2168176307 | M53: -1.435052242 | N53: 185821.9726 | O53: -1.106928002 | P53: -0.4980191217 | Q53: 236177.2758 | R53: -0.5883603097 | S53: 2.032714309 | T53: 351923.6596 | U53: -0.6582283882 | V53: 3.750859876 | W53: 278554.6154 | X53: -0.9049494885 | Y53: 2.687127328 | Z53: 232548.6687 | AA53: -0.9796181658 | AB53: -0.9271278846 | AC53: 163173.8768 | AD53: -0.8943993322 | AE53: -1.759645872 | AF53: 162080.3183 | AG53: -0.2082170018 | AH53: 3.174134861 | AI53: 224434.5886 | AJ53: -0.7806869421 | AK53: 1.092510814
A54: 2008-07-01 | B54: 154033.5936 | C54: -2.33575752 | D54: -0.5520598907 | E54: 169604.746 | F54: -1.076037373 | G54: -1.942435639 | H54: 166060.5606 | I54: -1.825924795 | J54: -1.410214416 | K54: 173011.5037 | L54: -1.183532031 | M54: -2.781993455 | N54: 183266.308 | O54: -1.375329586 | P54: -1.528676826 | Q54: 232422.7073 | R54: -1.589724688 | S54: 0.04006172458 | T54: 346946.7217 | U54: -1.414209508 | V54: 0.9581285293 | W54: 274649.6133 | X54: -1.401880206 | Y54: 1.04311145 | Z54: 228900.7126 | AA54: -1.568684993 | AB54: -2.487658703 | AC54: 161479.31 | AD54: -1.038503686 | AE54: -3.486077314 | AF54: 161531.0338 | AG54: -0.3388964449 | AH54: 1.957093174 | AI54: 221197.9836 | AJ54: -1.442115059 | AK54: -0.6687136765
A55: 2008-08-01 | B55: 150913.3409 | C55: -2.025696214 | D55: -2.370886587 | E55: 167752.9058 | F55: -1.091856367 | G55: -3.415110928 | H55: 164428.5395 | I55: -0.982786689 | J55: -3.22692531 | K55: 170393.0474 | L55: -1.513457938 | M55: -4.240693147 | N55: 181242.7422 | O55: -1.104166848 | P55: -3.527825496 | Q55: 227914.7025 | R55: -1.939571579 | S55: -2.571392306 | T55: 342498.7066 | U55: -1.282045585 | V55: -1.694418471 | W55: 270603.5705 | X55: -1.473165308 | Y55: -1.548930903 | Z55: 225517.5237 | AA55: -1.478015911 | AB55: -4.241615929 | AC55: 161486.4748 | AD55: 0.00443698634 | AE55: -4.485284612 | AF55: 160166.6716 | AG55: -0.8446440341 | AH55: 0.3056745068 | AI55: 218181.8847 | AJ55: -1.363529086 | AK55: -2.797298897
A56: 2008-09-01 | B56: 149499.508 | C56: -0.9368508582 | D56: -3.132432565 | E56: 165128.353 | F56: -1.564534945 | G56: -5.974314102 | H56: 162614.184 | I56: -1.103431032 | J56: -5.463891484 | K56: 166909.1209 | L56: -2.044641216 | M56: -7.2703163 | N56: 178515.9546 | O56: -1.504494751 | P56: -5.661525482 | Q56: 223081.3457 | R56: -2.12068674 | S56: -5.194995911 | T56: 335729.6326 | U56: -1.976379416 | V56: -4.384065963 | W56: 266628.0251 | X56: -1.469140029 | Y56: -3.724419165 | Z56: 221680.0212 | AA56: -1.701642704 | AB56: -6.463617969 | AC56: 159339.3502 | AD56: -1.329600307 | AE56: -6.340817081 | AF56: 158281.509 | AG56: -1.177000559 | AH56: -1.221404318 | AI56: 214541.3989 | AJ56: -1.668555513 | AK56: -5.165770235
A57: 2008-10-01 | B57: 147890.0952 | C57: -1.076533843 | D57: -4.784620376 | E57: 161818.3019 | F57: -2.004532257 | G57: -8.036677283 | H57: 161043.1169 | I57: -0.9661316602 | J57: -7.614499882 | K57: 164804.0637 | L57: -1.261199638 | M57: -8.584636892 | N57: 175915.9055 | O57: -1.456479981 | P57: -7.441740069 | Q57: 218040.5655 | R57: -2.259615273 | S57: -7.927131483 | T57: 329437.4162 | U57: -1.874191547 | V57: -6.547040028 | W57: 260250.5457 | X57: -2.391901394 | Y57: -6.702311812 | Z57: 218254.5417 | AA57: -1.545235981 | AB57: -8.502844467 | AC57: 157261.1828 | AD57: -1.304239879 | AE57: -8.311662811 | AF57: 156156.4534 | AG57: -1.342579832 | AH57: -2.846155414 | AI57: 210634.5054 | AJ57: -1.821044075 | AK57: -7.429928159
A58: 2008-11-01 | B58: 145565.5634 | C58: -1.571796798 | D58: -7.16055825 | E58: 160114.4113 | F58: -1.052965318 | G58: -8.921095607 | H58: 158511.7649 | I58: -1.571847368 | J58: -9.175937526 | K58: 162762.7877 | L58: -1.238607824 | M58: -9.427506878 | N58: 172695.9244 | O58: -1.830409309 | P58: -8.881272458 | Q58: 212802.9285 | R58: -2.402138795 | S58: -9.636668642 | T58: 320862.2332 | U58: -2.60297787 | V58: -8.729863719 | W58: 252447.3188 | X58: -2.998351787 | Y58: -9.759251019 | Z58: 214113.5321 | AA58: -1.897330316 | AB58: -10.03401653 | AC58: 154638.06 | AD58: -1.668004016 | AE58: -9.510807713 | AF58: 155346.0428 | AG58: -0.5189734466 | AH58: -3.669803149 | AI58: 206130.6519 | AJ58: -2.138231611 | AK58: -9.307346505
A59: 2008-12-01 | B59: 143647.9771 | C59: -1.317335124 | D59: -8.377772545 | E59: 158560.7934 | F59: -0.9703173122 | G59: -9.540972623 | H59: 157037.683 | I59: -0.929951122 | J59: -10.10366886 | K59: 160266.1835 | L59: -1.533891232 | M59: -10.22874883 | N59: 170667.8585 | O59: -1.174356539 | P59: -9.334409694 | Q59: 210145.8582 | R59: -1.248606067 | S59: -11.39981853 | T59: 318057.6153 | U59: -0.8740878957 | V59: -9.73054206 | W59: 245039.3267 | X59: -2.934470496 | Y59: -12.63109503 | Z59: 210323.7105 | AA59: -1.770005651 | AB59: -11.78379756 | AC59: 153261.2785 | AD59: -0.8903250919 | AE59: -9.997586805 | AF59: 154593.9372 | AG59: -0.4841485438 | AH59: -4.291560866 | AI59: 202930.031 | AJ59: -1.552714678 | AK59: -10.7738706
A60: 2009-01-01 | B60: 143124.9469 | C60: -0.3641055085 | D60: -10.73161858 | E60: 159214.1085 | F60: 0.4120281506 | G60: -9.279105765 | H60: 155713.7158 | I60: -0.8430888236 | J60: -10.69677533 | K60: 158475.2323 | L60: -1.117485448 | M60: -11.15164081 | N60: 169439.9797 | O60: -0.7194552274 | P60: -10.03280175 | Q60: 210760.3027 | R60: 0.2923895246 | S60: -11.12960391 | T60: 315140.8521 | U60: -0.9170549791 | V60: -11.23651192 | W60: 241777.0196 | X60: -1.331340203 | Y60: -14.41723428 | Z60: 206964.0136 | AA60: -1.597393317 | AB60: -12.25376652 | AC60: 154141.8771 | AD60: 0.5745733959 | AE60: -8.540596926 | AF60: 152045.0459 | AG60: -1.648765389 | AH60: -5.689313457 | AI60: 201447.2912 | AJ60: -0.7306655034 | AK60: -11.57888363
A61: 2009-02-01 | B61: 143499.4071 | C61: 0.2616316398 | D61: -11.69648506 | E61: 157299.4051 | F61: -1.202596577 | G61: -10.71018391 | H61: 154564.6724 | I61: -0.7379204794 | J61: -11.11767214 | K61: 157733.5991 | L61: -0.4679804611 | M61: -12.09543615 | N61: 168488.8915 | O61: -0.5613127313 | P61: -10.83763006 | Q61: 209848.5247 | R61: -0.4326137178 | S61: -12.91597216 | T61: 313387.302 | U61: -0.5564337493 | V61: -12.43228421 | W61: 240501.8488 | X61: -0.527416061 | Y61: -14.95165843 | Z61: 205227.2697 | AA61: -0.8391526327 | AB61: -12.52146746 | AC61: 153033.9963 | AD61: -0.7187409435 | AE61: -8.948867632 | AF61: 149724.5893 | AG61: -1.526163874 | AH61: -7.298529291 | AI61: 200195.6269 | AJ61: -0.6213359281 | AK61: -12.47950777
A62: 2009-03-01 | B62: 142956.4176 | C62: -0.3783914584 | D62: -12.6785553 | E62: 156848.7034 | F62: -0.2865247147 | G62: -10.28407503 | H62: 152858.3505 | I62: -1.10395336 | J62: -12.11930947 | K62: 157310.3506 | L62: -0.2683312387 | M62: -11.64187104 | N62: 166069.966 | O62: -1.43565872 | P62: -12.5005941 | Q62: 207324.8627 | R62: -1.202611275 | S62: -13.52072376 | T62: 310044.623 | U62: -1.066628723 | V62: -13.04755967 | W62: 238914.6724 | X62: -0.6599435218 | Y62: -15.41964112 | Z62: 203682.1059 | AA62: -0.7529037448 | AB62: -12.82434516 | AC62: 152073.6724 | AD62: -0.627523241 | AE62: -9.36912579 | AF62: 146013.184 | AG62: -2.478821544 | AH62: -10.01424463 | AI62: 198543.3072 | AJ62: -0.825352539 | AK62: -12.96499084
A63: 2009-04-01 | B63: 143400.449 | C63: 0.3106061331 | D63: -11.06203102 | E63: 155314.1618 | F63: -0.9783578495 | G63: -10.7827504 | H63: 151381.5413 | I63: -0.9661292636 | J63: -12.75583769 | K63: 156222.9523 | L63: -0.6912439961 | M63: -11.83330587 | N63: 165283.3264 | O63: -0.4736796491 | P63: -12.86774849 | Q63: 205276.6176 | R63: -0.9879399264 | S63: -14.35471468 | T63: 308774.6254 | U63: -0.4096176842 | V63: -13.29143983 | W63: 239959.879 | X63: 0.4374811067 | Y63: -14.73468408 | Z63: 203312.7893 | AA63: -0.181320071 | AB63: -13.44306212 | AC63: 149467.3233 | AD63: -1.713872658 | AE63: -10.54955707 | AF63: 147751.222 | AG63: 1.190329556 | AH63: -9.151538855 | AI63: 197695.0619 | AJ63: -0.4272343639 | AK63: -13.16766783
A64: 2009-05-01 | B64: 142624.3226 | C64: -0.5412300826 | D64: -10.79781442 | E64: 155216.546 | F64: -0.06285059194 | G64: -9.808475165 | H64: 151050.3118 | I64: -0.2188043792 | J64: -12.09069951 | K64: 155766.3657 | L64: -0.2922660091 | M64: -10.84029135 | N64: 165282.6195 | O64: -0.0004277090279 | P64: -12.03781898 | Q64: 205394.7002 | R64: 0.05752363183 | S64: -13.5453491 | T64: 312262.2042 | U64: 1.129490098 | V64: -11.85394976 | W64: 239880.4873 | X64: -0.03308539504 | Y64: -14.66316587 | Z64: 205087.4459 | AA64: 0.8728701296 | AB64: -12.67274365 | AC64: 148454.1559 | AD64: -0.6778521321 | AE64: -9.834597417 | AF64: 147992.9816 | AG64: 0.1636261261 | AH64: -8.881697257 | AI64: 198115.1643 | AJ64: 0.2125002077 | AK64: -12.41612696
A65: 2009-06-01 | B65: 142942.1107 | C65: 0.2228148027 | D65: -9.368257701 | E65: 155097.9142 | F65: -0.07642980903 | G65: -9.537317598 | H65: 151681.7006 | I65: 0.417998975 | J65: -10.32662648 | K65: 156517.9393 | L65: 0.482500562 | M65: -10.60392172 | N65: 168843.8158 | O65: 2.154610301 | P65: -9.136786415 | Q65: 207213.9845 | R65: 0.8857504047 | S65: -12.26336917 | T65: 314681.1466 | U65: 0.7746510377 | V65: -10.58255445 | W65: 242461.5296 | X65: 1.075970094 | Y65: -12.95727435 | Z65: 206354.8314 | AA65: 0.6179732261 | AB65: -11.26380873 | AC65: 148414.9895 | AD65: -0.02638283533 | AE65: -9.044883654 | AF65: 149251.4853 | AG65: 0.8503806664 | AH65: -7.915108426 | AI65: 199629.1597 | AJ65: 0.7641996132 | AK65: -11.05240911
A66: 2009-07-01 | B66: 141961.8152 | C66: -0.6857989333 | D66: -7.837107531 | E66: 157055.4961 | F66: 1.262158729 | G66: -7.399114824 | H66: 153596.3198 | I66: 1.262261162 | J66: -7.505840525 | K66: 158538.3652 | L66: 1.290859044 | M66: -8.365419747 | N66: 169571.9458 | O66: 0.4312446634 | P66: -7.472383977 | Q66: 209089.9313 | R66: 0.9053186212 | S66: -10.03893993 | T66: 318635.448 | U66: 1.256605727 | V66: -8.160121417 | W66: 243455.1683 | X66: 0.40981293 | Y66: -11.35790604 | Z66: 207540.7349 | AA66: 0.5746913826 | AB66: -9.331547074 | AC66: 148719.3746 | AD66: 0.2050905474 | AE66: -7.901901156 | AF66: 147902.2906 | AG66: -0.9039740538 | AH66: -8.437228978 | AI66: 201223.033 | AJ66: 0.798417108 | AK66: -9.0303493
A67: 2009-08-01 | B67: 143267.0652 | C67: 0.9194373333 | D67: -5.066666549 | E67: 158774.7752 | F67: 1.094695271 | G67: -5.351997067 | H67: 156032.3551 | I67: 1.585998528 | J67: -5.106281685 | K67: 159671.7079 | L67: 0.7148696312 | M67: -6.292122653 | N67: 171816.0837 | O67: 1.323413438 | P67: -5.201123304 | Q67: 211947.2864 | R67: 1.366567486 | S67: -7.005873691 | T67: 321692.8244 | U67: 0.9595217562 | V67: -6.074733064 | W67: 247101.0401 | X67: 1.497553665 | Y67: -8.685225532 | Z67: 208179.2847 | AA67: 0.3076744679 | AB67: -7.688200307 | AC67: 151094.7832 | AD67: 1.597242204 | AE67: -6.435022917 | AF67: 147486.002 | AG67: -0.2814619632 | AH67: -7.917171231 | AI67: 203501.9412 | AJ67: 1.132528471 | AK67: -6.728305421
A68: 2009-09-01 | B68: 146699.1652 | C68: 2.395595956 | D68: -1.87314517 | E68: 160683.2645 | F68: 1.202010377 | G68: -2.691899005 | H68: 158616.3056 | I68: 1.656035039 | J68: -2.458505338 | K68: 161191.0047 | L68: 0.9515128496 | M68: -3.42588602 | N68: 171621.4802 | O68: -0.113262646 | P68: -3.862105443 | Q68: 213460.7086 | R68: 0.7140559797 | S68: -4.312613862 | T68: 329167.2275 | U68: 2.323459702 | V68: -1.954669608 | W68: 250850.5873 | X68: 1.517414553 | Y68: -5.917396669 | Z68: 210275.9092 | AA68: 1.007124437 | AB68: -5.144402256 | AC68: 152695.0354 | AD68: 1.059104849 | AE68: -4.169914599 | AF68: 147842.6705 | AG68: 0.241832107 | AH68: -6.5951093 | AI68: 206187.3193 | AJ68: 1.319583562 | AK68: -3.893924246
A69: 2009-10-01 | B69: 149627.5266 | C69: 1.996167703 | D69: 1.174812511 | E69: 162017.7814 | F69: 0.8305264014 | G69: 0.1232737843 | H69: 160615.955 | I69: 1.260683394 | J69: -0.2652468865 | K69: 161898.3178 | L69: 0.4388043295 | M69: -1.763151854 | N69: 171970.4146 | O69: 0.2033162665 | P69: -2.242827823 | Q69: 216146.797 | R69: 1.258352584 | S69: -0.8685395443 | T69: 332340.0389 | U69: 0.9638904129 | V69: 0.8810846938 | W69: 254757.0268 | X69: 1.5572774 | Y69: -2.110857793 | Z69: 213427.0383 | AA69: 1.498568768 | AB69: -2.2118685 | AC69: 155554.9294 | AD69: 1.872944995 | AE69: -1.084980683 | AF69: 148972.5521 | AG69: 0.7642459329 | AH69: -4.600451119 | AI69: 208584.3864 | AJ69: 1.162567627 | AK69: -0.9733063862
A70: 2009-11-01 | B70: 150684.5781 | C70: 0.7064552396 | D70: 3.516638484 | E70: 163287.084 | F70: 0.7834341538 | G70: 1.98150357 | H70: 161568.1968 | I70: 0.5928687032 | J70: 1.92820506 | K70: 162600.4998 | L70: 0.4337179313 | M70: -0.09970819756 | N70: 171218.4471 | O70: -0.4372656591 | P70: -0.8555368837 | Q70: 214963.6985 | R70: -0.5473587842 | S70: 1.015385462 | T70: 334239.4414 | U70: 0.57152382 | V70: 4.169143886 | W70: 254764.4132 | X70: 0.00289940033 | Y70: 0.9178526428 | Z70: 213838.6781 | AA70: 0.1928714683 | AB70: -0.1283683503 | AC70: 155927.8918 | AD70: 0.2397625423 | AE70: 0.8340972741 | AF70: 150460.6283 | AG70: 0.9988928809 | AH70: -3.144859355 | AI70: 209002.7127 | AJ70: 0.2005549746 | AK70: 1.393320607
A71: 2009-12-01 | B71: 148114.0747 | C71: -1.705883498 | D71: 3.109057056 | E71: 164163.602 | F71: 0.5367956267 | G71: 3.533539681 | H71: 164103.051 | I71: 1.568906653 | J71: 4.49915451 | K71: 164676.4144 | L71: 1.27669632 | M71: 2.751816253 | N71: 175531.2598 | O71: 2.51889488 | P71: 2.849629268 | Q71: 221230.3785 | R71: 2.91522713 | S71: 5.274679419 | T71: 340010.1111 | U71: 1.726507715 | V71: 6.902050072 | W71: 260940.7231 | X71: 2.424322072 | Y71: 6.48932422 | Z71: 220728.5037 | AA71: 3.221973533 | AB71: 4.947037686 | AC71: 157608.4141 | AD71: 1.077756031 | AE71: 2.836421301 | AF71: 151730.383 | AG71: 0.8439115892 | AH71: -1.852306971 | AI71: 213111.8095 | AJ71: 1.966049509 | AK71: 5.017383822
A72: 2010-01-01 | B72: 142981.0722 | C72: -3.952554999 | D72: -2.652868883 | E72: 161534.9894 | F72: 0.5257982023 | G72: 3.156423312 | H72: 165631.4888 | I72: 0.8179978293 | J72: 6.261593239 | K72: 168280.4572 | L72: 2.100388112 | M72: 6.143842533 | N72: 180427.7526 | O72: 2.81000232 | P72: 6.502483228 | Q72: 222308.723 | R72: 0.05565072761 | S72: 5.021087567 | T72: 356861.2966 | U72: 4.729363573 | V72: 13.17323078 | W72: 269345.6671 | X72: 2.677413976 | Y72: 10.83178161 | Z72: 224570.8506 | AA72: 2.647308712 | AB72: 8.462881746 | AC72: 156965.8075 | AD72: -0.2090975204 | AE72: 1.982619808 | AF72: 152661.7477 | AG72: 0.6138287729 | AH72: 0.4056046666 | AI72: 214966.0474 | AJ72: 1.613232568 | AK72: 7.266709604
A73: 2010-02-01 | B73: 154251.1164 | C73: 7.882193063 | D73: 2.719284291 | E73: 166177.7018 | F73: 2.87412185 | G73: 7.21729444 | H73: 166923.6974 | I73: 0.7801708224 | J73: 5.794695557 | K73: 169633.4251 | L73: 0.8039958504 | M73: 7.428608171 | N73: 183471.0966 | O73: 1.686738327 | P73: 6.322909429 | Q73: 232421.7174 | R73: 4.549076745 | S73: 9.430319898 | T73: 365573.1363 | U73: 2.441239728 | V73: 16.64851547 | W73: 275646.4377 | X73: 2.339287892 | Y73: 12.53861334 | Z73: 228962.5116 | AA73: 1.955579268 | AB73: 10.11937734 | AC73: 158075.1933 | AD73: 0.7067690971 | AE73: 2.269912498 | AF73: 154068.6614 | AG73: 0.9215888903 | AH73: 2.901375179 | AI73: 220222.6052 | AJ73: 2.445296766 | AK73: 9.49985041
A74: 2010-03-01 | B74: 156223.9925 | C74: 1.279002826 | D74: 4.435305253 | E74: 166749.6111 | F74: 0.3441552453 | G74: 7.954154178 | H74: 164921.5319 | I74: -1.199449515 | J74: 5.658996797 | K74: 167760.8101 | L74: -1.103918646 | M74: 6.508131067 | N74: 180482.7126 | O74: -1.6288037 | P74: 6.075310033 | Q74: 230363.3522 | R74: -0.8856165323 | S74: 9.787622559 | T74: 364507.9823 | U74: -0.2913655166 | V74: 17.46548205 | W74: 274536.349 | X74: -0.4027219345 | Y74: 12.84439031 | Z74: 226230.3905 | AA74: -1.193261337 | AB74: 10.11138445 | AC74: 156748.8545 | AD74: -0.8390556215 | AE74: 2.036766828 | AF74: 154577.4637 | AG74: 0.3302438685 | AH74: 5.865415385 | AI74: 218833.6533 | AJ74: -0.6307035794 | AK74: 9.755101681
A75: 2010-04-01 | B75: 154155.1448 | C75: -1.324282975 | D75: 4.838482017 | E75: 167206.5752 | F75: 0.274042087 | G75: 9.543662718 | H75: 164072.1675 | I75: -0.5150112215 | J75: 6.120402145 | K75: 166699.2397 | L75: -0.6327880741 | M75: 6.566640804 | N75: 178566.0868 | O75: -1.061944276 | P75: 5.428630886 | Q75: 230272.7146 | R75: -0.03934552581 | S75: 10.79093988 | T75: 361388.714 | U75: -0.8557475828 | V75: 16.86126146 | W75: 274190.0674 | X75: -0.1261332531 | Y75: 12.20218714 | Z75: 226906.3862 | AA75: 0.2988085642 | AB75: 11.09173144 | AC75: 155994.8072 | AD75: -0.481054458 | AE75: 3.273832664 | AF75: 155317.8321 | AG75: 0.4789627045 | AH75: 5.121182734 | AI75: 218095.8691 | AJ75: -0.3371438539 | AK75: 9.974133618
A76: 2010-05-01 | B76: 152031.9996 | C76: -1.377278141 | D76: 6.077236207 | E76: 166830.2586 | F76: -0.2250608611 | G76: 9.341127316 | H76: 163135.4885 | I76: -0.5708945116 | J76: 7.870436008 | K76: 167176.5354 | L76: 0.286321475 | M76: 7.22561465 | N76: 177647.5546 | O76: -0.5143934161 | P76: 7.488221816 | Q76: 231231.0948 | R76: 0.4161935865 | S76: 12.02077915 | T76: 359375.951 | U76: -0.5569523662 | V76: 14.8717961 | W76: 276267.7352 | X76: 0.7577472957 | Y76: 14.58426606 | Z76: 228813.2139 | AA76: 0.8403587445 | AB76: 12.72053097 | AC76: 155732.6323 | AD76: -0.1680663949 | AE76: 4.967140361 | AF76: 154852.568 | AG76: -0.2995561171 | AH76: 4.63507548 | AI76: 218270.945 | AJ76: 0.08027475639 | AK76: 10.93443224
A77: 2010-06-01 | B77: 151945.6697 | C77: -0.05678405215 | D77: 5.765821751 | E77: 164893.3162 | F77: -1.161025887 | G77: 7.984081713 | H77: 162627.6621 | I77: -0.3112911658 | J77: 7.091983728 | K77: 168194.5804 | L77: 0.6089640527 | M77: 7.362753837 | N77: 179326.1887 | O77: 0.9449238731 | P77: 6.205721382 | Q77: 232999.4409 | R77: 0.7647527243 | S77: 11.85780052 | T77: 364533.9582 | U77: 1.435267759 | V77: 15.65725759 | W77: 277371.2814 | X77: 0.399448107 | Y77: 13.7952198 | Z77: 227676.9783 | AA77: -0.4965778049 | AB77: 11.70531889 | AC77: 156226.3018 | AD77: 0.316998054 | AE77: 5.340611923 | AF77: 154683.0882 | AG77: -0.1094459447 | AH77: 3.63922867 | AI77: 219021.418 | AJ77: 0.3438263239 | AK77: 10.47432724
A78: 2010-07-01 | B78: 151231.5224 | C78: -0.4700017349 | D78: 5.994845395 | E78: 164117.5579 | F78: -0.4704606794 | G78: 6.367434963 | H78: 162791.8098 | I78: 0.1009346814 | J78: 5.859521707 | K78: 167352.9823 | L78: -0.5003717494 | M78: 5.455607945 | N78: 179012.4325 | O78: -0.1749639914 | P78: 5.567135789 | Q78: 234522.8437 | R78: 0.6538224755 | S78: 11.5650702 | T78: 368638.2123 | U78: 1.12589075 | V78: 15.4851981 | W78: 279017.9733 | X78: 0.5936778403 | Y78: 14.01253619 | Z78: 228091.6258 | AA78: 0.1821209959 | AB78: 11.32330998 | AC78: 155966.6691 | AD78: -0.1661900951 | AE78: 4.993666632 | AF78: 154827.4026 | AG78: 0.09329680389 | AH78: 4.682220873 | AI78: 219694.8597 | AJ78: 0.3074775775 | AK78: 9.967756841
A79: 2010-08-01 | B79: 150471.6518 | C79: -0.5024551912 | D79: 4.448186195 | E79: 164832.4447 | F79: 0.4355943356 | G79: 5.870415153 | H79: 164018.157 | I79: 0.7533224065 | J79: 4.983115571 | K79: 167217.8346 | L79: -0.08075604783 | M79: 4.62787673 | N79: 180948.016 | O79: 1.081256465 | P79: 5.324862667 | Q79: 235351.149 | R79: 0.3531874706 | S79: 10.44317989 | T79: 371534.5081 | U79: 0.7856743289 | V79: 15.2397732 | W79: 279463.5725 | X79: 0.1597026999 | Y79: 12.5093971 | Z79: 227449.8455 | AA79: -0.2813695258 | AB79: 10.59004365 | AC79: 156392.8729 | AD79: 0.273265969 | AE79: 3.680981672 | AF79: 155802.0126 | AG79: 0.629481583 | AH79: 5.638508394 | AI79: 220453.7054 | AJ79: 0.3454089277 | AK79: 9.10437352
A80: 2010-09-01 | B80: 151567.3379 | C80: 0.7281677992 | D80: 2.733482403 | E80: 166097.0839 | F80: 0.7672270737 | G80: 5.546702492 | H80: 164207.3874 | I80: 0.1153716111 | J80: 3.392659619 | K80: 167100.6244 | L80: -0.07009435659 | M80: 3.573395965 | N80: 180861.7796 | O80: -0.04765811756 | P80: 5.402599205 | Q80: 235109.1397 | R80: -0.1028290192 | S80: 9.569962665 | T80: 369218.01 | U80: -0.6234947405 | V80: 11.87886005 | W80: 278578.5426 | X80: -0.316688807 | Y80: 10.47819767 | Z80: 228147.8777 | AA80: 0.3068950104 | AB80: 10.04650694 | AC80: 156352.2833 | AD80: -0.02595364049 | AE80: 2.590198064 | AF80: 156601.7032 | AG80: 0.5132736322 | AH80: 5.924563399 | AI80: 220333.0719 | AJ80: -0.05472053677 | AK80: 7.662462091
A81: 2010-10-01 | B81: 152083.3432 | C81: 0.3404462577 | D81: 1.060933014 | E81: 165362.3573 | F81: -0.4423476583 | G81: 4.324359154 | H81: 162815.2316 | I81: -0.8478034159 | J81: 1.249449167 | K81: 166853.8448 | L81: -0.1476831871 | M81: 2.967595188 | N81: 180729.7666 | O81: -0.07299109799 | P81: 5.120891477 | Q81: 233300.0804 | R81: -0.7694550987 | S81: 7.450956072 | T81: 368365.5963 | U81: -0.2308700277 | V81: 10.56862713 | W81: 277007.3489 | X81: -0.5640038664 | Y81: 8.163211718 | Z81: 227574.4136 | AA81: -0.2513563318 | AB81: 8.102227332 | AC81: 155475.4351 | AD81: -0.5608157656 | AE81: 0.1242243663 | AF81: 156641.3644 | AG81: 0.0253261389 | AH81: 5.1478022 | AI81: 219430.5025 | AJ81: -0.4096386666 | AK81: 6.007256164
A82: 2010-11-01 | B82: 150184.6106 | C82: -1.248481631 | D82: -0.8426911991 | E82: 163893.4325 | F82: -0.8883066554 | G82: 2.545499711 | H82: 161844.2463 | I82: -0.5963725085 | J82: 0.05942521753 | K82: 165742.4144 | L82: -0.6661101568 | M82: 1.840764827 | N82: 178738.52 | O82: -1.101781206 | P82: 4.415143388 | Q82: 230471.6454 | R82: -1.212359223 | S82: 6.777091244 | T82: 368057.2356 | U82: -0.08371049395 | V82: 9.866399841 | W82: 274436.2778 | X82: -0.9281598704 | Y82: 7.151200072 | Z82: 226329.1306 | AA82: -0.5471981728 | AB82: 7.216319163 | AC82: 153614.424 | AD82: -1.196980734 | AE82: -1.287323081 | AF82: 155575.4445 | AG82: -0.6804842564 | AH82: 3.399438331 | AI82: 217758.7182 | AJ82: -0.7618741424 | AK82: 4.985560486
A83: 2010-12-01 | B83: 148393.2062 | C83: -1.192801582 | D83: -0.3169573839 | E83: 163531.1014 | F83: -0.221077223 | G83: 1.768010539 | H83: 160517.0947 | I83: -0.8200177745 | J83: -2.295075526 | K83: 164747.4251 | L83: -0.6003226678 | M83: -0.04319976386 | N83: 177851.8844 | O83: -0.4960517634 | P83: 1.342240235 | Q83: 230688.3874 | R83: 0.09404280342 | S83: 3.827130144 | T83: 370875.7909 | U83: 0.7657926548 | V83: 8.842247439 | W83: 274327.5334 | X83: -0.03962467519 | Y83: 4.576554033 | Z83: 228871.6788 | AA83: 1.123385304 | AB83: 4.613140149 | AC83: 152288.3182 | AD83: -0.8632690892 | AE83: -3.182808084 | AF83: 156068.1909 | AG83: 0.3167250285 | AH83: 2.858892121 | AI83: 217843.8857 | AJ83: 0.03911095064 | AK83: 2.973570464
A84: 2011-01-01 | B84: 148134.764 | C84: -0.1741604005 | D84: 3.604457389 | E84: 163125.5027 | F84: -0.2480254637 | G84: 0.9846246185 | H84: 161038.2914 | I84: 0.3246985722 | J84: -2.773142614 | K84: 164745.7057 | L84: -0.001043696653 | M84: -2.100512213 | N84: 177596.6945 | O84: -0.1434845093 | P84: -1.569081281 | Q84: 230815.0403 | R84: 0.05490217061 | S84: 3.826353371 | T84: 373269.2074 | U84: 0.645341797 | V84: 4.59783982 | W84: 276995.6073 | X84: 0.9725870137 | Y84: 2.840194282 | Z84: 226992.4383 | AA84: -0.8210891208 | AB84: 1.078317919 | AC84: 152631.7116 | AD84: 0.2254890034 | AE84: -2.761171985 | AF84: 155922.8539 | AG84: -0.09312405573 | AH84: 2.136164583 | AI84: 218308.8724 | AJ84: 0.2134495046 | AK84: 1.555047932
A85: 2011-02-01 | B85: 151841.9897 | C85: 2.502603398 | D85: -1.561821238 | E85: 162925.1415 | F85: -0.1228264073 | G85: -1.95727845 | H85: 159950.4993 | I85: -0.675486627 | J85: -4.177476404 | K85: 164703.915 | L85: -0.02536674321 | M85: -2.905978032 | N85: 176469.6976 | O85: -0.6345821508 | P85: -3.816077409 | Q85: 232861.1625 | R85: 0.8864769648 | S85: 0.189072289 | T85: 379284.7506 | U85: 1.611583029 | V85: 3.75071713 | W85: 281110.1729 | X85: 1.485426294 | Y85: 1.982153403 | Z85: 227930.3756 | AA85: 0.413201979 | AB85: -0.4507882183 | AC85: 153457.5506 | AD85: 0.5410664421 | AE85: -2.921168499 | AF85: 155414.299 | AG85: -0.326158024 | AH85: 0.8734012277 | AI85: 219903.5987 | AJ85: 0.730490796 | AK85: -0.1448563877
A86: 2011-03-01 | B86: 150905.6511 | C86: -0.6166532158 | D86: -3.4043051 | E86: 161577.2911 | F86: -0.8272820268 | G86: -3.101848336 | H86: 160601.85 | I86: 0.407220212 | J86: -2.619234602 | K86: 163821.5841 | L86: -0.5357073075 | M86: -2.348120497 | N86: 175814.7372 | O86: -0.3711460619 | P86: -2.586383663 | Q86: 233012.5628 | R86: 0.0650174362 | S86: 1.150013901 | T86: 382531.5716 | U86: 0.8560378428 | V86: 4.944635009 | W86: 283787.1358 | X86: 0.9522824618 | Y86: 3.369603631 | Z86: 225359.0667 | AA86: -1.128111533 | AB86: -0.3851488529 | AC86: 153197.3562 | AD86: -0.1695546213 | AE86: -2.265725217 | AF86: 154256.8621 | AG86: -0.744742878 | AH86: -0.2074051694 | AI86: 220093.1759 | AJ86: 0.08620926968 | AK86: 0.5755616698
A87: 2011-04-01 | B87: 149751.0333 | C87: -0.7651256431 | D87: -2.856934453 | E87: 159988.3502 | F87: -0.9833936435 | G87: -4.316950426 | H87: 159801.0544 | I87: -0.4986216955 | J87: -2.603191734 | K87: 162749.7356 | L87: -0.6542779475 | M87: -2.3692394 | N87: 175104.5008 | O87: -0.4039686459 | P87: -1.938546133 | Q87: 231689.5288 | R87: -0.5677951534 | S87: 0.6152766336 | T87: 377939.5375 | U87: -1.200432689 | V87: 4.579784281 | W87: 278432.0057 | X87: -1.887023553 | Y87: 1.547079499 | Z87: 225421.5134 | AA87: 0.02770988677 | AB87: -0.6543988548 | AC87: 151116.3692 | AD87: -1.358370048 | AE87: -3.127307928 | AF87: 153356.6005 | AG87: -0.5836120169 | AH87: -1.262721484 | AI87: 217992.5936 | AJ87: -0.9544059501 | AK87: -0.04735326985
A88: 2011-05-01 | B88: 148008.3317 | C88: -1.163732591 | D88: -2.64659277 | E88: 158114.7135 | F88: -1.171108248 | G88: -5.224199279 | H88: 157934.8182 | I88: -1.167849715 | J88: -3.187945375 | K88: 161679.8698 | L88: -0.6573687283 | M88: -3.287940883 | N88: 174905.2852 | O88: -0.1137695672 | P88: -1.54365728 | Q88: 229380.8649 | R88: -0.9964472086 | S88: -0.8001648336 | T88: 368466.5528 | U88: -2.506481537 | V88: 2.529552063 | W88: 274384.0436 | X88: -1.453842237 | Y88: -0.6818355388 | Z88: 224288.1731 | AA88: -0.5027649451 | AB88: -1.977613409 | AC88: 149381.1283 | AD88: -1.148281215 | AE88: -4.078466991 | AF88: 153312.4542 | AG88: -0.02878667422 | AH88: -0.9945678347 | AI88: 215269.2714 | AJ88: -1.24927279 | AK88: -1.375205302
A89: 2011-06-01 | B89: 146457.6923 | C89: -1.047670386 | D89: -3.611802463 | E89: 158330.7611 | F89: 0.1366398154 | G89: -3.979879342 | H89: 156421.8761 | I89: -0.9579534893 | J89: -3.815947372 | K89: 162538.1813 | L89: 0.5308709855 | M89: -3.363009158 | N89: 173197.1229 | O89: -0.976621322 | P89: -3.417830889 | Q89: 227819.8479 | R89: -0.6805349963 | S89: -2.223006649 | T89: 363221.0247 | U89: -1.423610381 | V89: -0.360167673 | W89: 271979.7743 | X89: -0.8762423707 | Y89: -1.943787064 | Z89: 222325.4888 | AA89: -0.8750725665 | AB89: -2.350474553 | AC89: 149563.801 | AD89: 0.1222863136 | AE89: -4.26464729 | AF89: 152381.6377 | AG89: -0.6071369291 | AH89: -1.487848821 | AI89: 213677.2319 | AJ89: -0.7395572415 | AK89: -2.440028975
A90: 2011-07-01 | B90: 142756.8975 | C90: -2.526869528 | D90: -5.603742407 | E90: 159913.9228 | F90: 0.9999078431 | G90: -2.561356118 | H90: 156385.643 | I90: -0.02316368718 | J90: -3.935189855 | K90: 163012.3339 | L90: 0.2917177043 | M90: -2.593708381 | N90: 172341.4605 | O90: -0.4940396187 | P90: -3.726541183 | Q90: 228884.4199 | R90: 0.4672867809 | S90: -2.404210888 | T90: 369070.6725 | U90: 1.610492631 | V90: 0.1173129181 | W90: 273907.475 | X90: 0.708766189 | Y90: -1.831601807 | Z90: 222336.2349 | AA90: 0.00483348928 | AB90: -2.523280247 | AC90: 150480.9787 | AD90: 0.6132350491 | AE90: -3.517219728 | AF90: 152858.8046 | AG90: 0.3131393479 | AH90: -1.271479067 | AI90: 214756.8362 | AJ90: 0.5052500104 | AK90: -2.247673696
A91: 2011-08-01 | B91: 140859.9266 | C91: -1.32881206 | D91: -6.387731559 | E91: 160525.2244 | F91: 0.3822691666 | G91: -2.61309009 | H91: 157981.0973 | I91: 1.020205075 | J91: -3.680726456 | K91: 163516.6812 | L91: 0.3093921016 | M91: -2.213372393 | N91: 173535.4419 | O91: 0.6927998602 | P91: -4.096521358 | Q91: 229836.3018 | R91: 0.4158788348 | S91: -2.343242091 | T91: 375880.3901 | U91: 1.845098527 | V91: 1.169711532 | W91: 275865.6892 | X91: 0.7149181385 | Y91: -1.287424769 | Z91: 222160.4629 | AA91: -0.0790568166 | AB91: -2.325516006 | AC91: 152301.6348 | AD91: 1.209891233 | AE91: -2.616000359 | AF91: 153867.7273 | AG91: 0.6600357662 | AH91: -1.241502074 | AI91: 216261.6479 | AJ91: 0.7007049047 | AK91: -1.901559124
A92: 2011-09-01 | B92: 140544.2348 | C92: -0.2241175075 | D92: -7.272743068 | E92: 160052.4498 | F92: -0.2945173287 | G92: -3.639217428 | H92: 157736.6068 | I92: -0.1547593658 | J92: -3.940614814 | K92: 163360.1435 | L92: -0.0957319797 | M92: -2.238460145 | N92: 173435.9667 | O92: -0.05732265665 | P92: -4.105794407 | Q92: 229232.676 | R92: -0.2626329149 | S92: -2.499462034 | T92: 377160.6825 | U92: 0.3406116633 | V92: 2.151214821 | W92: 274426.9066 | X92: -0.5215518722 | Y92: -1.490292837 | Z92: 223765.8561 | AA92: 0.7226277271 | AB92: -1.9206936 | AC92: 152586.5956 | AD92: 0.1871028656 | AE92: -2.408463548 | AF92: 155173.7851 | AG92: 0.8488185053 | AH92: -0.9118151932 | AI92: 216160.8594 | AJ92: -0.0466048707 | AK92: -1.893593423
A93: 2011-10-01 | B93: 142387.7445 | C93: 1.311693571 | D93: -6.37518777 | E93: 159266.6644 | F93: -0.4909549395 | G93: -3.686263893 | H93: 157168.8281 | I93: -0.3599536466 | J93: -3.46798233 | K93: 163052.6759 | L93: -0.1882145466 | M93: -2.278142831 | N93: 174559.6801 | O93: 0.6479125464 | P93: -3.413984624 | Q93: 229465.4645 | R93: 0.1015511776 | S93: -1.643641071 | T93: 379405.5238 | U93: 0.5951949266 | V93: 2.997002878 | W93: 273432.6051 | X93: -0.3623192224 | Y93: -1.290486972 | Z93: 223816.5605 | AA93: 0.02265961549 | AB93: -1.651263429 | AC93: 155472.0303 | AD93: 1.891014563 | AE93: -0.002189897947 | AF93: 155421.5177 | AG93: 0.1596485007 | AH93: -0.778751303 | AI93: 216413.0003 | AJ93: 0.1166450275 | AK93: -1.375151665
A94: 2011-11-01 | B94: 141398.8451 | C94: -0.6945116103 | D94: -5.849977221 | E94: 158405.7674 | F94: -0.5405380967 | G94: -3.348312961 | H94: 156601.5556 | I94: -0.3609319599 | J94: -3.239343278 | K94: 163467.997 | L94: 0.2547159115 | M94: -1.37226032 | N94: 172919.7156 | O94: -0.9394864153 | P94: -3.255484225 | Q94: 227395.9238 | R94: -0.9018963697 | S94: -1.334533619 | T94: 377939.5427 | U94: -0.3863889524 | V94: 2.684991951 | W94: 270962.1066 | X94: -0.9035127679 | Y94: -1.26593001 | Z94: 222168.1417 | AA94: -0.7365044094 | AB94: -1.838468102 | AC94: 154928.0443 | AD94: -0.3498931544 | AE94: 0.8551412195 | AF94: 155251.0114 | AG94: -0.1097056983 | AH94: -0.208537475 | AI94: 215076.7137 | AJ94: -0.6174705883 | AK94: -1.231640504
A95: 2011-12-01 | B95: 141284.9014 | C95: -0.08058317897 | D95: -4.790182089 | E95: 157045.2816 | F95: -0.8588612951 | G95: -3.96610783 | H95: 157925.5742 | I95: 0.8454696431 | J95: -1.614482568 | K95: 162919.5315 | L95: -0.3355186184 | M95: -1.109512738 | N95: 174297.5577 | O95: 0.7968102528 | P95: -1.998475715 | Q95: 227439.3168 | R95: 0.01908258511 | S95: -1.40842398 | T95: 380028.3354 | U95: 0.5526790581 | V95: 2.467819363 | W95: 269660.1742 | X95: -0.4804850728 | Y95: -1.70138197 | Z95: 223322.2288 | AA95: 0.5194656164 | AB95: -2.424699284 | AC95: 154122.0143 | AD95: -0.5202608894 | AE95: 1.204095034 | AF95: 154502.3813 | AG95: -0.4822063132 | AH95: -1.003285579 | AI95: 215195.6147 | AJ95: 0.05528309867 | AK95: -1.215673783
A96: 2012-01-01 | B96: 142693.4397 | C96: 0.9969488699 | D96: -3.673225789 | E96: 157339.7401 | F96: 0.18749911 | G96: -3.546816681 | H96: 158110.2907 | I96: 0.116964268 | J96: -1.818201566 | K96: 163551.0469 | L96: 0.3876241483 | M96: -0.7251532009 | N96: 174741.6322 | O96: 0.2547795419 | P96: -1.607610042 | Q96: 228647.9286 | R96: 0.5313996761 | S96: -0.9388953608 | T96: 381181.8295 | U96: 0.3035284346 | V96: 2.119816473 | W96: 271308.3555 | X96: 0.6112067978 | Y96: -2.053192068 | Z96: 223125.1235 | AA96: -0.08826047728 | AB96: -1.703719646 | AC96: 152514.6695 | AD96: -1.042904061 | AE96: -0.07668267568 | AF96: 153010.4828 | AG96: -0.9656151605 | AH96: -1.867828204 | AI96: 215831.2789 | AJ96: 0.2953890017 | AK96: -1.134902808
A97: 2012-02-01 | B97: 145396.6736 | C97: 1.89443464 | D97: -4.244752099 | E97: 159101.5374 | F97: 1.119740823 | G97: -2.346847153 | H97: 158666.7711 | I97: 0.3519571395 | J97: -0.8025783991 | K97: 164394.5354 | L97: 0.5157341043 | M97: -0.1878398646 | N97: 174985.594 | O97: 0.1396128578 | P97: -0.8409962761 | Q97: 229626.2117 | R97: 0.4278556803 | S97: -1.389218659 | T97: 381480.687 | U97: 0.07840286008 | V97: 0.5789677547 | W97: 272600.3508 | X97: 0.4762091926 | Y97: -3.027219544 | Z97: 222406.3513 | AA97: -0.3221386545 | AB97: -2.423557751 | AC97: 152630.8811 | AD97: 0.07619699854 | AE97: -0.5386958467 | AF97: 152741.8307 | AG97: -0.175577616 | AH97: -1.719576845 | AI97: 216608.3919 | AJ97: 0.3600557702 | AK97: -1.498477874
A98: 2012-03-01 | B98: 147370.3929 | C98: 1.357472087 | D98: -2.342694421 | E98: 159656.6641 | F98: 0.3489134587 | G98: -1.188673818 | H98: 157247.9355 | I98: -0.8942235158 | J98: -2.088341135 | K98: 164724.9097 | L98: 0.2009642778 | M98: 0.5514081634 | N98: 174203.6632 | O98: -0.4468543705 | P98: -0.9163475439 | Q98: 232207.2146 | R98: 1.124001852 | S98: -0.3456243709 | T98: 386905.8413 | U98: 1.422130802 | V98: 1.143505553 | W98: 278114.0156 | X98: 2.022618363 | Y98: -1.999075892 | Z98: 222767.4398 | AA98: 0.1623553365 | AB98: -1.149998927 | AC98: 153624.2498 | AD98: 0.6508306993 | AE98: 0.27865595 | AF98: 153018.2535 | AG98: 0.1809738855 | AH98: -0.8029519947 | AI98: 218433.9247 | AJ98: 0.8427802621 | AK98: -0.753885838
A99: 2012-04-01 | B99: 146305.3208 | C99: -0.7227178285 | D99: -2.300960777 | E99: 158551.8934 | F99: -0.6919665221 | G99: -0.8978508804 | H99: 158303.3754 | I99: 0.6711947515 | J99: -0.9372146798 | K99: 164579.1018 | L99: -0.08851600605 | M99: 1.124036342 | N99: 172747.3117 | O99: -0.8360050889 | P99: -1.346161345 | Q99: 231545.9982 | R99: -0.2847527256 | S99: -0.06194951465 | T99: 393680.8657 | U99: 1.751078339 | V99: 4.165038746 | W99: 279892.4645 | X99: 0.6394675641 | Y99: 0.5245297836 | Z99: 223748.9156 | AA99: 0.4405831214 | AB99: -0.74198679 | AC99: 153955.3389 | AD99: 0.2155188107 | AE99: 1.878664582 | AF99: 153941.0672 | AG99: 0.6030742822 | AH99: 0.381116147 | AI99: 219229.7581 | AJ99: 0.3643360041 | AK99: 0.5675259401
A100: 2012-05-01 | B100: 145191.0557 | C100: -0.7616025352 | D100: -1.903457703 | E100: 157521.081 | F100: -0.6501420007 | G100: -0.3754441849 | H100: 158451.4074 | I100: 0.09351153591 | J100: 0.3270900882 | K100: 164034.609 | L100: -0.3308395774 | M100: 1.456420791 | N100: 173349.9975 | O100: 0.3488829043 | P100: -0.8892170583 | Q100: 234373.3249 | R100: 1.221064789 | S100: 2.176493649 | T100: 403732.0924 | U100: 2.553140767 | V100: 9.570893019 | W100: 282926.2716 | X100: 1.083918835 | Y100: 3.1132379 | Z100: 227428.8503 | AA100: 1.644671512 | AB100: 1.400286571 | AC100: 153683.8015 | AD100: -0.1763741845 | AE100: 2.880332449 | AF100: 153717.4092 | AG100: -0.1452880852 | AH100: 0.2641370559 | AI100: 221315.7897 | AJ100: 0.9515275604 | AK100: 2.808816233
A101: 2012-06-01 | B101: 144544.6073 | C101: -0.4452398709 | D101: -1.306237297 | E101: 158123.4924 | F101: 0.3824322789 | G101: -0.1309086678 | H101: 159361.7029 | I101: 0.5744950892 | J101: 1.87942177 | K101: 164319.7009 | L101: 0.1737998503 | M101: 1.096062237 | N101: 173622.9328 | O101: 0.1574475374 | P101: 0.2458528016 | Q101: 233913.2716 | R101: -0.1962908169 | S101: 2.674667621 | T101: 405122.6703 | U101: 0.3444308509 | V101: 11.53612889 | W101: 282031.4553 | X101: -0.3162719134 | Y101: 3.69574575 | Z101: 226189.3723 | AA101: -0.5449959427 | AB101: 1.737939926 | AC101: 153124.2838 | AD101: -0.3640706676 | AE101: 2.380577901 | AF101: 154287.9908 | AG101: 0.3711886713 | AH101: 1.251038621 | AI101: 221273.5703 | AJ101: -0.01907653945 | AK101: 3.55505276
A102: 2012-07-01 | B102: 143855.8674 | C102: -0.476489461 | D102: 0.7698191799 | E102: 157474.5101 | F102: -0.4104275486 | G102: -1.525453644 | H102: 157692.1641 | I102: -1.047641187 | J102: 0.8354481939 | K102: 163668.2502 | L102: -0.396453191 | M102: 0.4023721767 | N102: 173628.5452 | O102: 0.00323249065 | P102: 0.7468224569 | Q102: 234613.2247 | R102: 0.2992361691 | S102: 2.502924745 | T102: 406074.8553 | U102: 0.2350362342 | V102: 10.02631353 | W102: 282860.0559 | X102: 0.2937972191 | Y102: 3.268468976 | Z102: 225251.5731 | AA102: -0.4146079686 | AB102: 1.311229452 | AC102: 152490.7098 | AD102: -0.4137645805 | AE102: 1.335538295 | AF102: 153637.8253 | AG102: -0.4213973495 | AH102: 0.5096342144 | AI102: 221114.3372 | AJ102: -0.07196207012 | AK102: 2.960325346
A103: 2012-08-01 | B103: 143547.3466 | C103: -0.2144652615 | D103: 1.907866949 | E103: 158914.2828 | F103: 0.9142893821 | G103: -1.003544249 | H103: 157753.4001 | I103: 0.03883262005 | J103: -0.1441294186 | K103: 162777.0091 | L103: -0.5445412541 | M103: -0.452352718 | N103: 173364.6995 | O103: -0.1519598572 | P103: -0.09839048173 | Q103: 234151.2572 | R103: -0.1969059697 | S103: 1.877403808 | T103: 404047.9007 | U103: -0.4991578721 | V103: 7.493743059 | W103: 281720.1288 | X103: -0.4030003808 | Y103: 2.122206475 | Z103: 224550.2506 | AA103: -0.3113507776 | AB103: 1.075703385 | AC103: 151737.7972 | AD103: -0.4937432499 | AE103: -0.3702111658 | AF103: 152549.3917 | AG103: -0.708441204 | AH103: -0.856798041 | AI103: 220621.3144 | AJ103: -0.2229719067 | AK103: 2.015922175
A104: 2012-09-01 | B104: 143078.6935 | C104: -0.3264798021 | D104: 1.803317405 | E104: 158108.9773 | F104: -0.5067546501 | G104: -1.214272305 | H104: 157939.4827 | I104: 0.1179579132 | J104: 0.1286168951 | K104: 163277.1039 | L104: 0.307226924 | M104: -0.05083222633 | N104: 173189.778 | O104: -0.1008980151 | P104: -0.1419479345 | Q104: 234950.8864 | R104: 0.3415011026 | S104: 2.494500559 | T104: 409307.8274 | U104: 1.301807711 | V104: 8.523461328 | W104: 280796.3429 | X104: -0.3279090773 | Y104: 2.320995558 | Z104: 222546.577 | AA104: -0.8923052024 | AB104: -0.5448905715 | AC104: 152410.764 | AD104: 0.4435064183 | AE104: -0.1152339175 | AF104: 152202.0363 | AG104: -0.2277002661 | AH104: -1.915110072 | AI104: 220819.8023 | AJ104: 0.08996771042 | AK104: 2.155312916
A105: 2012-10-01 | B105: 144614.8065 | C105: 1.073614108 | D105: 1.56408264 | E105: 159080.8913 | F105: 0.6147114931 | G105: -0.1166428076 | H105: 157822.3311 | I105: -0.07417501214 | J105: 0.4157968037 | K105: 163993.0691 | L105: 0.4384970031 | M105: 0.5767419378 | N105: 173700.9745 | O105: 0.2951655191 | P105: -0.4919266884 | Q105: 235419.3167 | R105: 0.1993737113 | S105: 2.594661562 | T105: 409382.719 | U105: 0.018297118 | V105: 7.901096144 | W105: 279901.4225 | X105: -0.3187079989 | Y105: 2.365781263 | Z105: 223273.2266 | AA105: 0.3265157584 | AB105: -0.242758574 | AC105: 153035.069 | AD105: 0.4096200197 | AE105: -1.567459592 | AF105: 151244.5304 | AG105: -0.629101872 | AH105: -2.687521863 | AI105: 221141.8664 | AJ105: 0.1458492916 | AK105: 2.185111865
A106: 2012-11-01 | B106: 144184.6601 | C106: -0.2974428639 | D106: 1.970182279 | E106: 157195.0839 | F106: -1.185439289 | G106: -0.7642925624 | H106: 157782.4064 | I106: -0.02529723387 | J106: 0.7540479446 | K106: 164538.2654 | L106: 0.3324508287 | M106: 0.6547265457 | N106: 173456.9625 | O106: -0.1404781521 | P106: 0.310691529 | Q106: 233795.2522 | R106: -0.6898603244 | S106: 2.814179045 | T106: 414599.7403 | U106: 1.274362856 | V106: 9.700016379 | W106: 280467.9028 | X106: 0.2023856587 | Y106: 3.508164405 | Z106: 221743.9388 | AA106: -0.6849400927 | AB106: -0.1909377716 | AC106: 152992.3866 | AD106: -0.02789059872 | AE106: -1.249391398 | AF106: 150696.9102 | AG106: -0.3620760262 | AH106: -2.933379403 | AI106: 221164.2259 | AJ106: 0.01011089506 | AK106: 2.830391115
A107: 2012-12-01 | B107: 143480.1417 | C107: -0.4886223265 | D107: 1.553768457 | E107: 157272.7664 | F107: 0.04941787309 | G107: 0.144852995 | H107: 157017.3688 | I107: -0.4848687307 | J107: -0.5750844078 | K107: 163996.9211 | L107: -0.3290081574 | M107: 0.6613016932 | N107: 174341.1557 | O107: 0.5097478814 | P107: 0.0250135902 | Q107: 234570.1186 | R107: 0.3314294703 | S107: 3.135254661 | T107: 414178.2154 | U107: -0.101670312 | V107: 8.986140455 | W107: 282860.7903 | X107: 0.8531769434 | Y107: 4.895278353 | Z107: 224677.0858 | AA107: 1.322763084 | AB107: 0.6066825346 | AC107: 152604.789 | AD107: -0.2533444035 | AE107: -0.9844312595 | AF107: 149196.7319 | AG107: -0.9954937516 | AH107: -3.434024315 | AI107: 221860.8694 | AJ107: 0.3149892713 | AK107: 3.097300432
A108: 2013-01-01 | B108: 143057.9884 | C108: -0.2942241962 | D108: 0.2554768546 | E108: 157816.9087 | F108: 0.3459863339 | G108: 0.3032727566 | H108: 157389.394 | I108: 0.2369324951 | J108: -0.4559454493 | K108: 164189.8161 | L108: 0.1176210902 | M108: 0.3905625506 | N108: 175344.6743 | O108: 0.5756062105 | P108: 0.3451049818 | Q108: 234108.1093 | R108: -0.1969599944 | S108: 2.388029811 | T108: 420260.7512 | U108: 1.468579344 | V108: 10.2520421 | W108: 283250.5235 | X108: 0.1377826936 | Y108: 4.401695632 | Z108: 224249.2316 | AA108: -0.1904306847 | AB108: 0.5038016752 | AC108: 151773.2268 | AD108: -0.5449122829 | AE108: -0.4861452224 | AF108: 149418.4006 | AG108: 0.1485747606 | AH108: -2.34760532 | AI108: 222596.8817 | AJ108: 0.3317449819 | AK108: 3.134672075
A109: 2013-02-01 | B109: 145375.8819 | C109: 1.620247521 | D109: -0.0143000023 | E109: 160068.169 | F109: 1.426501318 | G109: 0.607556385 | H109: 157231.5421 | I109: -0.1002938589 | J109: -0.9045555147 | K109: 166178.2592 | L109: 1.211063609 | M109: 1.085026167 | N109: 177121.8826 | O109: 1.013551343 | P109: 1.220836838 | Q109: 238219.7877 | R109: 1.756316081 | S109: 3.742419409 | T109: 422199.5137 | U109: 0.4613237207 | V109: 10.67388943 | W109: 284770.1665 | X109: 0.5365013784 | Y109: 4.464343362 | Z109: 225275.993 | AA109: 0.4578661579 | AB109: 1.290269682 | AC109: 153688.3305 | AD109: 1.261819227 | AE109: 0.6928148285 | AF109: 150675.2693 | AG109: 0.8411739525 | AH109: -1.35297672 | AI109: 224450.9369 | AJ109: 0.8329205596 | AK109: 3.620609977
A110: 2013-03-01 | B110: 145771.449 | C110: 0.2720995465 | D110: -1.08498311 | E110: 160074.184 | F110: 0.003757798622 | G110: 0.2615111081 | H110: 157753.5226 | I110: 0.331982064 | J110: 0.3215222304 | K110: 165386.1095 | L110: -0.4766866987 | M110: 0.4013963514 | N110: 176333.1198 | O110: -0.445322051 | P110: 1.222394827 | Q110: 238132.0735 | R110: -0.03682067283 | S110: 2.551539549 | T110: 429164.0661 | U110: 1.649587967 | V110: 10.92209531 | W110: 286828.3649 | X110: 0.722757756 | Y110: 3.133372967 | Z110: 224465.2496 | AA110: -0.3598889599 | AB110: 0.7621444657 | AC110: 153288.2323 | AD110: -0.2603309198 | AE110: -0.2187268603 | AF110: 151088.7522 | AG110: 0.2744199315 | AH110: -1.260961501 | AI110: 225296.5887 | AJ110: 0.3767646624 | AK110: 3.141757445
A111: 2013-04-01 | B111: 145628.3102 | C111: -0.09819400457 | D111: -0.4627381893 | E111: 159873.0481 | F111: -0.1256516563 | G111: 0.8332632839 | H111: 158517.7144 | I111: 0.4844213462 | J111: 0.1353975661 | K111: 165322.8562 | L111: -0.03824584149 | M111: 0.4519130139 | N111: 175775.0109 | O111: -0.3165082649 | P111: 1.752675123 | Q111: 240067.1464 | R111: 0.812604881 | S111: 3.680110305 | T111: 431018.7679 | U111: 0.4321661436 | V111: 9.484307067 | W111: 287468.6712 | X111: 0.2232367106 | Y111: 2.706827667 | Z111: 225090.2006 | AA111: 0.2784177288 | AB111: 0.5994598992 | AC111: 153047.5095 | AD111: -0.1570392814 | AE111: -0.5896706143 | AF111: 151322.8702 | AG111: 0.1549539241 | AH111: -1.700778809 | AI111: 225849.6522 | AJ111: 0.2454823832 | AK111: 3.019614741
A112: 2013-05-01 | B112: 143828.7629 | C112: -1.235712539 | D112: -0.938276013 | E112: 158788.6173 | F112: -0.6783074709 | G112: 0.8046772716 | H112: 158719.2612 | I112: 0.1271446807 | J112: 0.1690447853 | K112: 164242.1024 | L112: -0.6537231597 | M112: 0.1264936626 | N112: 174499.1286 | O112: -0.7258610311 | P112: 0.6628964695 | Q112: 238866.9579 | R112: -0.4999386545 | S112: 1.917297128 | T112: 432974.072 | U112: 0.4536470922 | V112: 7.242916813 | W112: 288724.4284 | X112: 0.4368327436 | Y112: 2.049352567 | Z112: 225709.8319 | AA112: 0.2752813338 | AB112: -0.7558488467 | AC112: 152011.522 | AD112: -0.6769058621 | AE112: -1.088129957 | AF112: 151030.3519 | AG112: -0.1933074028 | AH112: -1.748050104 | AI112: 225718.6142 | AJ112: -0.05801999428 | AK112: 1.989385653
A113: 2013-06-01 | B113: 145038.087 | C113: 0.8408082497 | D113: 0.341403068 | E113: 160177.5871 | F113: 0.874728811 | G113: 1.299044582 | H113: 159053.3287 | I113: 0.2104769941 | J113: -0.1935058279 | K113: 165705.9158 | L113: 0.8912534515 | M113: 0.8436084527 | N113: 176208.2104 | O113: 0.9794214038 | P113: 1.489018463 | Q113: 239984.2499 | R113: 0.4677465587 | S113: 2.595397121 | T113: 432862.1436 | U113: -0.0258510667 | V113: 6.847178728 | W113: 287071.2749 | X113: -0.572571403 | Y113: 1.786970757 | Z113: 225106.3116 | AA113: -0.2673877137 | AB113: -0.4788291703 | AC113: 151149.6492 | AD113: -0.5669785824 | AE113: -1.28956333 | AF113: 151099.1496 | AG113: 0.04555221444 | AH113: -2.066811068 | AI113: 226002.9253 | AJ113: 0.1259582088 | AK113: 2.137333925
A114: 2013-07-01 | B114: 145082.4073 | C114: 0.03055772802 | D114: 0.8526172132 | E114: 160923.7998 | F114: 0.4658658498 | G114: 2.190379707 | H114: 158613.5746 | I114: -0.2764821798 | J114: 0.584309657 | K114: 165937.366 | L114: 0.1396752746 | M114: 1.386411704 | N114: 176937.2121 | O114: 0.4137160961 | P114: 1.905600779 | Q114: 240664.1599 | R114: 0.2833144347 | S114: 2.579110888 | T114: 435266.2401 | U114: 0.5553954359 | V114: 7.188670867 | W114: 288541.4413 | X114: 0.5121259215 | Y114: 2.008549936 | Z114: 226728.918 | AA114: 0.7208178519 | AB114: 0.6558644302 | AC114: 151773.3716 | AD114: 0.4126522329 | AE114: -0.4704143364 | AF114: 151770.8162 | AG114: 0.4445204851 | AH114: -1.215201458 | AI114: 226930.6052 | AJ114: 0.410472504 | AK114: 2.630434583
A115: 2013-08-01 | B115: 145216.3825 | C115: 0.09234417955 | D115: 1.162707601 | E115: 161890.7401 | F115: 0.6008684287 | G115: 1.872995455 | H115: 160334.0911 | I115: 1.084722083 | J115: 1.635901992 | K115: 166267.439 | L115: 0.1989142264 | M115: 2.144301561 | N115: 178380.1371 | O115: 0.8155011629 | P115: 2.892998192 | Q115: 241870.5355 | R115: 0.5012693147 | S115: 3.296705875 | T115: 441245.4395 | U115: 1.373687836 | V115: 9.206220045 | W115: 288358.7689 | X115: -0.06330890568 | Y115: 2.356466389 | Z115: 228929.4545 | AA115: 0.97055834 | AB115: 1.950211092 | AC115: 152782.8209 | AD115: 0.6651030522 | AE115: 0.6887036534 | AF115: 151774.5707 | AG115: 0.00247376701 | AH115: -0.5079148265 | AI115: 228408.5362 | AJ115: 0.6512700243 | AK115: 3.529677936
A116: 2013-09-01 | B116: 145190.643 | C116: -0.01772491629 | D116: 1.476075486 | E116: 162557.7799 | F116: 0.4120308699 | G116: 2.81375714 | H116: 160695.5936 | I116: 0.2254682862 | J116: 1.74504239 | K116: 168186.8344 | L116: 1.154402418 | M116: 3.006992634 | N116: 178992.1752 | O116: 0.3431088506 | P116: 3.350311588 | Q116: 242967.384 | R116: 0.4534857704 | S116: 3.411988656 | T116: 447633.164 | U116: 1.447657905 | V116: 9.363450687 | W116: 288611.1902 | X116: 0.08753722757 | Y116: 2.783101521 | Z116: 230193.4531 | AA116: 0.5521345684 | AB116: 3.436078964 | AC116: 154878.5129 | AD116: 1.371680363 | AE116: 1.619143406 | AF116: 152175.5071 | AG116: 0.264165711 | AH116: -0.01743027503 | AI116: 229824.6969 | AJ116: 0.6200121335 | AK116: 4.077937963
A117: 2013-10-01 | B117: 146144.8015 | C117: 0.6571763243 | D117: 1.057979504 | E117: 162511.8637 | F117: -0.02824605712 | G117: 2.156747042 | H117: 162170.4394 | I117: 0.9177885481 | J117: 2.755065319 | K117: 168534.0428 | L117: 0.2064420974 | M117: 2.76900343 | N117: 180002.0339 | O117: 0.5641915306 | P117: 3.627532549 | Q117: 243063.5789 | R117: 0.03959172358 | S117: 3.247083702 | T117: 453539.0379 | U117: 1.319355747 | V117: 10.786073 | W117: 290683.5854 | X117: 0.7180578216 | Y117: 3.852128662 | Z117: 230603.8736 | AA117: 0.1782937314 | AB117: 3.28326288 | AC117: 156412.9313 | AD117: 0.99072391 | AE117: 2.20724721 | AF117: 152261.7221 | AG117: 0.05665502616 | AH117: 0.6725477586 | AI117: 231209.9905 | AJ117: 0.6027609859 | AK117: 4.552789665
A118: 2013-11-01 | B118: 146261.8796 | C118: 0.08011101508 | D118: 1.4406661 | E118: 162028.9085 | F118: -0.2971815602 | G118: 3.075048145 | H118: 161466.1401 | I118: -0.4342956985 | J118: 2.334692337 | K118: 169650.915 | L118: 0.6626982973 | M118: 3.107270889 | N118: 180554.9262 | O118: 0.3071589562 | P118: 4.092060399 | Q118: 244133.1118 | R118: 0.4400218459 | S118: 4.421757702 | T118: 459649.4431 | U118: 1.347272152 | V118: 10.86582995 | W118: 292095.4414 | X118: 0.4857020177 | Y118: 4.145764455 | Z118: 229673.2115 | AA118: -0.4035761007 | AB118: 3.575868968 | AC118: 156101.7161 | AD118: -0.1989702591 | AE118: 2.032342617 | AF118: 153563.4147 | AG118: 0.8549046943 | AH118: 1.902165406 | AI118: 232088.9318 | AJ118: 0.3801485281 | AK118: 4.939635219
A119: 2013-12-01 | B119: 146601.8523 | C119: 0.2324410835 | D119: 2.17570921 | E119: 162467.9687 | F119: 0.2709764667 | G119: 3.303306971 | H119: 162592.2736 | I119: 0.6974424771 | J119: 3.550501955 | K119: 169332.554 | L119: -0.1876565072 | M119: 3.25349581 | N119: 181916.4689 | O119: 0.754087791 | P119: 4.345108935 | Q119: 245060.0532 | R119: 0.3796868719 | S119: 4.471982469 | T119: 466227.0685 | U119: 1.431009111 | V119: 12.56677708 | W119: 296748.4761 | X119: 1.592984353 | Y119: 4.909724606 | Z119: 232123.9443 | AA119: 1.067052081 | AB119: 3.31447174 | AC119: 156994.305 | AD119: 0.5717995586 | AE119: 2.87639469 | AF119: 154452.2577 | AG119: 0.5788116388 | AH119: 3.522547492 | AI119: 234238.4276 | AJ119: 0.9261517658 | AK119: 5.578973066
A120: 2014-01-01 | B120: 148905.446 | C120: 1.571326463 | D120: 4.0874737 | E120: 164306.8436 | F120: 1.131838424 | G120: 4.112319097 | H120: 163487.4597 | I120: 0.550571125 | J120: 3.874508653 | K120: 172938.4123 | L120: 2.129453679 | M120: 5.32834283 | N120: 183028.1347 | O120: 0.6110858472 | P120: 4.381918324 | Q120: 248073.0468 | R120: 1.229491969 | S120: 5.965166089 | T120: 478808.4819 | U120: 2.698559196 | V120: 13.93128684 | W120: 300043.9364 | X120: 1.110523068 | Y120: 5.928819717 | Z120: 232745.6996 | AA120: 0.2678548982 | AB120: 3.788850432 | AC120: 157815.2433 | AD120: 0.5229095746 | AE120: 3.980950177 | AF120: 156560.491 | AG120: 1.364974146 | AH120: 4.779926975 | AI120: 237365.1448 | AJ120: 1.334843821 | AK120: 6.634532753
A121: 2014-02-01 | B121: 150502.7675 | C121: 1.072708546 | D121: 3.52664109 | E121: 165342.789 | F121: 0.6304944266 | G121: 3.295233597 | H121: 163818.3689 | I121: 0.202406459 | J121: 4.18925279 | K121: 174305.7058 | L121: 0.7906245025 | M121: 4.890800206 | N121: 184637.3563 | O121: 0.8792209062 | P121: 4.243108545 | Q121: 251147.2664 | R121: 1.239239645 | S121: 5.42670231 | T121: 483896.8497 | U121: 1.062714624 | V121: 14.61331289 | W121: 304013.1263 | X121: 1.322869543 | Y121: 6.757365075 | Z121: 234607.7194 | AA121: 0.8000232638 | AB121: 4.142352791 | AC121: 159448.4999 | AD121: 1.03491688 | AE121: 3.747954939 | AF121: 155650.7538 | AG121: -0.5810771223 | AH121: 3.302124229 | AI121: 239694.7201 | AJ121: 0.9814310857 | AK121: 6.791588112
A122: 2014-03-01 | B122: 153397.9408 | C122: 1.923667804 | D122: 5.231814463 | E122: 166123.8902 | F122: 0.4724131863 | G122: 3.779314084 | H122: 164846.5413 | I122: 0.6276295457 | J122: 4.496266462 | K122: 175744.9578 | L122: 0.8257056078 | M122: 6.263433076 | N122: 185225.8614 | O122: 0.3187356478 | P122: 5.043148797 | Q122: 254045.5075 | R122: 1.154000676 | S122: 6.682608422 | T122: 490897.1551 | U122: 1.446652413 | V122: 14.38449626 | W122: 307348.467 | X122: 1.097104176 | Y122: 7.15413973 | Z122: 236974.4698 | AA122: 1.008811812 | AB122: 5.572898354 | AC122: 159276.6336 | AD122: -0.1077879515 | AE122: 3.906628225 | AF122: 156646.4733 | AG122: 0.6397138725 | AH122: 3.678447923 | AI122: 242055.6809 | AJ122: 0.9849865804 | AK122: 7.438679944
A123: 2014-04-01 | B123: 152569.3387 | C123: -0.5401650435 | D123: 4.766263176 | E123: 165461.1561 | F123: -0.3989396567 | G123: 3.495340854 | H123: 165016.1664 | I123: 0.1028987511 | J123: 4.09951156 | K123: 175115.916 | L123: -0.3579288069 | M123: 5.923597009 | N123: 185356.3721 | O123: 0.07046032496 | P123: 5.450923429 | Q123: 256342.7383 | R123: 0.904259552 | S123: 6.779599859 | T123: 496793.9666 | U123: 1.20123155 | V123: 15.26040248 | W123: 309318.1906 | X123: 0.6408763599 | Y123: 7.600661104 | Z123: 239320.6853 | AA123: 0.9900710243 | AB123: 6.322125383 | AC123: 158929.1121 | AD123: -0.218187413 | AE123: 3.842991328 | AF123: 156644.8925 | AG123: -0.001009133686 | AH123: 3.516998018 | AI123: 243338.2896 | AJ123: 0.5298816757 | AK123: 7.743486543
A124: 2014-05-01 | B124: 153738.804 | C124: 0.7665139883 | D124: 6.890166428 | E124: 166732.6484 | F124: 0.7684536652 | G124: 5.00289709 | H124: 165442.6238 | I124: 0.2584337536 | J124: 4.236009293 | K124: 175436.3361 | L124: 0.1829760357 | M124: 6.815690716 | N124: 185626.6451 | O124: 0.1458126109 | P124: 6.376832145 | Q124: 258224.3847 | R124: 0.7340353791 | S124: 8.103852847 | T124: 510057.3277 | U124: 2.669791086 | V124: 17.80320363 | W124: 312343.0077 | X124: 0.9778982044 | Y124: 8.180318981 | Z124: 240779.9881 | AA124: 0.6097687743 | AB124: 6.676783232 | AC124: 157877.9637 | AD124: -0.6613944359 | AE124: 3.859208633 | AF124: 158997.5656 | AG124: 1.501914945 | AH124: 5.275240114 | AI124: 245816.7563 | AJ124: 1.018527205 | AK124: 8.904069401
A125: 2014-06-01 | B125: 152113.9198 | C125: -1.056912229 | D125: 4.878603239 | E125: 166476.4873 | F125: -0.1536358783 | G125: 3.932447901 | H125: 165336.6797 | I125: -0.06403681502 | J125: 3.950468053 | K125: 175931.0716 | L125: 0.2820028474 | M125: 6.170664295 | N125: 186301.2728 | O125: 0.3634325878 | P125: 5.727918356 | Q125: 260923.0826 | R125: 1.04509803 | S125: 8.725086234 | T125: 521474.801 | U125: 2.238468637 | V125: 20.47133452 | W125: 315328.9018 | X125: 0.9559663913 | Y125: 9.843418475 | Z125: 239796.3682 | AA125: -0.4085139893 | AB125: 6.525830632 | AC125: 159196.0794 | AD125: 0.8348952889 | AE125: 5.32348588 | AF125: 159974.5717 | AG125: 0.6144786535 | AH125: 5.873906084 | AI125: 247723.7824 | AJ125: 0.77579176 | AK125: 9.610874303
A126: 2014-07-01 | B126: 151221.2153 | C126: -0.5868657434 | D126: 4.231255941 | E126: 167466.1924 | F126: 0.5945014518 | G126: 4.065522084 | H126: 165614.0447 | I126: 0.1677577084 | J126: 4.413537801 | K126: 177567.5389 | L126: 0.9301752391 | M126: 7.008772729 | N126: 188407.5071 | O126: 1.13055284 | P126: 6.482692302 | Q126: 262333.5099 | R126: 0.5405528809 | S126: 9.003978813 | T126: 525074.253 | U126: 0.6902446788 | V126: 20.63289192 | W126: 318989.6657 | X126: 1.160935086 | Y126: 10.55246145 | Z126: 241413.5171 | AA126: 0.6743842348 | AB126: 6.476720828 | AC126: 159189.2546 | AD126: -0.004287063148 | AE126: 4.886155533 | AF126: 160403.811 | AG126: 0.2683172301 | AH126: 5.688178412 | AI126: 249499.8169 | AJ126: 0.7169414637 | AK126: 9.945424374
A127: 2014-08-01 | B127: 150900.7874 | C127: -0.2118934858 | D127: 3.914437764 | E127: 168614.546 | F127: 0.6857226248 | G127: 4.153298625 | H127: 166720.5442 | I127: 0.6681193455 | J127: 3.983215941 | K127: 178682.7628 | L127: 0.6280561804 | M127: 7.467080627 | N127: 189937.6805 | O127: 0.8121615905 | P127: 6.479165001 | Q127: 265229.7595 | R127: 1.104033412 | S127: 9.657738565 | T127: 527395.9434 | U127: 0.4421642022 | V127: 19.5243953 | W127: 320972.6831 | X127: 0.6216556847 | Y127: 11.31018637 | Z127: 244263.5904 | AA127: 1.180577338 | AB127: 6.698192658 | AC127: 161324.21 | AD127: 1.341142939 | AE127: 5.590542878 | AF127: 160691.799 | AG127: 0.1795393228 | AH127: 5.875311144 | AI127: 251313.1338 | AJ127: 0.7267808542 | AK127: 10.02790789
A128: 2014-09-01 | B128: 150253.7543 | C128: -0.4287804449 | D128: 3.487215998 | E128: 169819.3438 | F128: 0.7145278451 | G128: 4.467066383 | H128: 167882.4222 | I128: 0.6969015187 | J128: 4.472324592 | K128: 180221.2269 | L128: 0.8610031033 | M128: 7.155371329 | N128: 190214.1607 | O128: 0.1455636327 | P128: 6.269539745 | Q128: 266954.5446 | R128: 0.6502984977 | S128: 9.872584655 | T128: 532283.7118 | U128: 0.926773982 | V128: 18.91069621 | W128: 321797.0237 | X128: 0.2568257931 | Y128: 11.49845698 | Z128: 245843.7326 | AA128: 0.6469004282 | AB128: 6.798750901 | AC128: 161867.1475 | AD128: 0.3365505393 | AE128: 4.512333268 | AF128: 160616.9963 | AG128: -0.04655037264 | AH128: 5.547206264 | AI128: 252749.8107 | AJ128: 0.5716680502 | AK128: 9.975043667
A129: 2014-10-01 | B129: 151773.95 | C129: 1.011752173 | D129: 3.851760969 | E129: 170527.5721 | F129: 0.4170480698 | G129: 4.932383527 | H129: 169506.774 | I129: 0.9675532581 | J129: 4.523842119 | K129: 179776.4565 | L129: -0.2467913303 | M129: 6.670707916 | N129: 191595.9415 | O129: 0.7264342202 | P129: 6.440987014 | Q129: 268685.212 | R129: 0.6483004107 | S129: 10.54112394 | T129: 532525.0494 | U129: 0.04534002467 | V129: 17.41548243 | W129: 321760.8609 | X129: -0.01123776789 | Y129: 10.69110094 | Z129: 246633.9684 | AA129: 0.3214382731 | AB129: 6.951355399 | AC129: 163664.3239 | AD129: 1.110278619 | AE129: 4.636056924 | AF129: 161012.7436 | AG129: 0.2463918873 | AH129: 5.747354826 | AI129: 253554.5866 | AJ129: 0.31840809 | AK129: 9.664200089
A130: 2014-11-01 | B130: 150816.0874 | C130: -0.6311113062 | D130: 3.113735304 | E130: 169648.4051 | F130: -0.5155571047 | G130: 4.702553852 | H130: 170260.9783 | I130: 0.4449404928 | J130: 5.446862204 | K130: 179988.9015 | L130: 0.1181717307 | M130: 6.093681516 | N130: 191885.5883 | O130: 0.1511758497 | P130: 6.27546547 | Q130: 268104.8033 | R130: -0.2160181019 | S130: 9.819107036 | T130: 533106.6904 | U130: 0.1092232354 | V130: 15.98114574 | W130: 322927.2658 | X130: 0.362506759 | Y130: 10.55539388 | Z130: 245190.5792 | AA130: -0.5852353613 | AB130: 6.756281084 | AC130: 163152.8345 | AD130: -0.312523423 | AE130: 4.517002488 | AF130: 160013.9614 | AG130: -0.6203124698 | AH130: 4.200575189 | AI130: 253513.5114 | AJ130: -0.01619973549 | AK130: 9.231194002
A131: 2014-12-01 | B131: 152462.076 | C131: 1.091387919 | D131: 3.997373532 | E131: 170157.1492 | F131: 0.2998814385 | G131: 4.732736309 | H131: 170257.9039 | I131: -0.00180566355 | J131: 4.714633852 | K131: 179929.846 | L131: -0.03281060302 | M131: 6.258272102 | N131: 192403.2091 | O131: 0.2697549179 | P131: 5.764590897 | Q131: 270302.8994 | R131: 0.8198644907 | S131: 10.30067771 | T131: 528733.1489 | U131: -0.8203876761 | V131: 13.40678923 | W131: 323748.4614 | X131: 0.2542973888 | Y131: 9.098609579 | Z131: 247209.0432 | AA131: 0.8232224652 | AB131: 6.498725902 | AC131: 163525.1274 | AD131: 0.2281866007 | AE131: 4.159910375 | AF131: 160670.138 | AG131: 0.4100745738 | AH131: 4.025762035 | AI131: 253886.1631 | AJ131: 0.1469948159 | AK131: 8.387921546
A132: 2015-01-01 | B132: 153523.988 | C132: 0.6965089934 | D132: 3.10166091 | E132: 171523.0834 | F132: 0.8027486218 | G132: 4.391928943 | H132: 170457.7879 | I132: 0.1174007044 | J132: 4.263524709 | K132: 181582.6029 | L132: 0.9185562508 | M132: 4.998421355 | N132: 193541.8765 | O132: 0.5918131203 | P132: 5.744330982 | Q132: 273549.9277 | R132: 1.201255448 | S132: 10.26991091 | T132: 531306.5396 | U132: 0.4867088007 | V132: 10.96431239 | W132: 326286.127 | X132: 0.7838386469 | Y132: 8.746115941 | Z132: 245512.3136 | AA132: -0.6863541786 | AB132: 5.485220118 | AC132: 163937.1965 | AD132: 0.2519912785 | AE132: 3.879190034 | AF132: 162051.6969 | AG132: 0.8598728186 | AH132: 3.50740201 | AI132: 255260.2914 | AJ132: 0.5412379538 | AK132: 7.539079359
A133: 2015-02-01 | B133: 156834.477 | C133: 2.156333379 | D133: 4.20703863 | E133: 172288.7398 | F133: 0.4463868252 | G133: 4.200939643 | H133: 170126.6211 | I133: -0.1942808212 | J133: 3.850760031 | K133: 183635.8653 | L133: 1.130759453 | M133: 5.352756226 | N133: 193910.4432 | O133: 0.1904325244 | P133: 5.022324349 | Q133: 277444.7021 | R133: 1.423789215 | S133: 10.47092254 | T133: 529762.2761 | U133: -0.290653963 | V133: 9.47834781 | W133: 327383.4706 | X133: 0.3363132875 | Y133: 7.687281332 | Z133: 247426.8896 | AA133: 0.7798289152 | AB133: 5.464087133 | AC133: 165221.9505 | AD133: 0.7836867096 | AE133: 3.620887386 | AF133: 166851.8479 | AG133: 2.962110954 | AH133: 7.196299275 | AI133: 256442.2521 | AJ133: 0.4630413608 | AK133: 6.987025846
A134: 2015-03-01 | B134: 157557.5143 | C134: 0.4610193481 | D134: 2.711622821 | E134: 172809.4841 | F134: 0.3022508967 | G134: 4.024462639 | H134: 170237.1675 | I134: 0.0649788511 | J134: 3.270087481 | K134: 184628.8287 | L134: 0.5407241003 | M134: 5.054979115 | N134: 194139.601 | O134: 0.1181771344 | P134: 4.81236236 | Q134: 278314.183 | R134: 0.3133888886 | S134: 9.5528851 | T134: 528650.4918 | U134: -0.2098647567 | V134: 7.690681499 | W134: 329518.9522 | X134: 0.6522875699 | Y134: 7.21346864 | Z134: 248731.5209 | AA134: 0.527279505 | AB134: 4.961315501 | AC134: 165193.7397 | AD134: -0.01707451381 | AE134: 3.714986883 | AF134: 182167.4015 | AG134: 9.179133345 | AH134: 16.29205412 | AI134: 257148.9085 | AJ134: 0.2755615938 | AK134: 6.235436209
A135: 2015-04-01 | B135: 156972.6695 | C135: -0.3711944981 | D135: 2.886117771 | E135: 172473.3164 | F135: -0.1945307974 | G135: 4.237949541 | H135: 169876.5708 | I135: -0.2118201404 | J135: 2.945411094 | K135: 184946.5076 | L135: 0.1720635152 | M135: 5.613762485 | N135: 193533.647 | O135: -0.3121228218 | P135: 4.411650269 | Q135: 279406.3707 | R135: 0.3924297955 | S135: 8.997185799 | T135: 531408.4287 | U135: 0.5216938176 | V135: 6.967568941 | W135: 330274.5887 | X135: 0.2293150184 | Y135: 6.775029304 | Z135: 250863.8183 | AA135: 0.8572687028 | AB135: 4.823290978 | AC135: 163596.7383 | AD135: -0.9667444603 | AE135: 2.936923403 | AF135: 179173.1127 | AG135: -1.643701772 | AH135: 14.38171383 | AI135: 257702.2334 | AJ135: 0.2151768657 | AK135: 5.902870387
A136: 2015-05-01 | B136: 154321.0813 | C136: -1.689203717 | D136: 0.3787445275 | E136: 172122.3435 | F136: -0.2034940144 | G136: 3.232537336 | H136: 171279.4879 | I136: 0.8258449484 | J136: 3.5280292 | K136: 185910.316 | L136: 0.5211282276 | M136: 5.970245459 | N136: 194795.9691 | O136: 0.6522494487 | P136: 4.939659425 | Q136: 279530.676 | R136: 0.04448905763 | S136: 8.25107642 | T136: 535360.2952 | U136: 0.7436589653 | V136: 4.960808547 | W136: 332650.922 | X136: 0.7195023153 | Y136: 6.501798933 | Z136: 252889.6382 | AA136: 0.8075376871 | AB136: 5.029342423 | AC136: 163061.2836 | AD136: -0.3273016254 | AE136: 3.283117975 | AF136: 175125.6645 | AG136: -2.258959605 | AH136: 10.14361373 | AI136: 258891.8904 | AJ136: 0.4616401401 | AK136: 5.319057295
A137: 2015-06-01 | B137: 153678.3288 | C137: -0.4165033649 | D137: 1.028445676 | E137: 172592.936 | F137: 0.2734058131 | G137: 3.674061649 | H137: 172465.0187 | I137: 0.6921615685 | J137: 4.311408134 | K137: 187321.0077 | L137: 0.7588022731 | M137: 6.474090125 | N137: 196304.5626 | O137: 0.774447965 | P137: 5.369415688 | Q137: 281079.8601 | R137: 0.5542089629 | S137: 7.725179856 | T137: 542174.5327 | U137: 1.272832072 | V137: 3.969459636 | W137: 333903.8404 | X137: 0.3766465899 | Y137: 5.890655251 | Z137: 252073.5123 | AA137: -0.322720176 | AB137: 5.119820718 | AC137: 162670.5921 | AD137: -0.2395979477 | AE137: 2.18253656 | AF137: 159334.7553 | AG137: -9.016901815 | AH137: -0.3999488324 | AI137: 260266.7613 | AJ137: 0.5310598752 | AK137: 5.063292186
A138: 2015-07-01 | B138: 153051.0254 | C138: -0.4081925381 | D138: 1.210022047 | E138: 173277.3446 | F138: 0.396544939 | G138: 3.470044974 | H138: 173422.0307 | I138: 0.5549020886 | J138: 4.714567557 | K138: 187250.8075 | L138: -0.03747588612 | M138: 5.453287646 | N138: 196811.2372 | O138: 0.2581064019 | P138: 4.460400867 | Q138: 282456.8386 | R138: 0.4898887287 | S138: 7.670895244 | T138: 545496.1447 | U138: 0.6126462588 | V138: 3.889334041 | W138: 335813.6714 | X138: 0.5719703717 | Y138: 5.274153837 | Z138: 254292.7993 | AA138: 0.8804125827 | AB138: 5.334946573 | AC138: 163744.2539 | AD138: 0.6600221122 | AE138: 2.861373629 | AF138: 160616.0544 | AG138: 0.8041554646 | AH138: 0.1323181593 | AI138: 261578.9618 | AJ138: 0.5041752 | AK138: 4.841344181
A139: 2015-08-01 | B139: 154409.8648 | C139: 0.8878342877 | D139: 2.325420226 | E139: 175588.8918 | F139: 1.334015848 | G139: 4.136265837 | H139: 174919.476 | I139: 0.8634689198 | J139: 4.917769389 | K139: 187767.7415 | L139: 0.2760650044 | M139: 5.084418086 | N139: 197744.0294 | O139: 0.4739526883 | P139: 4.109952697 | Q139: 286966.8507 | R139: 1.596708389 | S139: 8.195570215 | T139: 554580.2552 | U139: 1.665293261 | V139: 5.154440825 | W139: 337741.2127 | X139: 0.5739913054 | Y139: 5.224285574 | Z139: 254425.2084 | AA139: 0.05206957999 | AB139: 4.16010346 | AC139: 164168.7036 | AD139: 0.2592149942 | AE139: 1.763215552 | AF139: 161352.3273 | AG139: 0.4584055601 | AH139: 0.4110529487 | AI139: 264001.2611 | AJ139: 0.9260298757 | AK139: 5.048732277
A140: 2015-09-01 | B140: 154199.6494 | C140: -0.1361412316 | D140: 2.626154018 | E140: 175872.1139 | F140: 0.1612983875 | G140: 3.564240617 | H140: 175809.0312 | I140: 0.5085512527 | J140: 4.721524127 | K140: 189600.0809 | L140: 0.9758542317 | M140: 5.204078447 | N140: 197863.0777 | O140: 0.0602032425 | P140: 4.021213208 | Q140: 289152.3744 | R140: 0.761594483 | S140: 8.315209529 | T140: 561037.0721 | U140: 1.164270963 | V140: 5.401886189 | W140: 341338.5399 | X140: 1.065113496 | Y140: 6.072621788 | Z140: 255335.5384 | AA140: 0.3577986531 | AB140: 3.860910234 | AC140: 165594.3475 | AD140: 0.8684017248 | AE140: 2.302629022 | AF140: 162150.3142 | AG140: 0.4945617213 | AH140: 0.9546423428 | AI140: 265964.4924 | AJ140: 0.7436446509 | AK140: 5.228364615
A141: 2015-10-01 | B141: 155016.554 | C141: 0.5297707439 | D141: 2.136469409 | E141: 176699.9262 | F141: 0.4706899399 | G141: 3.619563689 | H141: 177273.3479 | I141: 0.8329018581 | J141: 4.581866392 | K141: 191972.4081 | L141: 1.251226903 | M141: 6.78395372 | N141: 199501.3949 | O141: 0.8280055087 | P141: 4.126106911 | Q141: 291813.351 | R141: 0.9202679629 | S141: 8.607894276 | T141: 568573.9034 | U141: 1.343374911 | V141: 6.769419402 | W141: 345399.5338 | X141: 1.189726145 | Y141: 7.346658871 | Z141: 257268.735 | AA141: 0.7571200714 | AB141: 4.311963458 | AC141: 166654.0527 | AD141: 0.6399404978 | AE141: 1.826744404 | AF141: 162814.7734 | AG141: 0.4097797901 | AH141: 1.119184597 | AI141: 268628.509 | AJ141: 1.001643703 | AK141: 5.945040324
A142: 2015-11-01 | B142: 155372.8841 | C142: 0.2298658521 | D142: 3.021426143 | E142: 175168.2081 | F142: -0.8668470563 | G142: 3.253672194 | H142: 177122.7822 | I142: -0.08493423338 | J142: 4.030168242 | K142: 192106.9237 | L142: 0.07007023604 | M142: 6.732649669 | N142: 199307.8116 | O142: -0.09703354199 | P142: 3.86804626 | Q142: 290733.8216 | R142: -0.3699383251 | S142: 8.440362865 | T142: 572150.4461 | U142: 0.6290374359 | V142: 7.323816476 | W142: 346903.9711 | X142: 0.435564369 | Y142: 7.424800506 | Z142: 258737.6157 | AA142: 0.5709518693 | AB142: 5.525104791 | AC142: 167187.5858 | AD142: 0.3201440463 | AE142: 2.472988755 | AF142: 163645.6985 | AG142: 0.5103499582 | AH142: 2.269637628 | AI142: 269111.3962 | AJ142: 0.1797602373 | AK142: 6.152683834
A143: 2015-12-01 | B143: 156985.2572 | C143: 1.037744197 | D143: 2.966758254 | E143: 175684.3414 | F143: 0.2946500856 | G143: 3.24828678 | H143: 177563.9743 | I143: 0.2490882916 | J143: 4.291178359 | K143: 191199.2047 | L143: -0.4725071681 | M143: 6.263195844 | N143: 201494.9501 | O143: 1.097367162 | P143: 4.725358287 | Q143: 293775.3428 | R143: 1.046153189 | S143: 8.683755659 | T143: 577383.4453 | U143: 0.9146194408 | V143: 9.201294931 | W143: 349675.1544 | X143: 0.7988329924 | Y143: 8.008283011 | Z143: 261889.8018 | AA143: 1.21829449 | AB143: 5.938600966 | AC143: 167949.4334 | AD143: 0.4556843331 | AE143: 2.705581735 | AF143: 163983.8199 | AG143: 0.2066179491 | AH143: 2.062413051 | AI143: 271150.7628 | AJ143: 0.7578150075 | AK143: 6.800134142
A144: 2016-01-01 | B144: 158822.5115 | C144: 1.170335559 | D144: 3.451267459 | E144: 176098.5744 | F144: 0.2357825639 | G144: 2.667565769 | H144: 178758.262 | I144: 0.6725957514 | J144: 4.86951884 | K144: 191993.4334 | L144: 0.4153933114 | M144: 5.733385431 | N144: 201410.5916 | O144: -0.04186627897 | P144: 4.065639568 | Q144: 297896.2931 | R144: 1.402755688 | S144: 8.900154188 | T144: 583508.2134 | U144: 1.060779998 | V144: 9.825151747 | W144: 352631.1352 | X144: 0.8453505148 | Y144: 8.074204207 | Z144: 262094.4988 | AA144: 0.07816151654 | AB144: 6.754115516 | AC144: 169302.2436 | AD144: 0.805486632 | AE144: 3.272623462 | AF144: 164315.7779 | AG144: 0.2024333525 | AH144: 1.397135012 | AI144: 273132.5703 | AJ144: 0.7308876886 | AK144: 7.001589958
A145: 2016-02-01 | B145: 161085.3816 | C145: 1.424779185 | D145: 2.710440081 | E145: 179334.9911 | F145: 1.837843765 | G145: 4.089792107 | H145: 179688.9961 | I145: 0.5206663394 | J145: 5.620739965 | K145: 194683.1105 | L145: 1.400921423 | M145: 6.015842913 | N145: 203890.262 | O145: 1.231151943 | P145: 5.146612363 | Q145: 305934.4579 | R145: 2.69830979 | S145: 10.26862492 | T145: 596483.3156 | U145: 2.223636599 | V145: 12.59452446 | W145: 362282.013 | X145: 2.736819539 | Y145: 10.65983641 | Z145: 267122.3776 | AA145: 1.918345789 | AB145: 7.960124329 | AC145: 171965.8002 | AD145: 1.5732553 | AE145: 4.081691104 | AF145: 163553.0296 | AG145: -0.4641965938 | AH145: -1.977094263 | AI145: 278749.1582 | AJ145: 2.056359618 | AK145: 8.698607931
A146: 2016-03-01 | B146: 160591.4775 | C146: -0.3066100833 | D146: 1.925622674 | E146: 180693.4634 | F146: 0.7575054064 | G146: 4.562237608 | H146: 179859.8638 | I146: 0.09509078855 | J146: 5.652523764 | K146: 195075.2885 | L146: 0.2014442966 | M146: 5.658087041 | N146: 202825.4143 | O146: -0.5222651167 | P146: 4.474003901 | Q146: 307273.2753 | R146: 0.4376157661 | S146: 10.40518024 | T146: 598067.3581 | U146: 0.2655635975 | V146: 13.13095654 | W146: 362500.4701 | X146: 0.06030031288 | Y146: 10.00898967 | Z146: 266019.9146 | AA146: -0.4127183249 | AB146: 6.950624389 | AC146: 170847.508 | AD146: -0.650299185 | AE146: 3.422507606 | AF146: 165321.8544 | AG146: 1.081499276 | AH146: -9.247289554 | AI146: 279015.2516 | AJ146: 0.0954597932 | AK146: 8.50337776
A147: 2016-04-01 | B147: 159453.5095 | C147: -0.7086104664 | D147: 1.580428004 | E147: 181218.9224 | F147: 0.2908013678 | G147: 5.070700898 | H147: 178460.6604 | I147: -0.7779408808 | J147: 5.053133284 | K147: 194557.2896 | L147: -0.2655379494 | M147: 5.196519893 | N147: 203334.4364 | O147: 0.2509656091 | P147: 5.064126839 | Q147: 308676.2388 | R147: 0.4565849205 | S147: 10.47573395 | T147: 597884.4345 | U147: -0.03058578421 | V147: 12.50939997 | W147: 362199.0298 | X147: -0.08315585416 | Y147: 9.666030081 | Z147: 267262.9534 | AA147: 0.4672728233 | AB147: 6.537066662 | AC147: 169933.5533 | AD147: -0.5349534951 | AE147: 3.873435974 | AF147: 165515.3487 | AG147: 0.1170409193 | AH147: -7.622663835 | AI147: 279083.9305 | AJ147: 0.02461476574 | AK147: 8.297055403
A148: 2016-05-01 | B148: 157186.1674 | C148: -1.42194555 | D148: 1.856574674 | E148: 179781.9357 | F148: -0.7929562346 | G148: 4.450085897 | H148: 178724.7697 | I148: 0.1479930399 | J148: 4.346861327 | K148: 194271.9012 | L148: -0.146686055 | M148: 4.497644545 | N148: 203941.1353 | O148: 0.2983748958 | P148: 4.694740947 | Q148: 307109.5041 | R148: -0.5075656936 | S148: 9.866118623 | T148: 591433.5922 | U148: -1.078944691 | V148: 10.47393643 | W148: 358984.1006 | X148: -0.8876139621 | Y148: 7.916159818 | Z148: 265278.1786 | AA148: -0.742629964 | AB148: 4.898793194 | AC148: 168486.9053 | AD148: -0.8513021032 | AE148: 3.32735133 | AF148: 166030.1595 | AG148: 0.311035133 | AH148: -5.193701888 | AI148: 277191.1587 | AJ148: -0.6782088203 | AK148: 7.068304948
A149: 2016-06-01 | B149: 157890.4899 | C149: 0.4480817064 | D149: 2.740894635 | E149: 180293.3437 | F149: 0.2844601669 | G149: 4.461600697 | H149: 179486.0134 | I149: 0.4259306997 | J149: 4.070967403 | K149: 195347.3632 | L149: 0.5535859918 | M149: 4.284813333 | N149: 205797.1957 | O149: 0.9100961447 | P149: 4.835666066 | Q149: 309101.8085 | R149: 0.6487277104 | S149: 9.969390361 | T149: 589080.9193 | U149: -0.3977915561 | V149: 8.651528937 | W149: 361815.0911 | X149: 0.7886116725 | Y149: 8.359068514 | Z149: 266739.083 | AA149: 0.5507065897 | AB149: 5.817973712 | AC149: 169326.3921 | AD149: 0.4982504662 | AE149: 4.091581633 | AF149: 164788.1699 | AG149: -0.7480506217 | AH149: 3.422614625 | AI149: 278300.6586 | AJ149: 0.4002652643 | AK149: 6.929005141
A150: 2016-07-01 | B150: 157145.6343 | C150: -0.4717546001 | D150: 2.675322744 | E150: 179595.5313 | F150: -0.3870427884 | G150: 3.646285505 | H150: 179402.7969 | I150: -0.04636381043 | J150: 3.448677266 | K150: 197197.2883 | L150: 0.9469925963 | M150: 5.311849343 | N150: 206878.2336 | O150: 0.5252928078 | P150: 5.115051602 | Q150: 309451.2311 | R150: 0.1130444961 | S150: 9.556997323 | T150: 586955.6839 | U150: -0.3607713821 | V150: 7.600335882 | W150: 364105.1215 | X150: 0.6329283745 | Y150: 8.42474638 | Z150: 267752.4409 | AA150: 0.3799060208 | AB150: 5.292970008 | AC150: 168906.9886 | AD150: -0.2476894014 | AE150: 3.152925698 | AF150: 165216.9741 | AG150: 0.2602153854 | AH150: 2.864545318 | AI150: 278735.2787 | AJ150: 0.1561692754 | AK150: 6.558752589
A151: 2016-08-01 | B151: 156543.8455 | C151: -0.3829497374 | D151: 1.382023499 | E151: 180474.7254 | F151: 0.4895412166 | G151: 2.782541401 | H151: 179193.6866 | I151: -0.1165590906 | J151: 2.443530383 | K151: 198097.5314 | L151: 0.4565189996 | M151: 5.501365595 | N151: 207267.5287 | O151: 0.1881759763 | P151: 4.816074275 | Q151: 311179.8877 | R151: 0.5586200278 | S151: 8.437572829 | T151: 587696.9256 | U151: 0.1262858105 | V151: 5.971483858 | W151: 365843.3305 | X151: 0.4773920632 | Y151: 8.32060665 | Z151: 268635.4003 | AA151: 0.3297670842 | AB151: 5.585213788 | AC151: 168382.834 | AD151: -0.3103214297 | AE151: 2.566951148 | AF151: 165978.0211 | AG151: 0.4606348743 | AH151: 2.866828028 | AI151: 279550.5366 | AJ151: 0.2924846406 | AK151: 5.889848937
A152: 2016-09-01 | B152: 156607.59 | C152: 0.04071995088 | D152: 1.561573386 | E152: 180443.9883 | F152: -0.01703124559 | G152: 2.599544843 | H152: 179811.0937 | I152: 0.3445473777 | J152: 2.276369124 | K152: 199538.2154 | L152: 0.7272599665 | M152: 5.241629892 | N152: 207546.7591 | O152: 0.1347197816 | P152: 4.894132592 | Q152: 313587.2191 | R152: 0.7736140731 | S152: 8.450508067 | T152: 595249.8994 | U152: 1.285181764 | V152: 6.098140204 | W152: 367048.7355 | X152: 0.3294866835 | Y152: 7.53216898 | Z152: 269192.6403 | AA152: 0.2074335646 | AB152: 5.427016515 | AC152: 169895.9507 | AD152: 0.8986169254 | AE152: 2.59767515 | AF152: 166175.4529 | AG152: 0.1189505709 | AH152: 2.482350232 | AI152: 281143.5252 | AJ152: 0.5698392249 | AK152: 5.707165153
A153: 2016-10-01 | B153: 158569.4163 | C153: 1.252701903 | D153: 2.29192446 | E153: 183476.5444 | F153: 1.680607953 | G153: 3.835099585 | H153: 182175.7557 | I153: 1.31508126 | J153: 2.765451136 | K153: 200738.0863 | L153: 0.6013238371 | M153: 4.566113555 | N153: 209911.6077 | O153: 1.139429328 | P153: 5.218115311 | Q153: 316256.0835 | R153: 0.8510756371 | S153: 8.376152905 | T153: 602867.2625 | U153: 1.279691623 | V153: 6.031469063 | W153: 368515.979 | X153: 0.3997407727 | Y153: 6.692668333 | Z153: 271254.7147 | AA153: 0.7660218658 | AB153: 5.436330891 | AC153: 172043.8111 | AD153: 1.264221065 | AE153: 3.23409976 | AF153: 167230.4971 | AG153: 0.6348977785 | AH153: 2.712114908 | AI153: 283844.1453 | AJ153: 0.9605841434 | AK153: 5.664192687
A154: 2016-11-01 | B154: 159676.7256 | C154: 0.6983120556 | D154: 2.770008145 | E154: 183952.4056 | F154: 0.2593580784 | G154: 5.014721325 | H154: 183628.7685 | I154: 0.7975884429 | J154: 3.673150493 | K154: 201816.196 | L154: 0.5370728153 | M154: 5.05409807 | N154: 210716.5175 | O154: 0.3834517744 | P154: 5.724163942 | Q154: 317778.5274 | R154: 0.4813959289 | S154: 9.302222102 | T154: 609869.0457 | U154: 1.161413751 | V154: 6.592426856 | W154: 369816.1937 | X154: 0.3528245224 | Y154: 6.60477382 | Z154: 271491.6794 | AA154: 0.08735873783 | AB154: 4.929342695 | AC154: 173293.5361 | AD154: 0.7263992796 | AE154: 3.652155313 | AF154: 167172.5955 | AG154: -0.03462385248 | AH154: 2.155202981 | AI154: 285456.0636 | AJ154: 0.5678884922 | AK154: 6.073569378
A155: 2016-12-01 | B155: 160697.164 | C155: 0.6390651713 | D155: 2.364493879 | E155: 185260.9693 | F155: 0.7113599145 | G155: 5.45104237 | H155: 184170.7038 | I155: 0.2951254666 | J155: 3.720760093 | K155: 202594.2594 | L155: 0.3855307259 | M155: 5.95978146 | N155: 212710.9264 | O155: 0.9464891135 | P155: 5.566380847 | Q155: 318445.2019 | R155: 0.2097921777 | S155: 8.397525445 | T155: 613094.5414 | U155: 0.528883315 | V155: 6.184987875 | W155: 373514.7233 | X155: 1.000099409 | Y155: 6.817633038 | Z155: 276799.5201 | AA155: 1.955065704 | AB155: 5.693126747 | AC155: 174392.2057 | AD155: 0.633993413 | AE155: 3.836138137 | AF155: 167025.0379 | AG155: -0.08826661111 | AH155: 1.854584193 | AI155: 287658.8567 | AJ155: 0.7716750116 | AK155: 6.088160604
A156: 2017-01-01 | B156: 161581.7262 | C156: 0.5504529124 | D156: 1.737294482 | E156: 185042.0442 | F156: -0.1181711886 | G156: 5.078672432 | H156: 184427.7721 | I156: 0.1395815475 | J156: 3.171607288 | K156: 204342.6359 | L156: 0.862994081 | M156: 6.432096293 | N156: 214699.7466 | O156: 0.9349873486 | P156: 6.598041785 | Q156: 321433.7623 | R156: 0.9384849949 | S156: 7.901229325 | T156: 617842.465 | U156: 0.7744194897 | V156: 5.88410768 | W156: 377941.2503 | X156: 1.185101077 | Y156: 7.177504372 | Z156: 278480.458 | AA156: 0.6072762837 | AB156: 6.251927921 | AC156: 175139.9718 | AD156: 0.4287841394 | AE156: 3.448110328 | AF156: 166837.1811 | AG156: -0.1124722507 | AH156: 1.534486385 | AI156: 289822.8756 | AJ156: 0.7522865479 | AK156: 6.110697541
A157: 2017-02-01 | B157: 162276.9035 | C157: 0.4302326151 | D157: 0.7396834637 | E157: 187009.0648 | F157: 1.063012787 | G157: 4.27918368 | H157: 184096.1287 | I157: -0.1798228955 | J157: 2.452644681 | K157: 205516.2683 | L157: 0.5743453535 | M157: 5.564508281 | N157: 216132.1896 | O157: 0.6671842914 | P157: 6.004174718 | Q157: 323878.4311 | R157: 0.7605513259 | S157: 5.865299806 | T157: 620592.6857 | U157: 0.4451330061 | V157: 4.041918612 | W157: 381006.9076 | X157: 0.8111465148 | Y157: 5.168596272 | Z157: 280378.5091 | AA157: 0.6815742649 | AB157: 4.962568702 | AC157: 176938.6142 | AD157: 1.026974261 | AE157: 2.891745948 | AF157: 167940.7225 | AG157: 0.6614481482 | AH157: 2.682734119 | AI157: 291690.0192 | AJ157: 0.6442361239 | AK157: 4.642475379
A158: 2017-03-01 | B158: 161603.6666 | C158: -0.4148691954 | D158: 0.6302881599 | E158: 187741.7856 | F158: 0.3918103204 | G158: 3.900706812 | H158: 185391.2687 | I158: 0.7035128868 | J158: 3.075397032 | K158: 206896.2617 | L158: 0.6714764582 | M158: 6.05969789 | N158: 217519.2185 | O158: 0.641750284 | P158: 7.244557725 | Q158: 327087.3007 | R158: 0.9907636086 | S158: 6.448339952 | T158: 626179.6108 | U158: 0.9002563447 | V158: 4.700516128 | W158: 382093.1445 | X158: 0.285096394 | Y158: 5.404868682 | Z158: 280289.6332 | AA158: -0.03169856466 | AB158: 5.364154246 | AC158: 176660.4826 | AD158: -0.1571910009 | AE158: 3.402434572 | AF158: 168330.2114 | AG158: 0.2319204475 | AH158: 1.819697089 | AI158: 293217.5745 | AJ158: 0.5236912945 | AK158: 5.090160063
A159: 2017-04-01 | B159: 160428.7279 | C159: -0.7270495203 | D159: 0.6116004637 | E159: 187437.6328 | F159: -0.1620059367 | G159: 3.431600989 | H159: 186091.2184 | I159: 0.3775526669 | J159: 4.275764745 | K159: 207136.3727 | L159: 0.1160538093 | M159: 6.46549049 | N159: 216190.9247 | O159: -0.6106558414 | P159: 6.322828834 | Q159: 327466.0897 | R159: 0.1158067034 | S159: 6.087235944 | T159: 628936.3718 | U159: 0.4402508495 | V159: 5.193635338 | W159: 381248.9871 | X159: -0.2209297379 | Y159: 5.259527441 | Z159: 280157.5253 | AA159: -0.04713263346 | AB159: 4.824676122 | AC159: 174383.0139 | AD159: -1.289178365 | AE159: 2.618353224 | AF159: 170237.6976 | AG159: 1.133181133 | AH159: 2.853118451 | AI159: 293135.3053 | AJ159: -0.02805739463 | AK159: 5.034820427
A160: 2017-05-01 | B160: 160308.4102 | C160: -0.07499763053 | D160: 1.986334289 | E160: 187078.0212 | F160: -0.1918566492 | G160: 4.058297341 | H160: 186319.2606 | I160: 0.12254325 | J160: 4.249265998 | K160: 207068.1188 | L160: -0.03295116211 | M160: 6.586756782 | N160: 216173.1629 | O160: -0.008215818464 | P160: 5.99782265 | Q160: 329142.4838 | R160: 0.5119290492 | S160: 7.174307338 | T160: 626814.8765 | U160: -0.3373147671 | V160: 5.982291985 | W160: 380566.9454 | X160: -0.1788966703 | Y160: 6.012200747 | Z160: 281538.7691 | AA160: 0.4930239922 | AB160: 6.129637413 | AC160: 172837.946 | AD160: -0.8860197104 | AE160: 2.582420693 | AF160: 170830.3285 | AG160: 0.3481196359 | AH160: 2.891142749 | AI160: 293034.8238 | AJ160: -0.0342781846 | AK160: 5.715790211
A161: 2017-06-01 | B161: 160030.0186 | C161: -0.1736599958 | D161: 1.355071292 | E161: 186782.6376 | F161: -0.1578932551 | G161: 3.599297574 | H161: 184443.7694 | I161: -1.006600848 | J161: 2.762196261 | K161: 208370.3077 | L161: 0.6288698199 | M161: 6.666557607 | N161: 216330.258 | O161: 0.07267097382 | P161: 5.118175835 | Q161: 329802.0522 | R161: 0.2003899305 | S161: 6.696901492 | T161: 619220.9523 | U161: -1.211509892 | V161: 5.116450398 | W161: 379188.0227 | X161: -0.3623338029 | Y161: 4.801605018 | Z161: 280462.022 | AA161: -0.3824507396 | AB161: 5.144705011 | AC161: 172961.2905 | AD161: 0.07136420686 | AE161: 2.146681507 | AF161: 172030.4937 | AG161: 0.7025481119 | AH161: 4.394929449 | AI161: 291896.2227 | AJ161: -0.3885548691 | AK161: 4.885207309
A162: 2017-07-01 | B162: 159946.7465 | C162: -0.05203527453 | D162: 1.782494502 | E162: 188435.6199 | F162: 0.8849764345 | G162: 4.922220833 | H162: 184381.0014 | I162: -0.03403094598 | J162: 2.774875662 | K162: 208203.4202 | L162: -0.08009180998 | M162: 5.58127953 | N162: 216473.263 | O162: 0.06610491196 | P162: 4.638008181 | Q162: 328940.2847 | R162: -0.2612984098 | S162: 6.297940215 | T162: 613250.4066 | U162: -0.9642027905 | V162: 4.479848041 | W162: 379282.7945 | X162: 0.02499333511 | Y162: 4.168486526 | Z162: 282648.8238 | AA162: 0.779714049 | AB162: 5.56349099 | AC162: 174806.958 | AD162: 1.067098605 | AE162: 3.493028583 | AF162: 172337.4272 | AG162: 0.1784180791 | AH162: 4.309758836 | AI162: 291758.3585 | AJ162: -0.0472305792 | AK162: 4.672203596
A163: 2017-08-01 | B163: 159161.0861 | C163: -0.491201286 | D163: 1.671889816 | E163: 189799.0682 | F163: 0.7235618713 | G163: 5.166564338 | H163: 186526.4955 | I163: 1.16361993 | J163: 4.092113419 | K163: 209148.1383 | L163: 0.4537476638 | M163: 5.578366815 | N163: 217751.3633 | O163: 0.5904195134 | P163: 5.058117262 | Q163: 329190.3462 | R163: 0.07602036115 | S163: 5.787796475 | T163: 611083.9244 | U163: -0.353278555 | V163: 3.979431876 | W163: 379665.8355 | X163: 0.1009908785 | Y163: 3.778258029 | Z163: 282301.4393 | AA163: -0.1229032014 | AB163: 5.087207061 | AC163: 176366.5361 | AD163: 0.8921716646 | AE163: 4.741399066 | AF163: 172970.7649 | AG163: 0.3674986425 | AH163: 4.213054113 | AI163: 292226.381 | AJ163: 0.1604144511 | AK163: 4.534365972
A164: 2017-09-01 | B164: 160156.5381 | C164: 0.6254368374 | D164: 2.266140546 | E164: 190543.196 | F164: 0.3920607976 | G164: 5.596865671 | H164: 189053.2754 | I164: 1.354649331 | J164: 5.139939632 | K164: 209537.88 | L164: 0.1863471827 | M164: 5.011403232 | N164: 219135.7995 | O164: 0.6357875857 | P164: 5.583821436 | Q164: 328822.3017 | R164: -0.11180295 | S164: 4.858323847 | T164: 620122.0463 | U164: 1.479031199 | V164: 4.178437829 | W164: 379487.0169 | X164: -0.04709894335 | Y164: 3.388727476 | Z164: 284785.0053 | AA164: 0.8797567689 | AB164: 5.792270201 | AC164: 178668.1123 | AD164: 1.304995976 | AE164: 5.163255298 | AF164: 173295.6792 | AG164: 0.187843471 | AH164: 4.284764208 | AI164: 294023.9608 | AJ164: 0.6151326081 | AK164: 4.581444849
A165: 2017-10-01 | B165: 160708.5996 | C165: 0.344701146 | D165: 1.349051605 | E165: 191418.8205 | F165: 0.4595412105 | G165: 4.328769193 | H165: 189279.2689 | I165: 0.1195395986 | J165: 3.899263747 | K165: 210332.4503 | L165: 0.3792012459 | M165: 4.77954341 | N165: 220078.4355 | O165: 0.4301606782 | P165: 4.843385238 | Q165: 331368.1798 | R165: 0.7742413094 | S165: 4.77843656 | T165: 626127.6613 | U165: 0.9684569274 | V165: 3.858295224 | W165: 378523.5588 | X165: -0.2538843296 | Y165: 2.715643392 | Z165: 286079.8998 | AA165: 0.4546919495 | AB165: 5.465411028 | AC165: 180140.5547 | AD165: 0.8241214899 | AE165: 4.706210317 | AF165: 172662.6374 | AG165: -0.3652957575 | AH165: 3.248295256 | AI165: 295304.4778 | AJ165: 0.4355145145 | AK165: 4.037544069
A166: 2017-11-01 | B166: 161487.4235 | C166: 0.4846187014 | D166: 1.133977307 | E166: 192006.4675 | F166: 0.3069954112 | G166: 4.37834007 | H166: 189228.7277 | I166: -0.02670194992 | J166: 3.049608848 | K166: 211228.5369 | L166: 0.426033466 | M166: 4.663818414 | N166: 220635.7986 | O166: 0.2532565821 | P166: 4.707405608 | Q166: 330894.3648 | R166: -0.1429874965 | S166: 4.127351665 | T166: 632697.5906 | U166: 1.049295494 | V166: 3.743187985 | W166: 377773.949 | X166: -0.1980351825 | Y166: 2.151813632 | Z166: 288018.9098 | AA166: 0.677786154 | AB166: 6.087564224 | AC166: 180627.5432 | AD166: 0.2703380934 | AE166: 4.232129651 | AF166: 172868.9905 | AG166: 0.1195122919 | AH166: 3.407493318 | AI166: 296276.9887 | AJ166: 0.3293248136 | AK166: 3.790749794
A167: 2017-12-01 | B167: 161251.7178 | C167: -0.1459591859 | D167: 0.3450924405 | E167: 194205.093 | F167: 1.145078909 | G167: 4.827851116 | H167: 189743.1885 | I167: 0.2718724534 | J167: 3.025717219 | K167: 211768.0735 | L167: 0.2554279098 | M167: 4.528170802 | N167: 221201.9586 | O167: 0.256603861 | P167: 3.99181762 | Q167: 331589.1845 | R167: 0.2099823495 | S167: 4.127549271 | T167: 627810.8322 | U167: -0.7723687379 | V167: 2.400329775 | W167: 380788.4394 | X167: 0.7979614315 | Y167: 1.947370655 | Z167: 291763.5392 | AA167: 1.300133175 | AB167: 5.406085611 | AC167: 180377.8582 | AD167: -0.138231969 | AE167: 3.432293597 | AF167: 174314.363 | AG167: 0.8361086204 | AH167: 4.364211036 | AI167: 297197.8104 | AJ167: 0.3107975604 | AK167: 3.316064658
A168: 2018-01-01 | B168: 164636.1732 | C168: 2.098864727 | D168: 1.890341837 | E168: 194447.2496 | F168: 0.1246911561 | G168: 5.082739698 | H168: 191318.7758 | I168: 0.8303788592 | J168: 3.736424088 | K168: 215981.5975 | L168: 1.989687994 | M168: 5.695806711 | N168: 224010.9174 | O168: 1.269861643 | P168: 4.33683363 | Q168: 333346.8007 | R168: 0.5300583518 | S168: 3.706218741 | T168: 624829.2567 | U168: -0.4749162225 | V168: 1.130837084 | W168: 385156.0689 | X168: 1.146996353 | Y168: 1.908978873 | Z168: 291230.548 | AA168: -0.1826791703 | AB168: 4.578450521 | AC168: 181868.876 | AD168: 0.8266080109 | AE168: 3.842015131 | AF168: 176082.6999 | AG168: 1.014452764 | AH168: 5.54164172 | AI168: 298811.713 | AJ168: 0.5430398652 | AK168: 3.101493411
A169: 2018-02-01 | B169: 167080.8081 | C169: 1.484871092 | D169: 2.96031322 | E169: 195244.9678 | F169: 0.4102491597 | G169: 4.404012749 | H169: 191711.5816 | I169: 0.2053148528 | J169: 4.136671953 | K169: 217951.9888 | L169: 0.9122959312 | M169: 6.050966457 | N169: 226043.4479 | O169: 0.9073354444 | P169: 4.585739081 | Q169: 336746.3475 | R169: 1.019822834 | S169: 3.973069879 | T169: 618859.4845 | U169: -0.9554245705 | V169: -0.279281613 | W169: 388546.4469 | X169: 0.8802608296 | Y169: 1.978845842 | Z169: 291783.6553 | AA169: 0.1899207797 | AB169: 4.067767607 | AC169: 185584.4063 | AD169: 2.042972063 | AE169: 4.88632295 | AF169: 179744.3938 | AG169: 2.079530724 | AH169: 7.028474721 | AI169: 300029.6251 | AJ169: 0.407585133 | AK169: 2.859064519
A170: 2018-03-01 | B170: 168723.2534 | C170: 0.9830245032 | D170: 4.405584938 | E170: 194668.9796 | F170: -0.2950079979 | G170: 3.689745437 | H170: 191291.1938 | I170: -0.2192814216 | J170: 3.182417971 | K170: 218519.3815 | L170: 0.2603292464 | M170: 5.617849146 | N170: 225722.857 | O170: -0.1418270956 | P170: 3.771454561 | Q170: 338343.8252 | R170: 0.4743860597 | S170: 3.44144345 | T170: 613060.6418 | U170: -0.9370208948 | V170: -2.095080827 | W170: 388516.8033 | X170: -0.007629373397 | Y170: 1.681176128 | Z170: 289349.2311 | AA170: -0.8343250808 | AB170: 3.232227255 | AC170: 183450.6644 | AD170: -1.149742017 | AE170: 3.843633671 | AF170: 180752.3661 | AG170: 0.5607809593 | AH170: 7.379634699 | AI170: 299205.7487 | AJ170: -0.2745983306 | AK170: 2.042228975
A171: 2018-04-01 | B171: 166094.127 | C171: -1.558247796 | D171: 3.531411845 | E171: 193882.4334 | F171: -0.4040428763 | G171: 3.438370709 | H171: 190958.5894 | I171: -0.1738733212 | J171: 2.615583402 | K171: 217417.2537 | L171: -0.5043615905 | M171: 4.963339328 | N171: 226239.8423 | O171: 0.229035411 | P171: 4.64816809 | Q171: 337742.1834 | R171: -0.177819658 | S171: 3.138063438 | T171: 611064.9297 | U171: -0.3255325776 | V171: -2.841534205 | W171: 388057.307 | X171: -0.1182693524 | Y171: 1.785793547 | Z171: 289205.3262 | AA171: -0.04973397879 | AB171: 3.229540562 | AC171: 180882.8871 | AD171: -1.399710015 | AE171: 3.727354544 | AF171: 181041.0209 | AG171: 0.1596962953 | AH171: 6.34602293 | AI171: 298409.5422 | AJ171: -0.266106698 | AK171: 1.799249987
A172: 2018-05-01 | B172: 164248.8939 | C172: -1.110956283 | D172: 2.45806424 | E172: 192040.6342 | F172: -0.9499567091 | G172: 2.652696991 | H172: 190297.7632 | I172: -0.3460573467 | J172: 2.135314703 | K172: 216963.7814 | L172: -0.2085723929 | M172: 4.778940658 | N172: 225501.4393 | O172: -0.3263806138 | P172: 4.315187103 | Q172: 336681.2098 | R172: -0.3141371172 | S172: 2.290414154 | T172: 613896.7611 | U172: 0.4634256115 | V172: -2.060913991 | W172: 385553.1753 | X172: -0.6452994444 | Y172: 1.310210981 | Z172: 289746.9634 | AA172: 0.1872846457 | AB172: 2.915475655 | AC172: 176647.8634 | AD172: -2.341306999 | AE172: 2.204329233 | AF172: 179716.3074 | AG172: -0.7317200944 | AH172: 5.201640144 | AI172: 297506.9408 | AJ172: -0.3024706977 | AK172: 1.526138402
A173: 2018-06-01 | B173: 163921.753 | C173: -0.1991738576 | D173: 2.431877756 | E173: 192168.1953 | F173: 0.06642402086 | G173: 2.883328877 | H173: 191290.8526 | I173: 0.5218607743 | J173: 3.712287614 | K173: 218043.3574 | L173: 0.4975835339 | M173: 4.642239948 | N173: 226818.6434 | O173: 0.5841222503 | P173: 4.848321025 | Q173: 337681.8731 | R173: 0.2972138794 | S173: 2.3892577 | T173: 614558.2091 | U173: 0.1077458179 | V173: -0.7530015178 | W173: 385217.2923 | X173: -0.08711716723 | Y173: 1.590047477 | Z173: 288676.6666 | AA173: -0.3693901618 | AB173: 2.928968615 | AC173: 179124.0542 | AD173: 1.401766614 | AE173: 3.563088422 | AF173: 179000.0714 | AG173: -0.398537034 | AH173: 4.05136177 | AI173: 297959.1209 | AJ173: 0.1519897645 | AK173: 2.077073179
A174: 2018-07-01 | B174: 162405.2845 | C174: -0.9251173021 | D174: 1.53709784 | E174: 192674.4516 | F174: 0.2634443573 | G174: 2.249485352 | H174: 192234.2064 | I174: 0.4931515654 | J174: 4.259226785 | K174: 216909.6502 | L174: -0.5199457435 | M174: 4.181598003 | N174: 225471.9355 | O174: -0.5937377277 | P174: 4.15694413 | Q174: 335835.6927 | R174: -0.5467217868 | S174: 2.096249197 | T174: 609883.979 | U174: -0.7605837905 | V174: -0.548948285 | W174: 382982.8399 | X174: -0.5800498757 | Y174: 0.9755373785 | Z174: 289815.5386 | AA174: 0.394514744 | AB174: 2.535554449 | AC174: 181452.911 | AD174: 1.300136293 | AE174: 3.801881293 | AF174: 178906.4998 | AG174: -0.0522745772 | AH174: 3.81175043 | AI174: 297018.79 | AJ174: -0.3155905676 | AK174: 1.803009715
A175: 2018-08-01 | B175: 162478.5515 | C175: 0.04511367586 | D175: 2.08434457 | E175: 194468.0144 | F175: 0.9308773146 | G175: 2.459941545 | H175: 193070.2926 | I175: 0.4349310128 | J175: 3.508239986 | K175: 218447.3346 | L175: 0.7089054487 | M175: 4.446224723 | N175: 227319.6246 | O175: 0.8194763072 | P175: 4.39412234 | Q175: 335740.6201 | R175: -0.02830926958 | S175: 1.98981347 | T175: 607826.3797 | U175: -0.3373755395 | V175: -0.5330764973 | W175: 383900.6016 | X175: 0.2396352011 | Y175: 1.115392987 | Z175: 291211.5488 | AA175: 0.4816892105 | AB175: 3.156239472 | AC175: 183727.0909 | AD175: 1.253316826 | AE175: 4.173441807 | AF175: 179092.6766 | AG175: 0.1040637428 | AH175: 3.539275391 | AI175: 297858.6602 | AJ175: 0.2827666975 | AK175: 1.927368495
A176: 2018-09-01 | B176: 162296.7592 | C176: -0.1118869441 | D176: 1.336330774 | E176: 194370.5613 | F176: -0.05011266196 | G176: 2.008660174 | H176: 192551.762 | I176: -0.2685708666 | J176: 1.850529493 | K176: 219859.7644 | L176: 0.646576825 | M176: 4.926023119 | N176: 228816.8054 | O176: 0.6586236161 | P176: 4.417811203 | Q176: 334737.0728 | R176: -0.298905534 | S176: 1.798774306 | T176: 612802.5411 | U176: 0.8186813882 | V176: -1.180333013 | W176: 383751.946 | X176: -0.03872240385 | Y176: 1.123866949 | Z176: 292550.5018 | AA176: 0.4597870627 | AB176: 2.726792604 | AC176: 184650.0587 | AD176: 0.5023580588 | AE176: 3.348077238 | AF176: 180566.274 | AG176: 0.8228127549 | AH176: 4.195485339 | AI176: 298624.4775 | AJ176: 0.2571076139 | AK176: 1.564674092
A177: 2018-10-01 | B177: 164027.6228 | C177: 1.06648065 | D177: 2.065243071 | E177: 196173.2792 | F177: 0.9274645046 | G177: 2.483798998 | H177: 192199.7448 | I177: -0.1828169202 | J177: 1.542945462 | K177: 222049.3835 | L177: 0.9959162511 | M177: 5.570673127 | N177: 229902.7423 | O177: 0.474587909 | P177: 4.464002448 | Q177: 336791.858 | R177: 0.6138504999 | S177: 1.636752865 | T177: 620668.6346 | U177: 1.283626115 | V177: -0.8718711912 | W177: 384376.3884 | X177: 0.1627203071 | Y177: 1.546225971 | Z177: 293678.1085 | AA177: 0.3854400187 | AB177: 2.655974322 | AC177: 186296.341 | AD177: 0.891568759 | AE177: 3.417212931 | AF177: 181617.7065 | AG177: 0.5822972515 | AH177: 5.186454442 | AI177: 300545.4179 | AJ177: 0.6432628816 | AK177: 1.774758097
A178: 2018-11-01 | B178: 163358.5237 | C178: -0.407918505 | D178: 1.158666242 | E178: 196117.2057 | F178: -0.02858368144 | G178: 2.140937365 | H178: 192202.3271 | I178: 0.001343552831 | J178: 1.571431298 | K178: 221359.0896 | L178: -0.3108740683 | M178: 4.796015185 | N178: 229443.2154 | O178: -0.199878798 | P178: 3.991834889 | Q178: 334418.9946 | R178: -0.7045489139 | S178: 1.065182801 | T178: 620246.4375 | U178: -0.0680229401 | V178: -1.967946974 | W178: 382558.5296 | X178: -0.4729371635 | Y178: 1.266519467 | Z178: 292357.8369 | AA178: -0.4495642013 | AB178: 1.506472991 | AC178: 186508.1707 | AD178: 0.1137058025 | AE178: 3.255664907 | AF178: 181696.6361 | AG178: 0.04345923951 | AH178: 5.106552426 | AI178: 299652.448 | AJ178: -0.2971164532 | AK178: 1.139291762
A179: 2018-12-01 | B179: 163048.584 | C179: -0.1897297628 | D179: 1.114323789 | E179: 197629.9603 | F179: 0.7713523269 | G179: 1.76353113 | H179: 194504.0182 | I179: 1.197535506 | J179: 2.50909127 | K179: 220901.1594 | L179: -0.2068721063 | M179: 4.312777514 | N179: 229841.7454 | O179: 0.1736943913 | P179: 3.905836486 | Q179: 334630.886 | R179: 0.06336105276 | S179: 0.9173102257 | T179: 620129.7876 | U179: -0.01880703204 | V179: -1.223464816 | W179: 382619.6375 | X179: 0.01597347701 | Y179: 0.4808964512 | Z179: 294592.4168 | AA179: 0.7643304466 | AB179: 0.9695788781 | AC179: 186902.0621 | AD179: 0.21119256 | AE179: 3.61696496 | AF179: 180625.1043 | AG179: -0.5897367379 | AH179: 3.620322027 | AI179: 300349.1684 | AJ179: 0.232509495 | AK179: 1.060357094
A180: 2019-01-01 | B180: 164024.7509 | C180: 0.5986969737 | D180: -0.3713778235 | E180: 196976.524 | F180: -0.3306362887 | G180: 1.30075089 | H180: 195601.0318 | I180: 0.5640056243 | J180: 2.23828322 | K180: 220942.8472 | L180: 0.01887170771 | M180: 2.297070585 | N180: 231840.0197 | O180: 0.8694131075 | P180: 3.494964589 | Q180: 335523.1811 | R180: 0.2666505433 | S180: 0.652887744 | T180: 619005.142 | U180: -0.1813564738 | V180: -0.93211299 | W180: 384691.4616 | X180: 0.5414840051 | Y180: -0.1206283172 | Z180: 293325.4176 | AA180: -0.4300854771 | AB180: 0.719316595 | AC180: 186981.823 | AD180: 0.04267523218 | AE180: 2.811336993 | AF180: 180385.5162 | AG180: -0.1326438854 | AH180: 2.443633732 | AI180: 300797.8256 | AJ180: 0.1493785287 | AK180: 0.6646702784
A181: 2019-02-01 | B181: 166092.335 | C181: 1.260531725 | D181: -0.5916138234 | E181: 198389.9435 | F181: 0.7175573634 | G181: 1.610784498 | H181: 196259.8653 | I181: 0.3368251339 | J181: 2.372461586 | K181: 223349.5768 | L181: 1.08929961 | M181: 2.476503206 | N181: 232493.2363 | O181: 0.2817531885 | P181: 2.853340141 | Q181: 338252.0914 | R181: 0.8133298894 | S181: 0.4471448449 | T181: 619202.6577 | U181: 0.03190856924 | V181: 0.05545253291 | W181: 386735.1125 | X181: 0.5312441576 | Y181: -0.4661822007 | Z181: 293404.4555 | AA181: 0.02694544022 | AB181: 0.5554801063 | AC181: 188158.8382 | AD181: 0.6294810868 | AE181: 1.387202688 | AF181: 179999.0682 | AG181: -0.2142345062 | AH181: 0.141686971 | AI181: 302149.0775 | AJ181: 0.4492226348 | AK181: 0.7064143896
A182: 2019-03-01 | B182: 167700.9647 | C182: 0.968515343 | D182: -0.6058967408 | E182: 198298.0316 | F182: -0.0463288898 | G182: 1.864216937 | H182: 195387.2838 | I182: -0.44460517 | J182: 2.141285191 | K182: 224360.2051 | L182: 0.4524872525 | M182: 2.672908711 | N182: 231160.6373 | O182: -0.5731775487 | P182: 2.409051671 | Q182: 336705.9801 | R182: -0.457088462 | S182: -0.4840771298 | T182: 615634.7089 | U182: -0.5762166552 | V182: 0.4198715298 | W182: 385727.1491 | X182: -0.2606340652 | Y182: -0.7180266438 | Z182: 292097.2763 | AA182: -0.4455212295 | AB182: 0.9497330368 | AC182: 187669.0057 | AD182: -0.2603292529 | AE182: 2.299441807 | AF182: 181415.636 | AG182: 0.786986205 | AH182: 0.3669494908 | AI182: 301209.8634 | AJ182: -0.310844617 | AK182: 0.6698115433
A183: 2019-04-01 | B183: 165965.5045 | C183: -1.034854032 | D183: -0.07743952991 | E183: 198865.413 | F183: 0.2861255849 | G183: 2.57010372 | H183: 194953.9293 | I183: -0.2217925677 | J183: 2.092254606 | K183: 224661.9265 | L183: 0.1344807741 | M183: 3.332151717 | N183: 230026.4569 | O183: -0.4906459949 | P183: 1.673716945 | Q183: 335849.5987 | R183: -0.2543410292 | S183: -0.5603637312 | T183: 616158.6973 | U183: 0.08511352195 | V183: 0.8335885992 | W183: 382768.2327 | X183: -0.7671009035 | Y183: -1.362962173 | Z183: 291665.7961 | AA183: -0.147717994 | AB183: 0.8507692165 | AC183: 186678.9498 | AD183: -0.5275542902 | AE183: 3.204317886 | AF183: 182408.6776 | AG183: 0.5473847765 | AH183: 0.7554401876 | AI183: 300448.0542 | AJ183: -0.2529164169 | AK183: 0.683125604
A184: 2019-05-01 | B184: 166143.7067 | C184: 0.1073730401 | D184: 1.15362289 | E184: 197581.7745 | F184: -0.645481044 | G184: 2.885399903 | H184: 194424.4624 | I184: -0.2715856751 | J184: 2.168548435 | K184: 223330.4004 | L184: -0.5926798859 | M184: 2.934415612 | N184: 229607.0229 | O184: -0.1823416372 | P184: 1.820646275 | Q184: 336196.8815 | R184: 0.1034042566 | S184: -0.1438536952 | T184: 621015.6239 | U184: 0.7882590405 | V184: 1.159618895 | W184: 381486.2732 | X184: -0.3349179257 | Y184: -1.054822614 | Z184: 292674.6562 | AA184: 0.345895922 | AB184: 1.010430887 | AC184: 185145.6417 | AD184: -0.8213610053 | AE184: 4.810575197 | AF184: 183262.056 | AG184: 0.4678387299 | AH184: 1.972969871 | AI184: 300433.595 | AJ184: -0.004812538457 | AK184: 0.9837263716
A185: 2019-06-01 | B185: 164309.0665 | C185: -1.104249008 | D185: 0.2362794773 | E185: 196677.7277 | F185: -0.4575557914 | G185: 2.346659031 | H185: 194508.5941 | I185: 0.04327220131 | J185: 1.682119917 | K185: 221832.5067 | L185: -0.6707074896 | M185: 1.737796255 | N185: 229310.7643 | O185: -0.1290285575 | P185: 1.098728397 | Q185: 337448.4288 | R185: 0.3722661961 | S185: -0.06913142902 | T185: 620897.4528 | U185: -0.01902868651 | V185: 1.031512319 | W185: 382380.5718 | X185: 0.2344248455 | Y185: -0.7363948936 | Z185: 291297.7383 | AA185: -0.4704602341 | AB185: 0.9079610578 | AC185: 185756.2254 | AD185: 0.3297855856 | AE185: 3.702557537 | AF185: 183743.0421 | AG185: 0.2624581036 | AH185: 2.649703276 | AI185: 300235.3039 | AJ185: -0.06600164306 | AK185: 0.7639246013
A186: 2019-07-01 | B186: 165030.9657 | C186: 0.4393544368 | D186: 1.616746119 | E186: 196954.5007 | F186: 0.140724144 | G186: 2.22138901 | H186: 194566.8827 | I186: 0.02996709294 | J186: 1.213455352 | K186: 221345.3228 | L186: -0.2196178851 | M186: 2.044940181 | N186: 228956.5628 | O186: -0.1544635179 | P186: 1.545481579 | Q186: 336009.7197 | R186: -0.4263493186 | S186: 0.05181908682 | T186: 614938.0197 | U186: -0.9598095572 | V186: 0.8286888714 | W186: 382159.8385 | X186: -0.05772609494 | Y186: -0.2148925045 | Z186: 292907.1296 | AA186: 0.5524901621 | AB186: 1.066744407 | AC186: 187913.3725 | AD186: 1.161278491 | AE186: 3.560406601 | AF186: 183840.6051 | AG186: 0.05309751061 | AH186: 2.757923984 | AI186: 299725.7453 | AJ186: -0.1697197601 | AK186: 0.9113750916
A187: 2019-08-01 | B187: 165361.6467 | C187: 0.2003751468 | D187: 1.774446629 | E187: 198678.1181 | F187: 0.8751348174 | G187: 2.164933784 | H187: 196208.0321 | I187: 0.8434885754 | J187: 1.625179861 | K187: 221628.7108 | L187: 0.1280298045 | M187: 1.456358466 | N187: 229662.2446 | O187: 0.3082164813 | P187: 1.03054015 | Q187: 333370.4133 | R187: -0.785485155 | S187: -0.705963683 | T187: 610277.4369 | U187: -0.7578947238 | V187: 0.4032495634 | W187: 381755.9793 | X187: -0.1056780857 | Y187: -0.5586399989 | Z187: 294318.1348 | AA187: 0.4817244026 | AB187: 1.066779804 | AC187: 188502.3149 | AD187: 0.3134116815 | AE187: 2.599085412 | AF187: 183447.4615 | AG187: -0.2138502619 | AH187: 2.431581756 | AI187: 299567.4153 | AJ187: -0.05282493509 | AK187: 0.5736798501
A188: 2019-09-01 | B188: 166734.9684 | C188: 0.830495929 | D188: 2.734625898 | E188: 200426.6183 | F188: 0.8800668276 | G188: 3.115727511 | H188: 198216.3261 | I188: 1.02355342 | J188: 2.941839656 | K188: 224019.1339 | L188: 1.078571043 | M188: 1.89182842 | N188: 232184.6698 | O188: 1.098319492 | P188: 1.471860627 | Q188: 333477.3427 | R188: 0.0320752676 | S188: -0.3763342049 | T188: 615909.2048 | U188: 0.9228209325 | V188: 0.5069599919 | W188: 381263.0032 | X188: -0.129133828 | Y188: -0.6485811761 | Z188: 295467.4532 | AA188: 0.3905020815 | AB188: 0.9970761933 | AC188: 190071.3479 | AD188: 0.8323680408 | AE188: 2.935980217 | AF188: 183787.9292 | AG188: 0.1855941517 | AH188: 1.784195439 | AI188: 301214.163 | AJ188: 0.5497085539 | AK188: 0.867204708
A189: 2019-10-01 | B189: 168181.629 | C189: 0.8676407543 | D189: 2.532504066 | E189: 201141.787 | F189: 0.356823217 | G189: 2.532713841 | H189: 199982.4015 | I189: 0.8909838253 | J189: 4.04925444 | K189: 224938.0679 | L189: 0.4102033622 | M189: 1.300919803 | N189: 233746.1001 | O189: 0.6724950067 | P189: 1.671732076 | Q189: 334417.8252 | R189: 0.2820228957 | S189: -0.7048961491 | T189: 623540.1584 | U189: 1.238973777 | V189: 0.4626500583 | W189: 382898.8245 | X189: 0.4290532478 | Y189: -0.3844054882 | Z189: 297093.7266 | AA189: 0.5504069393 | AB189: 1.163048237 | AC189: 191550.2504 | AD189: 0.7780775321 | AE189: 2.820189266 | AF189: 183696.1456 | AG189: -0.04993995118 | AH189: 1.144403381 | AI189: 303183.9116 | AJ189: 0.6539362402 | AK189: 0.877901816
A190: 2019-11-01 | B190: 167628.2998 | C190: -0.329006927 | D190: 2.613745482 | E190: 201288.1599 | F190: 0.07277097591 | G190: 2.636665235 | H190: 200837.788 | I190: 0.4277308978 | J190: 4.492901332 | K190: 225264.3925 | L190: 0.1450730717 | M190: 1.764238788 | N190: 232680.4263 | O190: -0.4559108665 | P190: 1.410898486 | Q190: 335237.6377 | R190: 0.2451461961 | S190: 0.2447956398 | T190: 630092.018 | U190: 1.050751826 | V190: 1.587365901 | W190: 384674.803 | X190: 0.4638245047 | Y190: 0.5531894516 | Z190: 295637.1975 | AA190: -0.4902591021 | AB190: 1.121694122 | AC190: 193435.8518 | AD190: 0.9843899489 | AE190: 3.71441157 | AF190: 184351.6825 | AG190: 0.3568593449 | AH190: 1.461252347 | AI190: 304171.9805 | AJ190: 0.3258975443 | AK190: 1.508258157
A191: 2019-12-01 | B191: 167561.02 | C191: -0.04013629882 | D191: 2.767540733 | E191: 202305.5744 | F191: 0.5054517424 | G191: 2.365842738 | H191: 201217.0216 | I191: 0.1888257991 | J191: 3.451344309 | K191: 225275.6016 | L191: 0.004975969808 | M191: 1.980271281 | N191: 233457.4075 | O191: 0.3339263348 | P191: 1.573109389 | Q191: 334101.5504 | R191: -0.3388901452 | S191: -0.1581849189 | T191: 632521.1433 | U191: 0.3855191461 | V191: 1.998187479 | W191: 386381.0476 | X191: 0.4435550607 | Y191: 0.983067705 | Z191: 297303.87 | AA191: 0.5637560002 | AB191: 0.920408332 | AC191: 194062.4952 | AD191: 0.3239540899 | AE191: 3.831115058 | AF191: 184551.5959 | AG191: 0.1084413 | AH191: 2.173834889 | AI191: 305035.1515 | AJ191: 0.2837772784 | AK191: 1.560178471
A192: 2020-01-01 | B192: 167836.1916 | C192: 0.1642217454 | D192: 2.323698496 | E192: 202892.6541 | F192: 0.2901945388 | G192: 3.003469672 | H192: 201292.8183 | I192: 0.03766913193 | J192: 2.909895931 | K192: 226414.6193 | L192: 0.5056107569 | M192: 2.476555427 | N192: 235126.0697 | O192: 0.7147608779 | P192: 1.417378257 | Q192: 336496.6592 | R192: 0.7168804787 | S192: 0.2901373668 | T192: 637322.5315 | U192: 0.7590873744 | V192: 2.959165955 | W192: 388770.749 | X192: 0.6184830802 | Y192: 1.060404964 | Z192: 295284.3454 | AA192: -0.6792796245 | AB192: 0.6678342966 | AC192: 194227.9756 | AD192: 0.08527172542 | AE192: 3.875324606 | AF192: 185346.9667 | AG192: 0.4309747762 | AH192: 2.750470562 | AI192: 306322.3276 | AJ192: 0.4219763063 | AK192: 1.836616322
A193: 2020-02-01 | B193: 170341.0938 | C193: 1.492468408 | D193: 2.558070357 | E193: 205012.944 | F193: 1.045030403 | G193: 3.338375127 | H193: 202793.4319 | I193: 0.7454878698 | J193: 3.32903855 | K193: 228974.6501 | L193: 1.130682645 | M193: 2.518506364 | N193: 237841.2774 | O193: 1.154788038 | P193: 2.300299654 | Q193: 338941.3457 | R193: 0.726511373 | S193: 0.2037694139 | T193: 638027.0235 | U193: 0.1105393354 | V193: 3.040097712 | W193: 392267.5203 | X193: 0.8994430087 | Y193: 1.430541883 | Z193: 298310.5689 | AA193: 1.024850651 | AB193: 1.672133248 | AC193: 196620.3251 | AD193: 1.231722403 | AE193: 4.496991453 | AF193: 185855.0766 | AG193: 0.2741398373 | AH193: 3.25335485 | AI193: 308735.0395 | AJ193: 0.7876382904 | AK193: 2.179706138
A194: 2020-03-01 | B194: 168851.3391 | C194: -0.8745714966 | D194: 0.6859676612 | E194: 202960.57 | F194: -1.001094874 | G194: 2.351278161 | H194: 200472.8075 | I194: -1.144329145 | J194: 2.602791563 | K194: 228829.8655 | L194: -0.06323172329 | M194: 1.992180531 | N194: 234532.1369 | O194: -1.391323071 | P194: 1.45850938 | Q194: 339939.0335 | R194: 0.2943541176 | S194: 0.960200764 | T194: 640942.2477 | U194: 0.4569123271 | V194: 4.110804415 | W194: 396201.3291 | X194: 1.002838267 | Y194: 2.715437592 | Z194: 299103.962 | AA194: 0.2659621311 | AB194: 2.398750794 | AC194: 194191.9829 | AD194: -1.235041266 | AE194: 3.475788234 | AF194: 185212.0561 | AG194: -0.3459795254 | AH194: 2.092664199 | AI194: 308876.055 | AJ194: 0.0456752457 | AK194: 2.545132995
A195: 2020-04-01 | B195: 167259.139 | C195: -0.9429597143 | D195: 0.7794598521 | E195: 200779.8637 | F195: -1.074448238 | G195: 0.962686579 | H195: 197848.0372 | I195: -1.309289933 | J195: 1.484508639 | K195: 226954.2072 | L195: -0.8196737097 | M195: 1.020324527 | N195: 231991.4482 | O195: -1.083300849 | P195: 0.8542458049 | Q195: 335800.9487 | R195: -1.217302038 | S195: -0.01448563083 | T195: 633874.8126 | U195: -1.102663322 | V195: 2.87525201 | W195: 393747.4627 | X195: -0.6193483614 | Y195: 2.86837545 | Z195: 297302.8608 | AA195: -0.6021656222 | AB195: 1.932713679 | AC195: 192157.4624 | AD195: -1.047685126 | AE195: 2.934724346 | AF195: 184395.7508 | AG195: -0.4407408726 | AH195: 1.089352374 | AI195: 305961.4638 | AJ195: -0.9436118849 | AK195: 1.835062524
A196: 2020-05-01 | B196: 163930.7811 | C196: -1.989940808 | D196: -1.331934647 | E196: 198826.5316 | F196: -0.9728725096 | G196: 0.6299959044 | H196: 195575.4324 | I196: -1.148661812 | J196: 0.591988274 | K196: 224865.6286 | L196: -0.9202643213 | M196: 0.6874246362 | N196: 230778.8805 | O196: -0.5226777747 | P196: 0.5103753412 | Q196: 335043.1037 | R196: -0.2256828262 | S196: -0.3431851539 | T196: 630742.521 | U196: -0.4941498722 | V196: 1.566288631 | W196: 388625.9204 | X196: -1.300717541 | Y196: 1.871534476 | Z196: 295461.6445 | AA196: -0.6193066117 | AB196: 0.9522479347 | AC196: 189444.6661 | AD196: -1.41175693 | AE196: 2.321968994 | AF196: 183489.6241 | AG196: -0.4914032423 | AH196: 0.1241763443 | AI196: 303438.3655 | AJ196: -0.8246458083 | AK196: 1.000144621
A197: 2020-06-01 | B197: 165021.8295 | C197: 0.6655542987 | D197: 0.4337940786 | E197: 200875.7184 | F197: 1.030640501 | G197: 2.134451496 | H197: 196785.8622 | I197: 0.6189068935 | J197: 1.1707802 | K197: 226249.5434 | L197: 0.6154407685 | M197: 1.991158434 | N197: 234465.9262 | O197: 1.597653006 | P197: 2.248111638 | Q197: 337266.8952 | R197: 0.6637329567 | S197: -0.05379596211 | T197: 627472.3413 | U197: -0.5184650717 | V197: 1.058933088 | W197: 385151.9222 | X197: -0.8939182956 | Y197: 0.7247623231 | Z197: 296021.3483 | AA197: 0.1894336545 | AB197: 1.621574565 | AC197: 191652.5041 | AD197: 1.165426336 | AE197: 3.17420252 | AF197: 186083.4169 | AG197: 1.413590982 | AH197: 1.273721583 | AI197: 303865.6396 | AJ197: 0.1408108396 | AK197: 1.209163483
A198: 2020-07-01 | B198: 166722.0765 | C198: 1.030316401 | D198: 1.024723327 | E198: 204787.4057 | F198: 1.94731716 | G198: 3.977012436 | H198: 200169.9202 | I198: 1.719665184 | J198: 2.879748813 | K198: 227487.0459 | L198: 0.5469635526 | M198: 2.774724575 | N198: 236539.0223 | O198: 0.884177992 | P198: 3.311745895 | Q198: 341972.5796 | R198: 1.395240545 | S198: 1.774609354 | T198: 631895.7415 | U198: 0.704955395 | V198: 2.757631052 | W198: 390791.5386 | X198: 1.464257641 | Y198: 2.258662284 | Z198: 302598.5513 | AA198: 2.221867771 | AB198: 3.308701168 | AC198: 194349.4098 | AD198: 1.407185201 | AE198: 3.425002323 | AF198: 187299.0037 | AG198: 0.6532483287 | AH198: 1.881194099 | AI198: 307882.6022 | AJ198: 1.321953565 | AK198: 2.72144021
A199: 2020-08-01 | B199: 170658.2221 | C199: 2.360902485 | D199: 3.203025317 | E199: 207271.6705 | F199: 1.213094514 | G199: 4.325364284 | H199: 203527.0935 | I199: 1.677161765 | J199: 3.730255767 | K199: 230225.1817 | L199: 1.203644694 | M199: 3.878771306 | N199: 239871.782 | O199: 1.408968222 | P199: 4.44545745 | Q199: 346288.9368 | R199: 1.262193924 | S199: 3.875125984 | T199: 638194.4154 | U199: 0.996790062 | V199: 4.574473322 | W199: 399876.6807 | X199: 2.324805228 | Y199: 4.746671287 | Z199: 309156.4783 | AA199: 2.167203698 | AB199: 5.041600139 | AC199: 195158.7395 | AD199: 0.416430206 | AE199: 3.531216347 | AF199: 188173.3119 | AG199: 0.4667980719 | AH199: 2.576132877 | AI199: 312681.3018 | AJ199: 1.558613443 | AK199: 4.37760779
A200: 2020-09-01 | B200: 173363.3849 | C200: 1.585134726 | D200: 3.975420673 | E200: 212577.8297 | F200: 2.560002149 | G200: 6.062673446 | H200: 207556.6313 | I200: 1.979853251 | J200: 4.712177533 | K200: 233579.8256 | L200: 1.457114235 | M200: 4.267801357 | N200: 243149.6336 | O200: 1.366501544 | P200: 4.722518408 | Q200: 350870.6567 | R200: 1.323091642 | S200: 5.215740863 | T200: 639041.6867 | U200: 0.1327606825 | V200: 3.75582662 | W200: 406222.6903 | X200: 1.586991651 | Y200: 6.546579893 | Z200: 315499.3209 | AA200: 2.051660906 | AB200: 6.779720552 | AC200: 199133.1184 | AD200: 2.036485237 | AE200: 4.767562576 | AF200: 188004.4822 | AG200: -0.08972030134 | AH200: 2.294249118 | AI200: 317069.5313 | AJ200: 1.403419218 | AK200: 5.263818979
A201: 2020-10-01 | B201: 177340.6835 | C201: 2.294197618 | D201: 5.445930432 | E201: 217686.8698 | F201: 2.403373916 | G201: 8.22558207 | H201: 212750.7345 | I201: 2.502499261 | J201: 6.384728281 | K201: 239686.666 | L201: 2.614455423 | M201: 6.556737225 | N201: 248409.5571 | O201: 2.163245487 | P201: 6.27324132 | Q201: 354421.1621 | R201: 1.011912877 | S201: 5.981540285 | T201: 642569.4503 | U201: 0.5520396761 | V201: 3.051814985 | W201: 410879.5267 | X201: 1.146375275 | Y201: 7.307596812 | Z201: 323886.981 | AA201: 2.658535085 | AB201: 9.018451763 | AC201: 203036.9862 | AD201: 1.960431195 | AE201: 5.996721877 | AF201: 190756.8781 | AG201: 1.46400547 | AH201: 3.843702014 | AI201: 322139.1683 | AJ201: 1.598903862 | AK201: 6.252065484
A202: 2020-11-01 | B202: 177798.8761 | C202: 0.2583685737 | D202: 6.067338469 | E202: 223493.8368 | F202: 2.667577965 | G202: 11.03178494 | H202: 216050.1777 | I202: 1.55084926 | J202: 7.574465824 | K202: 243941.3907 | L202: 1.775119484 | M202: 8.291145338 | N202: 252661.3738 | O202: 1.711615599 | P202: 8.587291959 | Q202: 355437.0688 | R202: 0.2866382745 | S202: 6.025406692 | T202: 637008.952 | U202: -0.8653536689 | V202: 1.097765704 | W202: 412677.1955 | X202: 0.4375172297 | Y202: 7.279497439 | Z202: 329249.4165 | AA202: 1.655650221 | AB202: 11.36941469 | AC202: 208484.3861 | AD202: 2.682959414 | AE202: 7.779599362 | AF202: 195080.8007 | AG202: 2.266719085 | AH202: 5.819918757 | AI202: 324756.6007 | AJ202: 0.812516027 | AK202: 6.767428119
A203: 2020-12-01 | B203: 181758.456 | C203: 2.226999374 | D203: 8.472994478 | E203: 227429.554 | F203: 1.760995849 | G203: 12.41882714 | H203: 222213.5183 | I203: 2.852735736 | J203: 10.43475175 | K203: 248505.3902 | L203: 1.870941012 | M203: 10.31171971 | N203: 257221.7176 | O203: 1.80492323 | P203: 10.17929155 | Q203: 358468.4559 | R203: 0.8528618281 | S203: 7.293263209 | T203: 643222.301 | U203: 0.9753942899 | V203: 1.691826078 | W203: 416915.884 | X203: 1.027119653 | Y203: 7.902778008 | Z203: 335066.8839 | AA203: 1.766887672 | AB203: 12.70182386 | AC203: 212576.9045 | AD203: 1.962985588 | AE203: 9.540436639 | AF203: 198424.6561 | AG203: 1.714087397 | AH203: 7.51717163 | AI203: 329424.3046 | AJ203: 1.437293011 | AK203: 7.995522148
... 8 more rows

Sheet INTERACTIVE REGIONS CHARTS
C2: WALKER FRASER STEELE HPI (SCOTLAND) NATIONAL AND REGIONAL FORMATTED DATA FROM 2000
C3: A TRUE MEASURE OF HOUSE PRICE INFLATION
O4: =SERIES!$K$3 -> AUGUST 2021
O5: © Acadata Limited
O6: Walker Fraser Steele HPI (Scotland) clb/cms
Q8: Select Region(s)
Q11: North East
Q12: North West
Q13: East Midlands
Q14: West Midlands
Q15: Wales
Q16: Yorks & Humber
Q17: South West
Q18: East of England
Q19: South East
Q20: Greater London
Q21: Scotland
D29: To change the date range, click on the start and end dates below and select from the drop down lists, then click Reset Dates.
D31: Start Date | E31: 2005-01-01 | G31: End Date | H31: 2021-08-01
E32: =MATCH(E31,dates)+ROW(dates)-1 -> 12 | H32: =MATCH(H31,dates)+ROW(dates)-1 -> 211
Q38: Select Region(s)
Q41: North East
Q42: North West
Q43: East Midlands
Q44: West Midlands
Q45: Wales
Q46: Yorks & Humber
Q47: South West
Q48: East of England
Q49: South East
Q50: Greater London
Q51: Scotland
D58: To change the date range, click on the start and end dates below and select from the drop down lists, then click Reset Dates.
D60: Start Date | E60: 2005-01-01 | G60: End Date | H60: 2021-08-01
E61: =MATCH(E60,dates)+ROW(dates)-1 -> 12 | H61: =MATCH(H60,dates)+ROW(dates)-1 -> 211
Q65: Select Region(s)
Q68: North East
Q69: North West
Q70: East Midlands
Q71: West Midlands
Q72: Wales
Q73: Yorks & Humber
Q74: South West
Q75: East of England
Q76: South East
Q77: Greater London
Q78: Scotland
D85: To change the date range, click on the start and end dates below and select from the drop down lists, then click Reset Dates.
D87: Start Date | E87: 2005-01-01 | G87: End Date | H87: 2021-08-01
E88: =MATCH(E87,dates)+ROW(dates)-1 -> 12 | H88: =MATCH(H87,dates)+ROW(dates)-1 -> 211
